Body Name,Body,Service Label,Service Code,CIPFA Detailed Expenditure Type,CIPFA Detailed Expenditure Code,Date,Transaction Number,Net Amount,Supplier Name,,
Nottinghamshire County Council,1111/1001,Surplus or Deficit from Trading Undertak,TRADING,Supplies & Services,DDA,07/03/2018,12-10001,629.2,Stuff Uk Net,,
Nottinghamshire County Council,1111/1001,Surplus or Deficit from Trading Undertak,TRADING,Supplies & Services,DAA,09/03/2018,12-10001,500.4,Steroplast Healthcare Ltd,,
Nottinghamshire County Council,1111/1001,Surplus or Deficit from Trading Undertak,TRADING,Supplies & Services,DAA,05/03/2018,12-10001,"1,785.55",Pirongs Ltd,,
Nottinghamshire County Council,1111/1001,Surplus or Deficit from Trading Undertak,TRADING,Premises Related,BJA,02/03/2018,12-10001,"1,332.70",Robert Scott & Sons Ltd,,
Nottinghamshire County Council,1111/1001,Surplus or Deficit from Trading Undertak,TRADING,Supplies & Services,DAA,05/03/2018,12-10001,705.95,Ransome Sporting Goods Group Ltd,,
Nottinghamshire County Council,1111/1001,Surplus or Deficit from Trading Undertak,TRADING,Supplies & Services,DAA,14/03/2018,12-10001,565.77,Ransome Sporting Goods Group Ltd,,
Nottinghamshire County Council,1111/1001,Surplus or Deficit from Trading Undertak,TRADING,Supplies & Services,DAA,19/03/2018,12-10001,546.43,Ransome Sporting Goods Group Ltd,,
Nottinghamshire County Council,1111/1001,Surplus or Deficit from Trading Undertak,TRADING,Premises Related,BJA,21/03/2018,12-10001,"1,924.18",Numatic International Ltd,,
Nottinghamshire County Council,1111/1001,Surplus or Deficit from Trading Undertak,TRADING,Supplies & Services,DDA,05/03/2018,12-10001,664.3,Antalis Ltd,,
Nottinghamshire County Council,1111/1001,Surplus or Deficit from Trading Undertak,TRADING,Supplies & Services,DDA,07/03/2018,12-10001,"36,924.00",Antalis Ltd,,
Nottinghamshire County Council,1111/1001,Surplus or Deficit from Trading Undertak,TRADING,Supplies & Services,DDA,09/03/2018,12-10001,"1,321.60",Antalis Ltd,,
Nottinghamshire County Council,1111/1001,Surplus or Deficit from Trading Undertak,TRADING,Supplies & Services,DDA,09/03/2018,12-10001,595.5,Antalis Ltd,,
Nottinghamshire County Council,1111/1001,Surplus or Deficit from Trading Undertak,TRADING,Supplies & Services,DDA,09/03/2018,12-10001,"1,426.15",Antalis Ltd,,
Nottinghamshire County Council,1111/1001,Surplus or Deficit from Trading Undertak,TRADING,Supplies & Services,DDA,14/03/2018,12-10001,"2,143.40",Antalis Ltd,,
Nottinghamshire County Council,1111/1001,Surplus or Deficit from Trading Undertak,TRADING,Supplies & Services,DDA,02/03/2018,12-10001,"1,066.10",Staedtler Uk Ltd,,
Nottinghamshire County Council,1111/1001,Surplus or Deficit from Trading Undertak,TRADING,Supplies & Services,DDA,14/03/2018,12-10001,715.13,Staedtler Uk Ltd,,
Nottinghamshire County Council,1111/1001,Surplus or Deficit from Trading Undertak,TRADING,Supplies & Services,DDA,14/03/2018,12-10001,800,Staedtler Uk Ltd,,
Nottinghamshire County Council,1111/1001,Surplus or Deficit from Trading Undertak,TRADING,Supplies & Services,DDA,23/03/2018,12-10001,658,Staedtler Uk Ltd,,
Nottinghamshire County Council,1111/1001,Surplus or Deficit from Trading Undertak,TRADING,Supplies & Services,DAA,05/03/2018,12-10001,606,Wv Howe Ltd,,
Nottinghamshire County Council,1111/1001,Surplus or Deficit from Trading Undertak,TRADING,Supplies & Services,DAA,21/03/2018,12-10001,658.13,Wv Howe Ltd,,
Nottinghamshire County Council,1111/1001,Surplus or Deficit from Trading Undertak,TRADING,Supplies & Services,DDA,05/03/2018,12-10001,533.98,Allen Glenold Ltd,,
Nottinghamshire County Council,1111/1001,Surplus or Deficit from Trading Undertak,TRADING,Supplies & Services,DDA,05/03/2018,12-10001,521.82,Allen Glenold Ltd,,
Nottinghamshire County Council,1111/1001,Surplus or Deficit from Trading Undertak,TRADING,Premises Related,BJA,07/03/2018,12-10001,"2,309.29",Diversey,,
Nottinghamshire County Council,1111/1001,Surplus or Deficit from Trading Undertak,TRADING,Premises Related,BJA,14/03/2018,12-10001,"4,721.56",Diversey,,
Nottinghamshire County Council,1111/1001,Surplus or Deficit from Trading Undertak,TRADING,Supplies & Services,DDA,19/03/2018,12-10001,547.74,Bostik Ltd,,
Nottinghamshire County Council,1111/1001,Surplus or Deficit from Trading Undertak,TRADING,Supplies & Services,DDA,14/03/2018,12-10001,585.74,Edding Uk Ltd,,
Nottinghamshire County Council,1111/1001,Surplus or Deficit from Trading Undertak,TRADING,Premises Related,BJA,05/03/2018,12-10001,"2,752.00",Henkel Ltd,,
Nottinghamshire County Council,1111/1001,Surplus or Deficit from Trading Undertak,TRADING,Premises Related,BJA,07/03/2018,12-10001,"1,981.32",Henkel Ltd,,
Nottinghamshire County Council,1111/1001,Surplus or Deficit from Trading Undertak,TRADING,Premises Related,BJA,09/03/2018,12-10001,845.55,Henkel Ltd,,
Nottinghamshire County Council,1111/1001,Surplus or Deficit from Trading Undertak,TRADING,Premises Related,BJA,05/03/2018,12-10001,"1,119.00",Scot Young Research Ltd,,
Nottinghamshire County Council,1111/1001,Surplus or Deficit from Trading Undertak,TRADING,Premises Related,BJA,21/03/2018,12-10001,965.07,Scot Young Research Ltd,,
Nottinghamshire County Council,1111/1001,Surplus or Deficit from Trading Undertak,TRADING,Premises Related,BJA,21/03/2018,12-10001,805.5,Midland Wiper Mfg Company Ltd,,
Nottinghamshire County Council,1111/1001,Surplus or Deficit from Trading Undertak,TRADING,Supplies & Services,DDA,23/03/2018,12-10001,560.07,3M United Kingdom Plc,,
Nottinghamshire County Council,1111/1001,Surplus or Deficit from Trading Undertak,TRADING,Supplies & Services,DDA,05/03/2018,12-10001,710.76,Evans Vanodine International Ltd,,
Nottinghamshire County Council,1111/1001,Surplus or Deficit from Trading Undertak,TRADING,Supplies & Services,DAA,19/03/2018,12-10001,"1,501.22",Brian Clegg (Educational Products),,
Nottinghamshire County Council,1111/1001,Surplus or Deficit from Trading Undertak,TRADING,Supplies & Services,DAA,23/03/2018,12-10001,"1,648.90",Vivid Laminating Technologies Ltd,,
Nottinghamshire County Council,1111/1001,Surplus or Deficit from Trading Undertak,TRADING,Employee Related,AAA,23/03/2018,12-10001,900,Monarch Education Furniture,,
Nottinghamshire County Council,1111/1001,Surplus or Deficit from Trading Undertak,TRADING,Supplies & Services,DDA,05/03/2018,12-10001,585.45,Grosvenor House Papers Ltd,,
Nottinghamshire County Council,1111/1001,Surplus or Deficit from Trading Undertak,TRADING,Supplies & Services,DAA,09/03/2018,12-10001,879.48,Catering Supplies Wakefield Ltd,,
Nottinghamshire County Council,1111/1001,Surplus or Deficit from Trading Undertak,TRADING,Supplies & Services,DAA,14/03/2018,12-10001,"1,844.25",Catering Supplies Wakefield Ltd,,
Nottinghamshire County Council,1111/1001,Surplus or Deficit from Trading Undertak,TRADING,Supplies & Services,DAA,23/03/2018,12-10001,"1,160.50",Catering Supplies Wakefield Ltd,,
Nottinghamshire County Council,1111/1001,Surplus or Deficit from Trading Undertak,TRADING,Premises Related,BJA,02/03/2018,12-10001,512.93,Addis Houseware Ltd,,
Nottinghamshire County Council,1111/1001,Surplus or Deficit from Trading Undertak,TRADING,Supplies & Services,DAA,23/03/2018,12-10001,577.84,Niels Larsen Ltd,,
Nottinghamshire County Council,1111/1001,Surplus or Deficit from Trading Undertak,TRADING,Supplies & Services,DKA,02/03/2018,12-10001,"6,267.43",Essity Uk Ltd,,
Nottinghamshire County Council,1111/1001,Surplus or Deficit from Trading Undertak,TRADING,Supplies & Services,DKA,19/03/2018,12-10001,"1,736.17",Essity Uk Ltd,,
Nottinghamshire County Council,1111/1001,Surplus or Deficit from Trading Undertak,TRADING,Supplies & Services,DKA,21/03/2018,12-10001,"5,570.23",Essity Uk Ltd,,
Nottinghamshire County Council,1111/1001,Surplus or Deficit from Trading Undertak,TRADING,Supplies & Services,DDA,09/03/2018,12-10001,510.59,Banner Group Limited,,
Nottinghamshire County Council,1111/1001,Surplus or Deficit from Trading Undertak,TRADING,Supplies & Services,DDA,14/03/2018,12-10001,"1,457.74",Banner Group Limited,,
Nottinghamshire County Council,1111/1001,Surplus or Deficit from Trading Undertak,TRADING,Supplies & Services,DDA,14/03/2018,12-10001,568.82,Banner Group Limited,,
Nottinghamshire County Council,1111/1001,Surplus or Deficit from Trading Undertak,TRADING,Supplies & Services,DDA,19/03/2018,12-10001,867.52,Banner Group Limited,,
Nottinghamshire County Council,1111/1001,Surplus or Deficit from Trading Undertak,TRADING,Premises Related,BJA,02/03/2018,12-10001,543.05,Freudenberg Household Products Lp,,
Nottinghamshire County Council,1111/1001,Surplus or Deficit from Trading Undertak,TRADING,Supplies & Services,DDA,07/03/2018,12-10001,"1,023.30",Hamelin Brands Ltd,,
Nottinghamshire County Council,1111/1001,Surplus or Deficit from Trading Undertak,TRADING,Supplies & Services,DDA,14/03/2018,12-10001,"1,016.90",Hamelin Brands Ltd,,
Nottinghamshire County Council,1111/1001,Surplus or Deficit from Trading Undertak,TRADING,Supplies & Services,DFA,07/03/2018,12-10001,927.84,Royal Mail,,
Nottinghamshire County Council,1111/1001,Surplus or Deficit from Trading Undertak,TRADING,Supplies & Services,DAA,02/03/2018,12-10001,667.5,Dualit Ltd,,
Nottinghamshire County Council,1111/1001,Surplus or Deficit from Trading Undertak,TRADING,Supplies & Services,DAA,19/03/2018,12-10001,"1,746.70",Morleys (Bicester) Ltd,,
Nottinghamshire County Council,1111/1001,Surplus or Deficit from Trading Undertak,TRADING,Supplies & Services,DDA,19/03/2018,12-10001,"2,207.74",Higher Kings Mill Ltd,,
Nottinghamshire County Council,1111/1001,Surplus or Deficit from Trading Undertak,TRADING,Supplies & Services,DDA,19/03/2018,12-10001,"2,386.03",Higher Kings Mill Ltd,,
Nottinghamshire County Council,1111/1001,Surplus or Deficit from Trading Undertak,TRADING,Supplies & Services,DAA,19/03/2018,12-10001,514,Creative Art Products Ltd,,
Nottinghamshire County Council,1111/1001,Surplus or Deficit from Trading Undertak,TRADING,Premises Related,BJA,05/03/2018,12-10001,647.72,Creativity International Ltd,,
Nottinghamshire County Council,1111/1001,Surplus or Deficit from Trading Undertak,TRADING,Premises Related,BJA,21/03/2018,12-10001,922.16,Creativity International Ltd,,
Nottinghamshire County Council,1111/1001,Surplus or Deficit from Trading Undertak,TRADING,Premises Related,BJA,21/03/2018,12-10001,"1,110.42",Newell Rubbermaid Uk Ltd,,
Nottinghamshire County Council,1111/1001,Surplus or Deficit from Trading Undertak,TRADING,Supplies & Services,DAA,02/03/2018,12-10001,666.72,Maudesport Ltd,,
Nottinghamshire County Council,1111/1001,Surplus or Deficit from Trading Undertak,TRADING,Supplies & Services,DDA,07/03/2018,12-10001,"1,280.02",Slater Harrison & Company Ltd,,
Nottinghamshire County Council,1111/1001,Surplus or Deficit from Trading Undertak,TRADING,Supplies & Services,DDA,21/03/2018,12-10001,648.16,Slater Harrison & Company Ltd,,
Nottinghamshire County Council,1111/1001,Surplus or Deficit from Trading Undertak,TRADING,Supplies & Services,DAA,09/03/2018,12-10001,566.9,Combined Office Interiors Ltd,,
Nottinghamshire County Council,1111/1001,Surplus or Deficit from Trading Undertak,TRADING,Supplies & Services,DDA,09/03/2018,12-10001,"1,614.60",Polystar Plastics Ltd,,
Nottinghamshire County Council,1111/1001,Surplus or Deficit from Trading Undertak,TRADING,Supplies & Services,DDA,19/03/2018,12-10001,"1,160.88",Polystar Plastics Ltd,,
Nottinghamshire County Council,1111/1001,Surplus or Deficit from Trading Undertak,TRADING,Supplies & Services,DDA,23/03/2018,12-10001,658.56,Polystar Plastics Ltd,,
Nottinghamshire County Council,1111/1001,Surplus or Deficit from Trading Undertak,TRADING,Premises Related,BJA,14/03/2018,12-10001,"3,231.36",J C Peacock & Company Ltd,,
Nottinghamshire County Council,1111/1001,Surplus or Deficit from Trading Undertak,TRADING,Supplies & Services,DAA,09/03/2018,12-10001,804.08,Eastpoint,,
Nottinghamshire County Council,1111/1001,Surplus or Deficit from Trading Undertak,TRADING,Supplies & Services,DAA,19/03/2018,12-10001,717.08,Eastpoint,,
Nottinghamshire County Council,1111/1001,Surplus or Deficit from Trading Undertak,TRADING,Premises Related,BJA,05/03/2018,12-10001,760.09,Bunzl Retail & Healthcare Supp Ltd,,
Nottinghamshire County Council,1111/1001,Surplus or Deficit from Trading Undertak,TRADING,Premises Related,BJA,19/03/2018,12-10001,"2,305.87",Bunzl Retail & Healthcare Supp Ltd,,
Nottinghamshire County Council,1111/1001,Surplus or Deficit from Trading Undertak,TRADING,Premises Related,BJA,05/03/2018,12-10001,"1,831.54",Bunzl Cleaning & Hygiene Supplies,,
Nottinghamshire County Council,1111/1001,Surplus or Deficit from Trading Undertak,TRADING,Premises Related,BJA,05/03/2018,12-10001,883.5,Bunzl Cleaning & Hygiene Supplies,,
Nottinghamshire County Council,1111/1001,Surplus or Deficit from Trading Undertak,TRADING,Premises Related,BJA,19/03/2018,12-10001,662.4,Bunzl Cleaning & Hygiene Supplies,,
Nottinghamshire County Council,1111/1001,Surplus or Deficit from Trading Undertak,TRADING,Premises Related,BJA,14/03/2018,12-10001,522.46,Hartnoll Ltd,,
Nottinghamshire County Council,1111/1001,Surplus or Deficit from Trading Undertak,TRADING,Transport Related,CCA,07/03/2018,12-10001,760.1,Langley Mechanical Services Ltd,,
Nottinghamshire County Council,1111/1001,Surplus or Deficit from Trading Undertak,TRADING,Supplies & Services,DBA,21/03/2018,12-10001,593.25,North West Tea Service Ltd,,
Nottinghamshire County Council,1111/1001,Surplus or Deficit from Trading Undertak,TRADING,Premises Related,BJA,07/03/2018,12-10001,530.39,Cromwell Polythene Ltd,,
Nottinghamshire County Council,1111/1001,Surplus or Deficit from Trading Undertak,TRADING,Premises Related,BJA,21/03/2018,12-10001,"1,781.84",Cromwell Polythene Ltd,,
Nottinghamshire County Council,1111/1001,Surplus or Deficit from Trading Undertak,TRADING,Supplies & Services,DAA,05/03/2018,12-10001,584.56,Reliance Medical Ltd,,
Nottinghamshire County Council,1111/1001,Surplus or Deficit from Trading Undertak,TRADING,Supplies & Services,DFA,23/03/2018,12-10001,"2,518.00",Cbc Computer Systems Ltd,,
Nottinghamshire County Council,1111/1001,Surplus or Deficit from Trading Undertak,TRADING,Supplies & Services,DKA,05/03/2018,12-10001,"1,102.90",Kimberly Clark European Services Lt,,
Nottinghamshire County Council,1111/1001,Surplus or Deficit from Trading Undertak,TRADING,Supplies & Services,DKA,05/03/2018,12-10001,"1,372.46",Kimberly Clark European Services Lt,,
Nottinghamshire County Council,1111/1001,Surplus or Deficit from Trading Undertak,TRADING,Supplies & Services,DDA,05/03/2018,12-10001,544.48,Plastoreg Smidt Gmbh,,
Nottinghamshire County Council,1111/1001,Surplus or Deficit from Trading Undertak,TRADING,Supplies & Services,DAA,05/03/2018,12-10001,838.56,Kent County Supplies,,
Nottinghamshire County Council,1111/1001,Surplus or Deficit from Trading Undertak,TRADING,Supplies & Services,DAA,23/03/2018,12-10001,999.1,Kent County Supplies,,
Nottinghamshire County Council,1111/1001,Surplus or Deficit from Trading Undertak,TRADING,Supplies & Services,DAA,23/03/2018,12-10001,"1,260.00",Kent County Supplies,,
Nottinghamshire County Council,1111/1001,Surplus or Deficit from Trading Undertak,TRADING,Supplies & Services,DFA,19/03/2018,12-10001,744.4,Handset Solutions Ltd,,
Nottinghamshire County Council,1111/1001,Surplus or Deficit from Trading Undertak,TRADING,Employee Related,AAA,22/03/2018,12-10001,568,Advanced Business Software & Soluti,,
Nottinghamshire County Council,1111/1001,Surplus or Deficit from Trading Undertak,TRADING,Supplies & Services,DAA,19/03/2018,12-10001,569.46,Commercial Ltd,,
Nottinghamshire County Council,1111/1001,Surplus or Deficit from Trading Undertak,TRADING,Employee Related,ABA,07/03/2018,12-10001,510.23,Your Recruiter Ltd,,
Nottinghamshire County Council,1111/1001,Children and Young People,CYP,Premises Related,BAA,08/03/2018,12-11877,6016.21,ARC Property Services Partnership L,,
Nottinghamshire County Council,1111/1001,Children and Young People,CYP,Premises Related,BAA,08/03/2018,12-11883,30.76,ARC Property Services Partnership L,,
Nottinghamshire County Council,1111/1001,Children and Young People,CYP,Premises Related,BAA,08/03/2018,12-11886,13801.68,ARC Property Services Partnership L,,
Nottinghamshire County Council,1111/1001,Children and Young People,CYP,Premises Related,BAA,08/03/2018,12-11893,371.40,ARC Property Services Partnership L,,
Nottinghamshire County Council,1111/1001,Children and Young People,CYP,Premises Related,BAA,16/03/2018,12-12709,97.69,ARC Property Services Partnership L,,
Nottinghamshire County Council,1111/1001,Children and Young People,CYP,Premises Related,BAA,16/03/2018,12-12711,13527.16,ARC Property Services Partnership L,,
Nottinghamshire County Council,1111/1001,Children and Young People,CYP,Premises Related,BAA,26/03/2018,12-16206,6494.95,ARC Property Services Partnership L,,
Nottinghamshire County Council,1111/1001,Children and Young People,CYP,Premises Related,BAA,26/03/2018,12-16212,1291.96,ARC Property Services Partnership L,,
Nottinghamshire County Council,1111/1001,Children and Young People,CYP,Premises Related,BDA,01/03/2018,12-10011,3500,Diocese of Hallam Trustee,,
Nottinghamshire County Council,1111/1001,Children and Young People,CYP,Premises Related,BDA,01/03/2018,12-10018,805.00,Bauland Properties Limited,,
Nottinghamshire County Council,1111/1001,Children and Young People,CYP,Premises Related,BDA,01/03/2018,12-10019,8274.24,Ekmw Summit Centre,,
Nottinghamshire County Council,1111/1001,Children and Young People,CYP,Premises Related,BDA,01/03/2018,12-10020,575.00,Jillings Estates Ltd,,
Nottinghamshire County Council,1111/1001,Children and Young People,CYP,Premises Related,BDA,01/03/2018,12-10023,7500,Capita Property & Infrastructure Lt,,
Nottinghamshire County Council,1111/1001,Children and Young People,CYP,Premises Related,BDA,01/03/2018,12-10025,565,Bairstow Eves Nottingham T/A Countr,,
Nottinghamshire County Council,1111/1001,Children and Young People,CYP,Premises Related,BDA,01/03/2018,12-16821,5700,Blue Bell Hill Academy Trust,,
Nottinghamshire County Council,1111/1001,Children and Young People,CYP,Premises Related,BDA,08/03/2018,12-10029,9316.66,William Gladstone C of E Primary Ac,,
Nottinghamshire County Council,1111/1001,Children and Young People,CYP,Premises Related,BDA,08/03/2018,12-10030,4658.33,William Gladstone C of E Primary Ac,,
Nottinghamshire County Council,1111/1001,Children and Young People,CYP,Premises Related,BDA,09/03/2018,12-10121,487.5,South Normanton Comm Interest Compa,,
Nottinghamshire County Council,1111/1001,Children and Young People,CYP,Premises Related,BDA,12/03/2018,12-17022,2764.16,Harworth & Bircotes Town Council,,
Nottinghamshire County Council,1111/1001,Children and Young People,CYP,Premises Related,BDA,15/03/2018,12-12552,3181.82,Active4Today Ltd,,
Nottinghamshire County Council,1111/1001,Children and Young People,CYP,Premises Related,BDA,19/03/2018,12-17319,3341.42,Compass Contract Services (U.K.) Lt,,
Nottinghamshire County Council,1111/1001,Children and Young People,CYP,Premises Related,BDA,19/03/2018,12-17326,"2,780.35",Compass Contract Services (U.K.) Lt,,
Nottinghamshire County Council,1111/1001,Children and Young People,CYP,Premises Related,BDA,19/03/2018,12-17339,"6,220.62","Culture, Learning & Libraries (Midl",,
Nottinghamshire County Council,1111/1001,Children and Young People,CYP,Premises Related,BDA,20/03/2018,12-17369,"3,329.10",Compass Contract Services (U.K.) Lt,,
Nottinghamshire County Council,1111/1001,Children and Young People,CYP,Premises Related,BDA,22/03/2018,12-17489,"5,298.78",Compass Contract Services (U.K.) Lt,,
Nottinghamshire County Council,1111/1001,Children and Young People,CYP,Premises Related,BDA,23/03/2018,12-17491,"4,134.28",Compass Contract Services (U.K.) Lt,,
Nottinghamshire County Council,1111/1001,Children and Young People,CYP,Premises Related,BDA,26/03/2018,12-17433,862.4,Rotel Leisure Ltd T/A The Towers,,
Nottinghamshire County Council,1111/1001,Children and Young People,CYP,Premises Related,BFA,07/03/2018,12-11512,847.06,Severn Trent Water Ltd,,
Nottinghamshire County Council,1111/1001,Children and Young People,CYP,Premises Related,BJA,20/03/2018,12-17355,"2,004.15",Dunster House Ltd,,
Nottinghamshire County Council,1111/1001,Children and Young People,CYP,Transport Related,CAA,15/03/2018,12-12554,1111.83,Via East Midlands Ltd,,
Nottinghamshire County Council,1111/1001,Children and Young People,CYP,Transport Related,CAA,19/03/2018,12-13829,235.44,Via East Midlands Ltd,,
Nottinghamshire County Council,1111/1001,Children and Young People,CYP,Transport Related,CAA,22/03/2018,12-15694,1357.86,Via East Midlands Ltd,,
Nottinghamshire County Council,1111/1001,Children and Young People,CYP,Transport Related,CAA,29/03/2018,12-16694,79.50,Via East Midlands Ltd,,
Nottinghamshire County Council,1111/1001,Children and Young People,CYP,Transport Related,CCA,08/03/2018,12-11543,1965,Taxicover Uk Ltd,,
Nottinghamshire County Council,1111/1001,Children and Young People,CYP,Transport Related,CCA,08/03/2018,12-11545,864,Southside Cars,,
Nottinghamshire County Council,1111/1001,Children and Young People,CYP,Transport Related,CCA,08/03/2018,12-11546,"2,077.20",Southside Cars,,
Nottinghamshire County Council,1111/1001,Children and Young People,CYP,Transport Related,CCA,08/03/2018,12-11548,915,Southside Cars,,
Nottinghamshire County Council,1111/1001,Children and Young People,CYP,Transport Related,CCA,08/03/2018,12-11549,"1,410.00",Southside Cars,,
Nottinghamshire County Council,1111/1001,Children and Young People,CYP,Transport Related,CCA,08/03/2018,12-11550,"1,350.00",Southside Cars,,
Nottinghamshire County Council,1111/1001,Children and Young People,CYP,Transport Related,CCA,08/03/2018,12-11551,"1,260.00",Southside Cars,,
Nottinghamshire County Council,1111/1001,Children and Young People,CYP,Transport Related,CCA,08/03/2018,12-11552,1750,All Wayz Travel,,
Nottinghamshire County Council,1111/1001,Children and Young People,CYP,Transport Related,CCA,08/03/2018,12-11554,1125,All Wayz Travel,,
Nottinghamshire County Council,1111/1001,Children and Young People,CYP,Transport Related,CCA,08/03/2018,12-11556,1834.42,F4Control Ltd (t/a First4care),,
Nottinghamshire County Council,1111/1001,Children and Young People,CYP,Transport Related,CCA,08/03/2018,12-11558,1511.86,F4Control Ltd (t/a First4care),,
Nottinghamshire County Council,1111/1001,Children and Young People,CYP,Transport Related,CCA,08/03/2018,12-11559,1620.22,F4Control Ltd (t/a First4care),,
Nottinghamshire County Council,1111/1001,Children and Young People,CYP,Transport Related,CCA,08/03/2018,12-11560,"1,637.86",F4Control Ltd (t/a First4care),,
Nottinghamshire County Council,1111/1001,Children and Young People,CYP,Transport Related,CCA,08/03/2018,12-11561,1777.86,F4Control Ltd (t/a First4care),,
Nottinghamshire County Council,1111/1001,Children and Young People,CYP,Transport Related,CCA,08/03/2018,12-11562,"1,661.10",F4Control Ltd (t/a First4care),,
Nottinghamshire County Council,1111/1001,Children and Young People,CYP,Transport Related,CCA,08/03/2018,12-11563,1665.3,F4Control Ltd (t/a First4care),,
Nottinghamshire County Council,1111/1001,Children and Young People,CYP,Transport Related,CCA,08/03/2018,12-11564,"2,191.95",F4Control Ltd (t/a First4care),,
Nottinghamshire County Council,1111/1001,Children and Young People,CYP,Transport Related,CCA,08/03/2018,12-11570,2377.5,Martins Travel,,
Nottinghamshire County Council,1111/1001,Children and Young People,CYP,Transport Related,CCA,08/03/2018,12-11578,1260,Alpha Cars,,
Nottinghamshire County Council,1111/1001,Children and Young People,CYP,Transport Related,CCA,08/03/2018,12-11579,1350,Alpha Cars,,
Nottinghamshire County Council,1111/1001,Children and Young People,CYP,Transport Related,CCA,08/03/2018,12-11580,1260,Alpha Cars,,
Nottinghamshire County Council,1111/1001,Children and Young People,CYP,Transport Related,CCA,08/03/2018,12-11581,1980,Alpha Cars,,
Nottinghamshire County Council,1111/1001,Children and Young People,CYP,Transport Related,CCA,08/03/2018,12-11582,1246,Alpha Cars,,
Nottinghamshire County Council,1111/1001,Children and Young People,CYP,Transport Related,CCA,08/03/2018,12-11583,840,Alpha Cars,,
Nottinghamshire County Council,1111/1001,Children and Young People,CYP,Transport Related,CCA,08/03/2018,12-11584,1394.54,Arrow Specialised Transport Ltd,,
Nottinghamshire County Council,1111/1001,Children and Young People,CYP,Transport Related,CCA,08/03/2018,12-11585,1454.4,Arrow Specialised Transport Ltd,,
Nottinghamshire County Council,1111/1001,Children and Young People,CYP,Transport Related,CCA,08/03/2018,12-11586,1621.05,Arrow Specialised Transport Ltd,,
Nottinghamshire County Council,1111/1001,Children and Young People,CYP,Transport Related,CCA,08/03/2018,12-11587,1498,Arrow Specialised Transport Ltd,,
Nottinghamshire County Council,1111/1001,Children and Young People,CYP,Transport Related,CCA,08/03/2018,12-11588,"2,306.25",Arrow Specialised Transport Ltd,,
Nottinghamshire County Council,1111/1001,Children and Young People,CYP,Transport Related,CCA,08/03/2018,12-11589,"1,777.50",Arrow Specialised Transport Ltd,,
Nottinghamshire County Council,1111/1001,Children and Young People,CYP,Transport Related,CCA,08/03/2018,12-11590,"1,286.60",Arrow Specialised Transport Ltd,,
Nottinghamshire County Council,1111/1001,Children and Young People,CYP,Transport Related,CCA,08/03/2018,12-11591,"2,394.00",Arrow Specialised Transport Ltd,,
Nottinghamshire County Council,1111/1001,Children and Young People,CYP,Transport Related,CCA,08/03/2018,12-11592,2038.4,Arrow Specialised Transport Ltd,,
Nottinghamshire County Council,1111/1001,Children and Young People,CYP,Transport Related,CCA,08/03/2018,12-11593,1559.6,Arrow Specialised Transport Ltd,,
Nottinghamshire County Council,1111/1001,Children and Young People,CYP,Transport Related,CCA,08/03/2018,12-11594,2195.2,Arrow Specialised Transport Ltd,,
Nottinghamshire County Council,1111/1001,Children and Young People,CYP,Transport Related,CCA,08/03/2018,12-11595,1047.94,Arrow Specialised Transport Ltd,,
Nottinghamshire County Council,1111/1001,Children and Young People,CYP,Transport Related,CCA,08/03/2018,12-11597,"2,191.00",Arrow Specialised Transport Ltd,,
Nottinghamshire County Council,1111/1001,Children and Young People,CYP,Transport Related,CCA,08/03/2018,12-11598,1695,Arrow Specialised Transport Ltd,,
Nottinghamshire County Council,1111/1001,Children and Young People,CYP,Transport Related,CCA,08/03/2018,12-11599,"2,623.20",Arrow Specialised Transport Ltd,,
Nottinghamshire County Council,1111/1001,Children and Young People,CYP,Transport Related,CCA,08/03/2018,12-11600,"1,779.45",Arrow Specialised Transport Ltd,,
Nottinghamshire County Council,1111/1001,Children and Young People,CYP,Transport Related,CCA,08/03/2018,12-11601,"2,698.20",Arrow Specialised Transport Ltd,,
Nottinghamshire County Council,1111/1001,Children and Young People,CYP,Transport Related,CCA,08/03/2018,12-11602,1573.2,Arrow Specialised Transport Ltd,,
Nottinghamshire County Council,1111/1001,Children and Young People,CYP,Transport Related,CCA,08/03/2018,12-11603,1787.85,Arrow Specialised Transport Ltd,,
Nottinghamshire County Council,1111/1001,Children and Young People,CYP,Transport Related,CCA,08/03/2018,12-11604,1445.25,Arrow Specialised Transport Ltd,,
Nottinghamshire County Council,1111/1001,Children and Young People,CYP,Transport Related,CCA,08/03/2018,12-11605,1858.2,Arrow Specialised Transport Ltd,,
Nottinghamshire County Council,1111/1001,Children and Young People,CYP,Transport Related,CCA,08/03/2018,12-11606,"1,563.75",Arrow Specialised Transport Ltd,,
Nottinghamshire County Council,1111/1001,Children and Young People,CYP,Transport Related,CCA,08/03/2018,12-11607,1671.45,Arrow Specialised Transport Ltd,,
Nottinghamshire County Council,1111/1001,Children and Young People,CYP,Transport Related,CCA,08/03/2018,12-11608,1622.6,Arrow Specialised Transport Ltd,,
Nottinghamshire County Council,1111/1001,Children and Young People,CYP,Transport Related,CCA,08/03/2018,12-11609,"1,778.00",Arrow Specialised Transport Ltd,,
Nottinghamshire County Council,1111/1001,Children and Young People,CYP,Transport Related,CCA,08/03/2018,12-11610,"1,575.00",Arrow Specialised Transport Ltd,,
Nottinghamshire County Council,1111/1001,Children and Young People,CYP,Transport Related,CCA,08/03/2018,12-11611,"1,414.00",Arrow Specialised Transport Ltd,,
Nottinghamshire County Council,1111/1001,Children and Young People,CYP,Transport Related,CCA,08/03/2018,12-11612,1624,Arrow Specialised Transport Ltd,,
Nottinghamshire County Council,1111/1001,Children and Young People,CYP,Transport Related,CCA,08/03/2018,12-11613,"1,607.20",Arrow Specialised Transport Ltd,,
Nottinghamshire County Council,1111/1001,Children and Young People,CYP,Transport Related,CCA,08/03/2018,12-11614,1582,Arrow Specialised Transport Ltd,,
Nottinghamshire County Council,1111/1001,Children and Young People,CYP,Transport Related,CCA,08/03/2018,12-11615,"1,956.50",Arrow Specialised Transport Ltd,,
Nottinghamshire County Council,1111/1001,Children and Young People,CYP,Transport Related,CCA,08/03/2018,12-11616,"1,876.00",Arrow Specialised Transport Ltd,,
Nottinghamshire County Council,1111/1001,Children and Young People,CYP,Transport Related,CCA,08/03/2018,12-11617,"2,013.90",Arrow Specialised Transport Ltd,,
Nottinghamshire County Council,1111/1001,Children and Young People,CYP,Transport Related,CCA,08/03/2018,12-11618,"1,808.80",Arrow Specialised Transport Ltd,,
Nottinghamshire County Council,1111/1001,Children and Young People,CYP,Transport Related,CCA,08/03/2018,12-11619,"2,076.20",Arrow Specialised Transport Ltd,,
Nottinghamshire County Council,1111/1001,Children and Young People,CYP,Transport Related,CCA,08/03/2018,12-11620,1951.6,Arrow Specialised Transport Ltd,,
Nottinghamshire County Council,1111/1001,Children and Young People,CYP,Transport Related,CCA,08/03/2018,12-11622,1513.64,Arrow Specialised Transport Ltd,,
Nottinghamshire County Council,1111/1001,Children and Young People,CYP,Transport Related,CCA,08/03/2018,12-11624,1575.6,Arrow Specialised Transport Ltd,,
Nottinghamshire County Council,1111/1001,Children and Young People,CYP,Transport Related,CCA,08/03/2018,12-11625,"1,858.65",Arrow Specialised Transport Ltd,,
Nottinghamshire County Council,1111/1001,Children and Young People,CYP,Transport Related,CCA,08/03/2018,12-11626,"2,000.32",Arrow Specialised Transport Ltd,,
Nottinghamshire County Council,1111/1001,Children and Young People,CYP,Transport Related,CCA,08/03/2018,12-11627,"1,255.24",Arrow Specialised Transport Ltd,,
Nottinghamshire County Council,1111/1001,Children and Young People,CYP,Transport Related,CCA,08/03/2018,12-11628,2338,Arrow Specialised Transport Ltd,,
Nottinghamshire County Council,1111/1001,Children and Young People,CYP,Transport Related,CCA,08/03/2018,12-11629,3321.5,Arrow Specialised Transport Ltd,,
Nottinghamshire County Council,1111/1001,Children and Young People,CYP,Transport Related,CCA,08/03/2018,12-11630,1485.26,Arrow Specialised Transport Ltd,,
Nottinghamshire County Council,1111/1001,Children and Young People,CYP,Transport Related,CCA,08/03/2018,12-11631,2111.52,Arrow Specialised Transport Ltd,,
Nottinghamshire County Council,1111/1001,Children and Young People,CYP,Transport Related,CCA,08/03/2018,12-11633,1515.94,Arrow Specialised Transport Ltd,,
Nottinghamshire County Council,1111/1001,Children and Young People,CYP,Transport Related,CCA,08/03/2018,12-11635,2004,Arrow Specialised Transport Ltd,,
Nottinghamshire County Council,1111/1001,Children and Young People,CYP,Transport Related,CCA,08/03/2018,12-11637,1760.78,Arrow Specialised Transport Ltd,,
Nottinghamshire County Council,1111/1001,Children and Young People,CYP,Transport Related,CCA,08/03/2018,12-11638,1686.44,Arrow Specialised Transport Ltd,,
Nottinghamshire County Council,1111/1001,Children and Young People,CYP,Transport Related,CCA,08/03/2018,12-11639,2113.58,Arrow Specialised Transport Ltd,,
Nottinghamshire County Council,1111/1001,Children and Young People,CYP,Transport Related,CCA,08/03/2018,12-11640,1610.56,Arrow Specialised Transport Ltd,,
Nottinghamshire County Council,1111/1001,Children and Young People,CYP,Transport Related,CCA,08/03/2018,12-11641,1642.2,Arrow Specialised Transport Ltd,,
Nottinghamshire County Council,1111/1001,Children and Young People,CYP,Transport Related,CCA,08/03/2018,12-11642,2473.2,Arrow Specialised Transport Ltd,,
Nottinghamshire County Council,1111/1001,Children and Young People,CYP,Transport Related,CCA,08/03/2018,12-11643,1979.6,Bridges Transport Ltd,,
Nottinghamshire County Council,1111/1001,Children and Young People,CYP,Transport Related,CCA,08/03/2018,12-11646,1095.6,Bridges Transport Ltd,,
Nottinghamshire County Council,1111/1001,Children and Young People,CYP,Transport Related,CCA,08/03/2018,12-11648,1500,Bridges Transport Ltd,,
Nottinghamshire County Council,1111/1001,Children and Young People,CYP,Transport Related,CCA,08/03/2018,12-11649,1290.38,Bridges Transport Ltd,,
Nottinghamshire County Council,1111/1001,Children and Young People,CYP,Transport Related,CCA,08/03/2018,12-11650,"1,415.54",Bridges Transport Ltd,,
Nottinghamshire County Council,1111/1001,Children and Young People,CYP,Transport Related,CCA,08/03/2018,12-11651,2249.85,Bridges Transport Ltd,,
Nottinghamshire County Council,1111/1001,Children and Young People,CYP,Transport Related,CCA,08/03/2018,12-11652,1889.02,Bridges Transport Ltd,,
Nottinghamshire County Council,1111/1001,Children and Young People,CYP,Transport Related,CCA,08/03/2018,12-11653,1810.5,Bridges Transport Ltd,,
Nottinghamshire County Council,1111/1001,Children and Young People,CYP,Transport Related,CCA,08/03/2018,12-11654,1999.8,Bridges Transport Ltd,,
Nottinghamshire County Council,1111/1001,Children and Young People,CYP,Transport Related,CCA,08/03/2018,12-11655,810,Bridges Transport Ltd,,
Nottinghamshire County Council,1111/1001,Children and Young People,CYP,Transport Related,CCA,08/03/2018,12-11656,"1,148.00",Bridges Transport Ltd,,
Nottinghamshire County Council,1111/1001,Children and Young People,CYP,Transport Related,CCA,08/03/2018,12-11657,1113.15,Bridges Transport Ltd,,
Nottinghamshire County Council,1111/1001,Children and Young People,CYP,Transport Related,CCA,08/03/2018,12-11658,"13,477.14",Erewash Community Transport,,
Nottinghamshire County Council,1111/1001,Children and Young People,CYP,Transport Related,CCA,08/03/2018,12-11659,10482.22,Erewash Community Transport,,
Nottinghamshire County Council,1111/1001,Children and Young People,CYP,Transport Related,CCA,08/03/2018,12-11661,750,Fozcabs Newark Taxis,,
Nottinghamshire County Council,1111/1001,Children and Young People,CYP,Transport Related,CCA,08/03/2018,12-11663,840,Galaxy Cabs Ltd,,
Nottinghamshire County Council,1111/1001,Children and Young People,CYP,Transport Related,CCA,08/03/2018,12-11664,1650,Galaxy Cabs Ltd,,
Nottinghamshire County Council,1111/1001,Children and Young People,CYP,Transport Related,CCA,08/03/2018,12-11665,1635,Galaxy Cabs Ltd,,
Nottinghamshire County Council,1111/1001,Children and Young People,CYP,Transport Related,CCA,08/03/2018,12-11666,900,Galaxy Cabs Ltd,,
Nottinghamshire County Council,1111/1001,Children and Young People,CYP,Transport Related,CCA,08/03/2018,12-11668,1440,Galaxy Cabs Ltd,,
Nottinghamshire County Council,1111/1001,Children and Young People,CYP,Transport Related,CCA,08/03/2018,12-11670,1035.5,Headland Taxi Services,,
Nottinghamshire County Council,1111/1001,Children and Young People,CYP,Transport Related,CCA,08/03/2018,12-11671,1860,Horizon Travel,,
Nottinghamshire County Council,1111/1001,Children and Young People,CYP,Transport Related,CCA,08/03/2018,12-11672,"2,310.00",Horizon Travel,,
Nottinghamshire County Council,1111/1001,Children and Young People,CYP,Transport Related,CCA,08/03/2018,12-11673,"2,310.00",Ja Travel Ltd,,
Nottinghamshire County Council,1111/1001,Children and Young People,CYP,Transport Related,CCA,08/03/2018,12-11678,750.00,Ng11 Cars,,
Nottinghamshire County Council,1111/1001,Children and Young People,CYP,Transport Related,CCA,08/03/2018,12-11679,759.00,Ng11 Cars,,
Nottinghamshire County Council,1111/1001,Children and Young People,CYP,Transport Related,CCA,08/03/2018,12-11680,936.00,Ng11 Cars,,
Nottinghamshire County Council,1111/1001,Children and Young People,CYP,Transport Related,CCA,08/03/2018,12-11681,1350,Shelleys Taxis Ltd,,
Nottinghamshire County Council,1111/1001,Children and Young People,CYP,Transport Related,CCA,08/03/2018,12-11683,1566,Shelleys Taxis Ltd,,
Nottinghamshire County Council,1111/1001,Children and Young People,CYP,Transport Related,CCA,08/03/2018,12-11684,"1,050.00",Shelleys Taxis Ltd,,
Nottinghamshire County Council,1111/1001,Children and Young People,CYP,Transport Related,CCA,08/03/2018,12-11685,1470,Shelleys Taxis Ltd,,
Nottinghamshire County Council,1111/1001,Children and Young People,CYP,Transport Related,CCA,08/03/2018,12-11686,960.00,Shelleys Taxis Ltd,,
Nottinghamshire County Council,1111/1001,Children and Young People,CYP,Transport Related,CCA,08/03/2018,12-11687,1456,Shelleys Taxis Ltd,,
Nottinghamshire County Council,1111/1001,Children and Young People,CYP,Transport Related,CCA,08/03/2018,12-11688,"1,770.00",Sprays Transport Ltd,,
Nottinghamshire County Council,1111/1001,Children and Young People,CYP,Transport Related,CCA,08/03/2018,12-11689,1456,Sprays Transport Ltd,,
Nottinghamshire County Council,1111/1001,Children and Young People,CYP,Transport Related,CCA,08/03/2018,12-11690,2107.05,Sprays Transport Ltd,,
Nottinghamshire County Council,1111/1001,Children and Young People,CYP,Transport Related,CCA,08/03/2018,12-11691,"1,830.00",Sprays Transport Ltd,,
Nottinghamshire County Council,1111/1001,Children and Young People,CYP,Transport Related,CCA,08/03/2018,12-11692,1751.4,Sprays Transport Ltd,,
Nottinghamshire County Council,1111/1001,Children and Young People,CYP,Transport Related,CCA,08/03/2018,12-11693,"2,368.10",Sprays Transport Ltd,,
Nottinghamshire County Council,1111/1001,Children and Young People,CYP,Transport Related,CCA,08/03/2018,12-11694,"1,830.00",Sprays Transport Ltd,,
Nottinghamshire County Council,1111/1001,Children and Young People,CYP,Transport Related,CCA,08/03/2018,12-11695,"1,770.00",Sprays Transport Ltd,,
Nottinghamshire County Council,1111/1001,Children and Young People,CYP,Transport Related,CCA,08/03/2018,12-11696,2400,Sprays Transport Ltd,,
Nottinghamshire County Council,1111/1001,Children and Young People,CYP,Transport Related,CCA,08/03/2018,12-11697,2670,Vallances Coaches,,
Nottinghamshire County Council,1111/1001,Children and Young People,CYP,Transport Related,CCA,08/03/2018,12-11698,2610,Vallances Coaches,,
Nottinghamshire County Council,1111/1001,Children and Young People,CYP,Transport Related,CCA,08/03/2018,12-11700,2670,Vallances Coaches,,
Nottinghamshire County Council,1111/1001,Children and Young People,CYP,Transport Related,CCA,08/03/2018,12-11701,1890,Vallances Coaches,,
Nottinghamshire County Council,1111/1001,Children and Young People,CYP,Transport Related,CCA,08/03/2018,12-11702,533.28,Elkingtons Park Garage,,
Nottinghamshire County Council,1111/1001,Children and Young People,CYP,Transport Related,CCA,08/03/2018,12-11704,1733.16,F4Control Ltd (t/a First4care),,
Nottinghamshire County Council,1111/1001,Children and Young People,CYP,Transport Related,CCA,08/03/2018,12-11707,"2,268.45",F4Control Ltd (t/a First4care),,
Nottinghamshire County Council,1111/1001,Children and Young People,CYP,Transport Related,CCA,08/03/2018,12-11708,1855.98,F4Control Ltd (t/a First4care),,
Nottinghamshire County Council,1111/1001,Children and Young People,CYP,Transport Related,CCA,08/03/2018,12-11709,"1,466.52",F4Control Ltd (t/a First4care),,
Nottinghamshire County Council,1111/1001,Children and Young People,CYP,Transport Related,CCA,08/03/2018,12-11710,1954.08,F4Control Ltd (t/a First4care),,
Nottinghamshire County Council,1111/1001,Children and Young People,CYP,Transport Related,CCA,08/03/2018,12-11711,1002.15,F4Control Ltd (t/a First4care),,
Nottinghamshire County Council,1111/1001,Children and Young People,CYP,Transport Related,CCA,08/03/2018,12-11713,1803.48,F4Control Ltd (t/a First4care),,
Nottinghamshire County Council,1111/1001,Children and Young People,CYP,Transport Related,CCA,08/03/2018,12-11714,1898.13,F4Control Ltd (t/a First4care),,
Nottinghamshire County Council,1111/1001,Children and Young People,CYP,Transport Related,CCA,08/03/2018,12-11716,1652.85,F4Control Ltd (t/a First4care),,
Nottinghamshire County Council,1111/1001,Children and Young People,CYP,Transport Related,CCA,08/03/2018,12-11718,1809.3,F4Control Ltd (t/a First4care),,
Nottinghamshire County Council,1111/1001,Children and Young People,CYP,Transport Related,CCA,08/03/2018,12-11719,1901.85,F4Control Ltd (t/a First4care),,
Nottinghamshire County Council,1111/1001,Children and Young People,CYP,Transport Related,CCA,08/03/2018,12-11721,1858.5,F4Control Ltd (t/a First4care),,
Nottinghamshire County Council,1111/1001,Children and Young People,CYP,Transport Related,CCA,08/03/2018,12-11722,1784.16,F4Control Ltd (t/a First4care),,
Nottinghamshire County Council,1111/1001,Children and Young People,CYP,Transport Related,CCA,08/03/2018,12-11723,1810.34,F4Control Ltd (t/a First4care),,
Nottinghamshire County Council,1111/1001,Children and Young People,CYP,Transport Related,CCA,08/03/2018,12-11724,1543.08,F4Control Ltd (t/a First4care),,
Nottinghamshire County Council,1111/1001,Children and Young People,CYP,Transport Related,CCA,08/03/2018,12-11725,"1,098.86",F4Control Ltd (t/a First4care),,
Nottinghamshire County Council,1111/1001,Children and Young People,CYP,Transport Related,CCA,08/03/2018,12-11727,"2,538.45",F4Control Ltd (t/a First4care),,
Nottinghamshire County Council,1111/1001,Children and Young People,CYP,Transport Related,CCA,08/03/2018,12-11728,"2,220.90",F4Control Ltd (t/a First4care),,
Nottinghamshire County Council,1111/1001,Children and Young People,CYP,Transport Related,CCA,08/03/2018,12-11729,"1,564.50",F4Control Ltd (t/a First4care),,
Nottinghamshire County Council,1111/1001,Children and Young People,CYP,Transport Related,CCA,08/03/2018,12-11730,1868.72,F4Control Ltd (t/a First4care),,
Nottinghamshire County Council,1111/1001,Children and Young People,CYP,Transport Related,CCA,08/03/2018,12-11731,1868.72,F4Control Ltd (t/a First4care),,
Nottinghamshire County Council,1111/1001,Children and Young People,CYP,Transport Related,CCA,08/03/2018,12-11732,1834.8,F4Control Ltd (t/a First4care),,
Nottinghamshire County Council,1111/1001,Children and Young People,CYP,Transport Related,CCA,08/03/2018,12-11734,1724.7,BN Gibson Ltd,,
Nottinghamshire County Council,1111/1001,Children and Young People,CYP,Transport Related,CCA,08/03/2018,12-11735,"1,672.35",BN Gibson Ltd,,
Nottinghamshire County Council,1111/1001,Children and Young People,CYP,Transport Related,CCA,08/03/2018,12-11736,1921.05,BN Gibson Ltd,,
Nottinghamshire County Council,1111/1001,Children and Young People,CYP,Transport Related,CCA,08/03/2018,12-11737,"3,401.30",BN Gibson Ltd,,
Nottinghamshire County Council,1111/1001,Children and Young People,CYP,Transport Related,CCA,08/03/2018,12-11738,"1,853.60",BN Gibson Ltd,,
Nottinghamshire County Council,1111/1001,Children and Young People,CYP,Transport Related,CCA,08/03/2018,12-11739,"2,618.70",BN Gibson Ltd,,
Nottinghamshire County Council,1111/1001,Children and Young People,CYP,Transport Related,CCA,08/03/2018,12-11740,1663.76,BN Gibson Ltd,,
Nottinghamshire County Council,1111/1001,Children and Young People,CYP,Transport Related,CCA,08/03/2018,12-11741,1597.82,BN Gibson Ltd,,
Nottinghamshire County Council,1111/1001,Children and Young People,CYP,Transport Related,CCA,08/03/2018,12-11742,1476.58,BN Gibson Ltd,,
Nottinghamshire County Council,1111/1001,Children and Young People,CYP,Transport Related,CCA,08/03/2018,12-11744,1867.5,K & S Coaches,,
Nottinghamshire County Council,1111/1001,Children and Young People,CYP,Transport Related,CCA,08/03/2018,12-11745,"1,798.30",Midfield Travel,,
Nottinghamshire County Council,1111/1001,Children and Young People,CYP,Transport Related,CCA,08/03/2018,12-11746,1708.95,Midfield Travel,,
Nottinghamshire County Council,1111/1001,Children and Young People,CYP,Transport Related,CCA,08/03/2018,12-11747,848.4,D G Private Hire Ltd,,
Nottinghamshire County Council,1111/1001,Children and Young People,CYP,Transport Related,CCA,08/03/2018,12-11748,"1,425.00",D G Private Hire Ltd,,
Nottinghamshire County Council,1111/1001,Children and Young People,CYP,Transport Related,CCA,08/03/2018,12-11749,"1,500.00",D G Private Hire Ltd,,
Nottinghamshire County Council,1111/1001,Children and Young People,CYP,Transport Related,CCA,08/03/2018,12-11750,910.00,D G Private Hire Ltd,,
Nottinghamshire County Council,1111/1001,Children and Young People,CYP,Transport Related,CCA,08/03/2018,12-11771,3008.7,Marshalls Of Sutton On Trent Ltd,,
Nottinghamshire County Council,1111/1001,Children and Young People,CYP,Transport Related,CCA,08/03/2018,12-11816,515.04,Rio Cabs,,
Nottinghamshire County Council,1111/1001,Children and Young People,CYP,Transport Related,CCA,08/03/2018,12-11817,693,Rio Cabs,,
Nottinghamshire County Council,1111/1001,Children and Young People,CYP,Transport Related,CCA,08/03/2018,12-11819,"1,198.80",Rio Cabs,,
Nottinghamshire County Council,1111/1001,Children and Young People,CYP,Transport Related,CCA,08/03/2018,12-11820,600.00,Rio Cabs,,
Nottinghamshire County Council,1111/1001,Children and Young People,CYP,Transport Related,CCA,08/03/2018,12-11821,540.00,Town Cars (UK) Ltd,,
Nottinghamshire County Council,1111/1001,Children and Young People,CYP,Transport Related,CCA,08/03/2018,12-11833,"1,515.00",Trevor Bailey t/a Trevor Bailey Tra,,
Nottinghamshire County Council,1111/1001,Children and Young People,CYP,Transport Related,CCA,08/03/2018,12-11834,"1,200.00",Eastwood Cars (UK) Ltd,,
Nottinghamshire County Council,1111/1001,Children and Young People,CYP,Transport Related,CCA,08/03/2018,12-11835,700,Eastwood Cars (UK) Ltd,,
Nottinghamshire County Council,1111/1001,Children and Young People,CYP,Transport Related,CCA,08/03/2018,12-11837,1087.5,Sean's Taxi Services,,
Nottinghamshire County Council,1111/1001,Children and Young People,CYP,Transport Related,CCA,08/03/2018,12-11842,840,Shiny Sky Ltd T/A A2b Cars,,
Nottinghamshire County Council,1111/1001,Children and Young People,CYP,Transport Related,CCA,08/03/2018,12-11843,"1,740.00",Shiny Sky Ltd T/A A2b Cars,,
Nottinghamshire County Council,1111/1001,Children and Young People,CYP,Transport Related,CCA,08/03/2018,12-11844,990.00,Shiny Sky Ltd T/A A2b Cars,,
Nottinghamshire County Council,1111/1001,Children and Young People,CYP,Transport Related,CCA,08/03/2018,12-11847,760.00,Shiny Sky Ltd T/A A2b Cars,,
Nottinghamshire County Council,1111/1001,Children and Young People,CYP,Transport Related,CCA,08/03/2018,12-11849,1750,A Travel,,
Nottinghamshire County Council,1111/1001,Children and Young People,CYP,Transport Related,CCA,08/03/2018,12-11850,675,ADF Cars Ltd,,
Nottinghamshire County Council,1111/1001,Children and Young People,CYP,Transport Related,CCA,12/03/2018,12-11956,2565,Taxicover Uk Ltd,,
Nottinghamshire County Council,1111/1001,Children and Young People,CYP,Transport Related,CCA,12/03/2018,12-11957,3180,Taxicover Uk Ltd,,
Nottinghamshire County Council,1111/1001,Children and Young People,CYP,Transport Related,CCA,12/03/2018,12-11958,1385.72,Taxicover Uk Ltd,,
Nottinghamshire County Council,1111/1001,Children and Young People,CYP,Transport Related,CCA,12/03/2018,12-11959,1316,Taxicover Uk Ltd,,
Nottinghamshire County Council,1111/1001,Children and Young People,CYP,Transport Related,CCA,12/03/2018,12-11960,2062.5,Taxicover Uk Ltd,,
Nottinghamshire County Council,1111/1001,Children and Young People,CYP,Transport Related,CCA,12/03/2018,12-11961,1260,Taxicover Uk Ltd,,
Nottinghamshire County Council,1111/1001,Children and Young People,CYP,Transport Related,CCA,12/03/2018,12-11962,2212,Taxicover Uk Ltd,,
Nottinghamshire County Council,1111/1001,Children and Young People,CYP,Transport Related,CCA,12/03/2018,12-11963,1652,Taxicover Uk Ltd,,
Nottinghamshire County Council,1111/1001,Children and Young People,CYP,Transport Related,CCA,12/03/2018,12-11964,2757.3,Taxicover Uk Ltd,,
Nottinghamshire County Council,1111/1001,Children and Young People,CYP,Transport Related,CCA,12/03/2018,12-11965,2112.46,Taxicover Uk Ltd,,
Nottinghamshire County Council,1111/1001,Children and Young People,CYP,Transport Related,CCA,12/03/2018,12-11966,2246.86,Taxicover Uk Ltd,,
Nottinghamshire County Council,1111/1001,Children and Young People,CYP,Transport Related,CCA,12/03/2018,12-11967,"2,389.66",Taxicover Uk Ltd,,
Nottinghamshire County Council,1111/1001,Children and Young People,CYP,Transport Related,CCA,12/03/2018,12-11968,"2,601.76",Taxicover Uk Ltd,,
Nottinghamshire County Council,1111/1001,Children and Young People,CYP,Transport Related,CCA,12/03/2018,12-11969,2812.32,Taxicover Uk Ltd,,
Nottinghamshire County Council,1111/1001,Children and Young People,CYP,Transport Related,CCA,12/03/2018,12-11970,"2,253.58",Taxicover Uk Ltd,,
Nottinghamshire County Council,1111/1001,Children and Young People,CYP,Transport Related,CCA,12/03/2018,12-11971,"2,268.00",Taxicover Uk Ltd,,
Nottinghamshire County Council,1111/1001,Children and Young People,CYP,Transport Related,CCA,12/03/2018,12-11972,"2,367.96",Taxicover Uk Ltd,,
Nottinghamshire County Council,1111/1001,Children and Young People,CYP,Transport Related,CCA,12/03/2018,12-11973,2772,Taxicover Uk Ltd,,
Nottinghamshire County Council,1111/1001,Children and Young People,CYP,Transport Related,CCA,12/03/2018,12-11974,"2,436.00",Taxicover Uk Ltd,,
Nottinghamshire County Council,1111/1001,Children and Young People,CYP,Transport Related,CCA,12/03/2018,12-11987,765,Southside Cars,,
Nottinghamshire County Council,1111/1001,Children and Young People,CYP,Transport Related,CCA,12/03/2018,12-11988,1400,Southside Cars,,
Nottinghamshire County Council,1111/1001,Children and Young People,CYP,Transport Related,CCA,12/03/2018,12-11989,"1,893.75",Central Cars Nottm Ltd,,
Nottinghamshire County Council,1111/1001,Children and Young People,CYP,Transport Related,CCA,12/03/2018,12-11994,680.00,200 Cars Ltd,,
Nottinghamshire County Council,1111/1001,Children and Young People,CYP,Transport Related,CCA,12/03/2018,12-11995,1190,Ace Of Mansfield Ltd,,
Nottinghamshire County Council,1111/1001,Children and Young People,CYP,Transport Related,CCA,12/03/2018,12-11996,690.00,Ace Of Mansfield Ltd,,
Nottinghamshire County Council,1111/1001,Children and Young People,CYP,Transport Related,CCA,12/03/2018,12-11999,1347.34,Ace Of Mansfield Ltd,,
Nottinghamshire County Council,1111/1001,Children and Young People,CYP,Transport Related,CCA,12/03/2018,12-12000,1680,Ace Of Mansfield Ltd,,
Nottinghamshire County Council,1111/1001,Children and Young People,CYP,Transport Related,CCA,12/03/2018,12-12002,1213.65,Amvale Ltd,,
Nottinghamshire County Council,1111/1001,Children and Young People,CYP,Transport Related,CCA,12/03/2018,12-12003,"2,798.04",Arrow Specialised Transport Ltd,,
Nottinghamshire County Council,1111/1001,Children and Young People,CYP,Transport Related,CCA,12/03/2018,12-12004,"1,996.40",Arrow Specialised Transport Ltd,,
Nottinghamshire County Council,1111/1001,Children and Young People,CYP,Transport Related,CCA,12/03/2018,12-12005,1250,Arrow Specialised Transport Ltd,,
Nottinghamshire County Council,1111/1001,Children and Young People,CYP,Transport Related,CCA,12/03/2018,12-12006,832.13,Arrow Specialised Transport Ltd,,
Nottinghamshire County Council,1111/1001,Children and Young People,CYP,Transport Related,CCA,12/03/2018,12-12008,"1,676.60",Arrow Specialised Transport Ltd,,
Nottinghamshire County Council,1111/1001,Children and Young People,CYP,Transport Related,CCA,12/03/2018,12-12009,1572.5,Arrow Specialised Transport Ltd,,
Nottinghamshire County Council,1111/1001,Children and Young People,CYP,Transport Related,CCA,12/03/2018,12-12010,1464.5,Arrow Specialised Transport Ltd,,
Nottinghamshire County Council,1111/1001,Children and Young People,CYP,Transport Related,CCA,12/03/2018,12-12011,"1,666.50",Arrow Specialised Transport Ltd,,
Nottinghamshire County Council,1111/1001,Children and Young People,CYP,Transport Related,CCA,12/03/2018,12-12012,1395.5,Arrow Specialised Transport Ltd,,
Nottinghamshire County Council,1111/1001,Children and Young People,CYP,Transport Related,CCA,12/03/2018,12-12013,1367,Arrow Specialised Transport Ltd,,
Nottinghamshire County Council,1111/1001,Children and Young People,CYP,Transport Related,CCA,12/03/2018,12-12014,1215,Arrow Specialised Transport Ltd,,
Nottinghamshire County Council,1111/1001,Children and Young People,CYP,Transport Related,CCA,12/03/2018,12-12015,2287.5,Arrow Specialised Transport Ltd,,
Nottinghamshire County Council,1111/1001,Children and Young People,CYP,Transport Related,CCA,12/03/2018,12-12016,"1,677.20",Arrow Specialised Transport Ltd,,
Nottinghamshire County Council,1111/1001,Children and Young People,CYP,Transport Related,CCA,12/03/2018,12-12017,1495.5,Arrow Specialised Transport Ltd,,
Nottinghamshire County Council,1111/1001,Children and Young People,CYP,Transport Related,CCA,12/03/2018,12-12018,"4,382.00",Arrow Specialised Transport Ltd,,
Nottinghamshire County Council,1111/1001,Children and Young People,CYP,Transport Related,CCA,12/03/2018,12-12019,2551.5,Arrow Specialised Transport Ltd,,
Nottinghamshire County Council,1111/1001,Children and Young People,CYP,Transport Related,CCA,12/03/2018,12-12020,1522.5,Arrow Specialised Transport Ltd,,
Nottinghamshire County Council,1111/1001,Children and Young People,CYP,Transport Related,CCA,12/03/2018,12-12021,1547,Arrow Specialised Transport Ltd,,
Nottinghamshire County Council,1111/1001,Children and Young People,CYP,Transport Related,CCA,12/03/2018,12-12025,"1,049.86",Bridges Transport Ltd,,
Nottinghamshire County Council,1111/1001,Children and Young People,CYP,Transport Related,CCA,12/03/2018,12-12026,2310,Bridges Transport Ltd,,
Nottinghamshire County Council,1111/1001,Children and Young People,CYP,Transport Related,CCA,12/03/2018,12-12030,1263.22,Ja Travel Ltd,,
Nottinghamshire County Council,1111/1001,Children and Young People,CYP,Transport Related,CCA,12/03/2018,12-12032,"1,998.00",Ng11 Cars,,
Nottinghamshire County Council,1111/1001,Children and Young People,CYP,Transport Related,CCA,12/03/2018,12-12035,750.00,Shelleys Taxis Ltd,,
Nottinghamshire County Council,1111/1001,Children and Young People,CYP,Transport Related,CCA,12/03/2018,12-12038,595,Shelleys Taxis Ltd,,
Nottinghamshire County Council,1111/1001,Children and Young People,CYP,Transport Related,CCA,12/03/2018,12-12039,2420,Sprays Transport Ltd,,
Nottinghamshire County Council,1111/1001,Children and Young People,CYP,Transport Related,CCA,12/03/2018,12-12040,"2,177.56",Sprays Transport Ltd,,
Nottinghamshire County Council,1111/1001,Children and Young People,CYP,Transport Related,CCA,12/03/2018,12-12042,"1,313.52",BN Gibson Ltd,,
Nottinghamshire County Council,1111/1001,Children and Young People,CYP,Transport Related,CCA,12/03/2018,12-12043,1984.5,BN Gibson Ltd,,
Nottinghamshire County Council,1111/1001,Children and Young People,CYP,Transport Related,CCA,12/03/2018,12-12044,2316,BN Gibson Ltd,,
Nottinghamshire County Council,1111/1001,Children and Young People,CYP,Transport Related,CCA,12/03/2018,12-12045,"2,364.10",BN Gibson Ltd,,
Nottinghamshire County Council,1111/1001,Children and Young People,CYP,Transport Related,CCA,12/03/2018,12-12046,1776.9,BN Gibson Ltd,,
Nottinghamshire County Council,1111/1001,Children and Young People,CYP,Transport Related,CCA,12/03/2018,12-12047,1724.7,BN Gibson Ltd,,
Nottinghamshire County Council,1111/1001,Children and Young People,CYP,Transport Related,CCA,12/03/2018,12-12048,"1,463.40",BN Gibson Ltd,,
Nottinghamshire County Council,1111/1001,Children and Young People,CYP,Transport Related,CCA,12/03/2018,12-12049,571.43,BN Gibson Ltd,,
Nottinghamshire County Council,1111/1001,Children and Young People,CYP,Transport Related,CCA,12/03/2018,12-12051,2265.6,BN Gibson Ltd,,
Nottinghamshire County Council,1111/1001,Children and Young People,CYP,Transport Related,CCA,12/03/2018,12-12052,2197.05,BN Gibson Ltd,,
Nottinghamshire County Council,1111/1001,Children and Young People,CYP,Transport Related,CCA,12/03/2018,12-12053,"2,711.10",BN Gibson Ltd,,
Nottinghamshire County Council,1111/1001,Children and Young People,CYP,Transport Related,CCA,12/03/2018,12-12054,2490.46,BN Gibson Ltd,,
Nottinghamshire County Council,1111/1001,Children and Young People,CYP,Transport Related,CCA,12/03/2018,12-12055,2242.38,BN Gibson Ltd,,
Nottinghamshire County Council,1111/1001,Children and Young People,CYP,Transport Related,CCA,12/03/2018,12-12056,"1,531.97",BN Gibson Ltd,,
Nottinghamshire County Council,1111/1001,Children and Young People,CYP,Transport Related,CCA,12/03/2018,12-12058,"2,453.92",BN Gibson Ltd,,
Nottinghamshire County Council,1111/1001,Children and Young People,CYP,Transport Related,CCA,12/03/2018,12-12059,4315.95,BN Gibson Ltd,,
Nottinghamshire County Council,1111/1001,Children and Young People,CYP,Transport Related,CCA,12/03/2018,12-12060,2263.24,BN Gibson Ltd,,
Nottinghamshire County Council,1111/1001,Children and Young People,CYP,Transport Related,CCA,12/03/2018,12-12061,2851.1,BN Gibson Ltd,,
Nottinghamshire County Council,1111/1001,Children and Young People,CYP,Transport Related,CCA,12/03/2018,12-12062,"2,262.40",BN Gibson Ltd,,
Nottinghamshire County Council,1111/1001,Children and Young People,CYP,Transport Related,CCA,12/03/2018,12-12063,1785.7,BN Gibson Ltd,,
Nottinghamshire County Council,1111/1001,Children and Young People,CYP,Transport Related,CCA,12/03/2018,12-12064,1463.4,BN Gibson Ltd,,
Nottinghamshire County Council,1111/1001,Children and Young People,CYP,Transport Related,CCA,12/03/2018,12-12065,2260.05,BN Gibson Ltd,,
Nottinghamshire County Council,1111/1001,Children and Young People,CYP,Transport Related,CCA,12/03/2018,12-12066,2576.84,BN Gibson Ltd,,
Nottinghamshire County Council,1111/1001,Children and Young People,CYP,Transport Related,CCA,12/03/2018,12-12067,1400,BN Gibson Ltd,,
Nottinghamshire County Council,1111/1001,Children and Young People,CYP,Transport Related,CCA,12/03/2018,12-12068,1291.92,BN Gibson Ltd,,
Nottinghamshire County Council,1111/1001,Children and Young People,CYP,Transport Related,CCA,12/03/2018,12-12069,1476.58,BN Gibson Ltd,,
Nottinghamshire County Council,1111/1001,Children and Young People,CYP,Transport Related,CCA,12/03/2018,12-12070,"1,898.40",BN Gibson Ltd,,
Nottinghamshire County Council,1111/1001,Children and Young People,CYP,Transport Related,CCA,12/03/2018,12-12071,"1,430.38",BN Gibson Ltd,,
Nottinghamshire County Council,1111/1001,Children and Young People,CYP,Transport Related,CCA,12/03/2018,12-12072,2429.55,BN Gibson Ltd,,
Nottinghamshire County Council,1111/1001,Children and Young People,CYP,Transport Related,CCA,12/03/2018,12-12073,2892.19,BN Gibson Ltd,,
Nottinghamshire County Council,1111/1001,Children and Young People,CYP,Transport Related,CCA,12/03/2018,12-12074,"1,358.76",BN Gibson Ltd,,
Nottinghamshire County Council,1111/1001,Children and Young People,CYP,Transport Related,CCA,12/03/2018,12-12075,"1,358.76",BN Gibson Ltd,,
Nottinghamshire County Council,1111/1001,Children and Young People,CYP,Transport Related,CCA,12/03/2018,12-12076,1810.9,BN Gibson Ltd,,
Nottinghamshire County Council,1111/1001,Children and Young People,CYP,Transport Related,CCA,12/03/2018,12-12077,1774.36,BN Gibson Ltd,,
Nottinghamshire County Council,1111/1001,Children and Young People,CYP,Transport Related,CCA,12/03/2018,12-12078,450,D G Private Hire Ltd,,
Nottinghamshire County Council,1111/1001,Children and Young People,CYP,Transport Related,CCA,12/03/2018,12-12080,1350,D G Private Hire Ltd,,
Nottinghamshire County Council,1111/1001,Children and Young People,CYP,Transport Related,CCA,12/03/2018,12-12081,700,D G Private Hire Ltd,,
Nottinghamshire County Council,1111/1001,Children and Young People,CYP,Transport Related,CCA,12/03/2018,12-12082,735,D G Private Hire Ltd,,
Nottinghamshire County Council,1111/1001,Children and Young People,CYP,Transport Related,CCA,12/03/2018,12-12083,980,D G Private Hire Ltd,,
Nottinghamshire County Council,1111/1001,Children and Young People,CYP,Transport Related,CCA,12/03/2018,12-12084,"1,200.00",D G Private Hire Ltd,,
Nottinghamshire County Council,1111/1001,Children and Young People,CYP,Transport Related,CCA,12/03/2018,12-12085,1764,D G Private Hire Ltd,,
Nottinghamshire County Council,1111/1001,Children and Young People,CYP,Transport Related,CCA,12/03/2018,12-12086,637.50,D G Private Hire Ltd,,
Nottinghamshire County Council,1111/1001,Children and Young People,CYP,Transport Related,CCA,12/03/2018,12-12144,"3,351.26",Travel Wright Ltd,,
Nottinghamshire County Council,1111/1001,Children and Young People,CYP,Transport Related,CCA,12/03/2018,12-12146,215.57,Travel Wright Ltd,,
Nottinghamshire County Council,1111/1001,Children and Young People,CYP,Transport Related,CCA,12/03/2018,12-12148,576.40,P & P Taxis,,
Nottinghamshire County Council,1111/1001,Children and Young People,CYP,Transport Related,CCA,12/03/2018,12-12149,1470,P & P Taxis,,
Nottinghamshire County Council,1111/1001,Children and Young People,CYP,Transport Related,CCA,12/03/2018,12-12162,500.22,Bassetlaw Action Centre,,
Nottinghamshire County Council,1111/1001,Children and Young People,CYP,Transport Related,CCA,12/03/2018,12-12163,1466.4,Bassetlaw Action Centre,,
Nottinghamshire County Council,1111/1001,Children and Young People,CYP,Transport Related,CCA,12/03/2018,12-12165,702.00,Bassetlaw Action Centre,,
Nottinghamshire County Council,1111/1001,Children and Young People,CYP,Transport Related,CCA,12/03/2018,12-12166,780,Rio Cabs,,
Nottinghamshire County Council,1111/1001,Children and Young People,CYP,Transport Related,CCA,12/03/2018,12-12168,1942.5,Ace Cars,,
Nottinghamshire County Council,1111/1001,Children and Young People,CYP,Transport Related,CCA,12/03/2018,12-12169,"1,850.05",Ace Cars,,
Nottinghamshire County Council,1111/1001,Children and Young People,CYP,Transport Related,CCA,12/03/2018,12-12171,1417.5,Ace Cars,,
Nottinghamshire County Council,1111/1001,Children and Young People,CYP,Transport Related,CCA,12/03/2018,12-12172,1563.75,Ace Cars,,
Nottinghamshire County Council,1111/1001,Children and Young People,CYP,Transport Related,CCA,12/03/2018,12-12173,2242.5,Ace Cars,,
Nottinghamshire County Council,1111/1001,Children and Young People,CYP,Transport Related,CCA,12/03/2018,12-12174,"1,813.00",Ace Cars,,
Nottinghamshire County Council,1111/1001,Children and Young People,CYP,Transport Related,CCA,12/03/2018,12-12175,"1,606.50",Ace Cars,,
Nottinghamshire County Council,1111/1001,Children and Young People,CYP,Transport Related,CCA,12/03/2018,12-12176,2415,Ace Cars,,
Nottinghamshire County Council,1111/1001,Children and Young People,CYP,Transport Related,CCA,12/03/2018,12-12177,"2,557.00",Ace Cars,,
Nottinghamshire County Council,1111/1001,Children and Young People,CYP,Transport Related,CCA,12/03/2018,12-12178,758.5,Ace Cars,,
Nottinghamshire County Council,1111/1001,Children and Young People,CYP,Transport Related,CCA,12/03/2018,12-12179,1810.5,Ace Cars,,
Nottinghamshire County Council,1111/1001,Children and Young People,CYP,Transport Related,CCA,12/03/2018,12-12180,2242.5,Ace Cars,,
Nottinghamshire County Council,1111/1001,Children and Young People,CYP,Transport Related,CCA,12/03/2018,12-12181,"1,717.50",Ace Cars,,
Nottinghamshire County Council,1111/1001,Children and Young People,CYP,Transport Related,CCA,12/03/2018,12-12182,1969,Ace Cars,,
Nottinghamshire County Council,1111/1001,Children and Young People,CYP,Transport Related,CCA,12/03/2018,12-12183,"1,417.50",Ace Cars,,
Nottinghamshire County Council,1111/1001,Children and Young People,CYP,Transport Related,CCA,12/03/2018,12-12184,"1,417.50",Ace Cars,,
Nottinghamshire County Council,1111/1001,Children and Young People,CYP,Transport Related,CCA,12/03/2018,12-12186,1673,Ace Cars,,
Nottinghamshire County Council,1111/1001,Children and Young People,CYP,Transport Related,CCA,12/03/2018,12-12187,"1,792.50",Ace Cars,,
Nottinghamshire County Council,1111/1001,Children and Young People,CYP,Transport Related,CCA,12/03/2018,12-12188,2092.5,Ace Cars,,
Nottinghamshire County Council,1111/1001,Children and Young People,CYP,Transport Related,CCA,12/03/2018,12-12189,805.5,Ace Cars,,
Nottinghamshire County Council,1111/1001,Children and Young People,CYP,Transport Related,CCA,12/03/2018,12-12190,"1,792.50",Ace Cars,,
Nottinghamshire County Council,1111/1001,Children and Young People,CYP,Transport Related,CCA,12/03/2018,12-12191,1944.45,Ace Cars,,
Nottinghamshire County Council,1111/1001,Children and Young People,CYP,Transport Related,CCA,12/03/2018,12-12193,"2,692.50",Ace Cars,,
Nottinghamshire County Council,1111/1001,Children and Young People,CYP,Transport Related,CCA,12/03/2018,12-12194,"1,620.00",Ace Cars,,
Nottinghamshire County Council,1111/1001,Children and Young People,CYP,Transport Related,CCA,12/03/2018,12-12195,1681.88,Ace Cars,,
Nottinghamshire County Council,1111/1001,Children and Young People,CYP,Transport Related,CCA,12/03/2018,12-12197,"1,946.50",Ace Cars,,
Nottinghamshire County Council,1111/1001,Children and Young People,CYP,Transport Related,CCA,12/03/2018,12-12198,1747.5,Ace Cars,,
Nottinghamshire County Council,1111/1001,Children and Young People,CYP,Transport Related,CCA,12/03/2018,12-12200,"1,897.08",Nottingham Community Transport,,
Nottinghamshire County Council,1111/1001,Children and Young People,CYP,Transport Related,CCA,12/03/2018,12-12204,540,Nottingham Cars Ltd,,
Nottinghamshire County Council,1111/1001,Children and Young People,CYP,Transport Related,CCA,12/03/2018,12-12215,1798,Nunns Taxis Ltd,,
Nottinghamshire County Council,1111/1001,Children and Young People,CYP,Transport Related,CCA,12/03/2018,12-12216,910,ADF Cars Ltd,,
Nottinghamshire County Council,1111/1001,Children and Young People,CYP,Transport Related,CCA,12/03/2018,12-12217,960.00,ADF Cars Ltd,,
Nottinghamshire County Council,1111/1001,Children and Young People,CYP,Transport Related,CCA,12/03/2018,12-12218,990,Abacus Taxi & Courier Services,,
Nottinghamshire County Council,1111/1001,Children and Young People,CYP,Transport Related,CCA,15/03/2018,12-12561,852,Alert Cars Ltd,,
Nottinghamshire County Council,1111/1001,Children and Young People,CYP,Transport Related,CCA,15/03/2018,12-12562,"1,035.00",Southside Cars,,
Nottinghamshire County Council,1111/1001,Children and Young People,CYP,Transport Related,CCA,15/03/2018,12-12564,1820,All Wayz Travel,,
Nottinghamshire County Council,1111/1001,Children and Young People,CYP,Transport Related,CCA,15/03/2018,12-12565,"1,350.00",Central Cars Nottm Ltd,,
Nottinghamshire County Council,1111/1001,Children and Young People,CYP,Transport Related,CCA,15/03/2018,12-12566,562.00,Arrow Specialised Transport Ltd,,
Nottinghamshire County Council,1111/1001,Children and Young People,CYP,Transport Related,CCA,15/03/2018,12-12567,687.25,Arrow Specialised Transport Ltd,,
Nottinghamshire County Council,1111/1001,Children and Young People,CYP,Transport Related,CCA,15/03/2018,12-12568,431.08,Arrow Specialised Transport Ltd,,
Nottinghamshire County Council,1111/1001,Children and Young People,CYP,Transport Related,CCA,15/03/2018,12-12570,784.3,Arrow Specialised Transport Ltd,,
Nottinghamshire County Council,1111/1001,Children and Young People,CYP,Transport Related,CCA,15/03/2018,12-12571,697.75,Arrow Specialised Transport Ltd,,
Nottinghamshire County Council,1111/1001,Children and Young People,CYP,Transport Related,CCA,15/03/2018,12-12572,777,Arrow Specialised Transport Ltd,,
Nottinghamshire County Council,1111/1001,Children and Young People,CYP,Transport Related,CCA,15/03/2018,12-12573,526.6,Arrow Specialised Transport Ltd,,
Nottinghamshire County Council,1111/1001,Children and Young People,CYP,Transport Related,CCA,15/03/2018,12-12574,649,Arrow Specialised Transport Ltd,,
Nottinghamshire County Council,1111/1001,Children and Young People,CYP,Transport Related,CCA,15/03/2018,12-12575,601.80,Arrow Specialised Transport Ltd,,
Nottinghamshire County Council,1111/1001,Children and Young People,CYP,Transport Related,CCA,15/03/2018,12-12576,700.00,Shelleys Taxis Ltd,,
Nottinghamshire County Council,1111/1001,Children and Young People,CYP,Transport Related,CCA,15/03/2018,12-12578,980.00,Shelleys Taxis Ltd,,
Nottinghamshire County Council,1111/1001,Children and Young People,CYP,Transport Related,CCA,15/03/2018,12-12579,"1,485.00",Shelleys Taxis Ltd,,
Nottinghamshire County Council,1111/1001,Children and Young People,CYP,Transport Related,CCA,15/03/2018,12-12580,1488.76,Sprays Transport Ltd,,
Nottinghamshire County Council,1111/1001,Children and Young People,CYP,Transport Related,CCA,15/03/2018,12-12581,"1,695.00",Sprays Transport Ltd,,
Nottinghamshire County Council,1111/1001,Children and Young People,CYP,Transport Related,CCA,15/03/2018,12-12583,1563.8,F4Control Ltd (t/a First4care),,
Nottinghamshire County Council,1111/1001,Children and Young People,CYP,Transport Related,CCA,15/03/2018,12-12584,1345.17,F4Control Ltd (t/a First4care),,
Nottinghamshire County Council,1111/1001,Children and Young People,CYP,Transport Related,CCA,15/03/2018,12-12586,2483.65,BN Gibson Ltd,,
Nottinghamshire County Council,1111/1001,Children and Young People,CYP,Transport Related,CCA,15/03/2018,12-12587,3580.49,BN Gibson Ltd,,
Nottinghamshire County Council,1111/1001,Children and Young People,CYP,Transport Related,CCA,15/03/2018,12-12588,"2,817.44",BN Gibson Ltd,,
Nottinghamshire County Council,1111/1001,Children and Young People,CYP,Transport Related,CCA,15/03/2018,12-12589,"2,521.26",BN Gibson Ltd,,
Nottinghamshire County Council,1111/1001,Children and Young People,CYP,Transport Related,CCA,15/03/2018,12-12590,"2,674.70",BN Gibson Ltd,,
Nottinghamshire County Council,1111/1001,Children and Young People,CYP,Transport Related,CCA,15/03/2018,12-12591,2611.98,BN Gibson Ltd,,
Nottinghamshire County Council,1111/1001,Children and Young People,CYP,Transport Related,CCA,15/03/2018,12-12592,"2,006.88",BN Gibson Ltd,,
Nottinghamshire County Council,1111/1001,Children and Young People,CYP,Transport Related,CCA,15/03/2018,12-12593,"1,666.00",D G Private Hire Ltd,,
Nottinghamshire County Council,1111/1001,Children and Young People,CYP,Transport Related,CCA,15/03/2018,12-12594,"2,466.00",D G Private Hire Ltd,,
Nottinghamshire County Council,1111/1001,Children and Young People,CYP,Transport Related,CCA,15/03/2018,12-12595,"1,680.00",D G Private Hire Ltd,,
Nottinghamshire County Council,1111/1001,Children and Young People,CYP,Transport Related,CCA,15/03/2018,12-12596,"1,440.00",D G Private Hire Ltd,,
Nottinghamshire County Council,1111/1001,Children and Young People,CYP,Transport Related,CCA,15/03/2018,12-12597,1260,D G Private Hire Ltd,,
Nottinghamshire County Council,1111/1001,Children and Young People,CYP,Transport Related,CCA,15/03/2018,12-12598,"1,200.00",D G Private Hire Ltd,,
Nottinghamshire County Council,1111/1001,Children and Young People,CYP,Transport Related,CCA,15/03/2018,12-12599,882.00,D G Private Hire Ltd,,
Nottinghamshire County Council,1111/1001,Children and Young People,CYP,Transport Related,CCA,15/03/2018,12-12600,1200,D G Private Hire Ltd,,
Nottinghamshire County Council,1111/1001,Children and Young People,CYP,Transport Related,CCA,15/03/2018,12-12601,980,D G Private Hire Ltd,,
Nottinghamshire County Council,1111/1001,Children and Young People,CYP,Transport Related,CCA,15/03/2018,12-12602,"1,918.00",D G Private Hire Ltd,,
Nottinghamshire County Council,1111/1001,Children and Young People,CYP,Transport Related,CCA,15/03/2018,12-12605,616.00,D G Private Hire Ltd,,
Nottinghamshire County Council,1111/1001,Children and Young People,CYP,Transport Related,CCA,15/03/2018,12-12608,1125,D G Private Hire Ltd,,
Nottinghamshire County Council,1111/1001,Children and Young People,CYP,Transport Related,CCA,15/03/2018,12-12610,512,D G Private Hire Ltd,,
Nottinghamshire County Council,1111/1001,Children and Young People,CYP,Transport Related,CCA,15/03/2018,12-12637,"1,120.00",Abacus Cars,,
Nottinghamshire County Council,1111/1001,Children and Young People,CYP,Transport Related,CCA,15/03/2018,12-12638,1120,Abacus Cars,,
Nottinghamshire County Council,1111/1001,Children and Young People,CYP,Transport Related,CCA,15/03/2018,12-12639,"1,557.50",Abacus Cars,,
Nottinghamshire County Council,1111/1001,Children and Young People,CYP,Transport Related,CCA,15/03/2018,12-12641,600.00,Abacus Cars,,
Nottinghamshire County Council,1111/1001,Children and Young People,CYP,Transport Related,CCA,15/03/2018,12-12642,"1,316.60",Abacus Cars,,
Nottinghamshire County Council,1111/1001,Children and Young People,CYP,Transport Related,CCA,15/03/2018,12-12643,"1,500.00",Abacus Cars,,
Nottinghamshire County Council,1111/1001,Children and Young People,CYP,Transport Related,CCA,15/03/2018,12-12644,630,Abacus Cars,,
Nottinghamshire County Council,1111/1001,Children and Young People,CYP,Transport Related,CCA,15/03/2018,12-12645,500.00,Abacus Cars,,
Nottinghamshire County Council,1111/1001,Children and Young People,CYP,Transport Related,CCA,15/03/2018,12-12646,999.74,Abacus Cars,,
Nottinghamshire County Council,1111/1001,Children and Young People,CYP,Transport Related,CCA,15/03/2018,12-12647,"1,950.00",Abacus Cars,,
Nottinghamshire County Council,1111/1001,Children and Young People,CYP,Transport Related,CCA,15/03/2018,12-12668,2262.4,K Matthews Travel,,
Nottinghamshire County Council,1111/1001,Children and Young People,CYP,Transport Related,CCA,15/03/2018,12-12669,2403.8,K Matthews Travel,,
Nottinghamshire County Council,1111/1001,Children and Young People,CYP,Transport Related,CCA,15/03/2018,12-12673,1253,Ace Cars,,
Nottinghamshire County Council,1111/1001,Children and Young People,CYP,Transport Related,CCA,15/03/2018,12-12674,1253,Ace Cars,,
Nottinghamshire County Council,1111/1001,Children and Young People,CYP,Transport Related,CCA,15/03/2018,12-12675,1610,Ace Cars,,
Nottinghamshire County Council,1111/1001,Children and Young People,CYP,Transport Related,CCA,15/03/2018,12-12676,1673,Ace Cars,,
Nottinghamshire County Council,1111/1001,Children and Young People,CYP,Transport Related,CCA,15/03/2018,12-12677,1674,Ace Cars,,
Nottinghamshire County Council,1111/1001,Children and Young People,CYP,Transport Related,CCA,15/03/2018,12-12678,"1,913.80",L A Travel,,
Nottinghamshire County Council,1111/1001,Children and Young People,CYP,Transport Related,CCA,15/03/2018,12-12679,"1,631.15",Eurocab 2000 Ltd,,
Nottinghamshire County Council,1111/1001,Children and Young People,CYP,Transport Related,CCA,15/03/2018,12-12680,"1,783.50",Eurocab 2000 Ltd,,
Nottinghamshire County Council,1111/1001,Children and Young People,CYP,Transport Related,CCA,15/03/2018,12-12681,427.5,Eurocab 2000 Ltd,,
Nottinghamshire County Council,1111/1001,Children and Young People,CYP,Transport Related,CCA,15/03/2018,12-12684,"1,260.00",Eurocab 2000 Ltd,,
Nottinghamshire County Council,1111/1001,Children and Young People,CYP,Transport Related,CCA,15/03/2018,12-12686,1929,Eurocab 2000 Ltd,,
Nottinghamshire County Council,1111/1001,Children and Young People,CYP,Transport Related,CCA,15/03/2018,12-12688,606.6,Nunns Taxis Ltd,,
Nottinghamshire County Council,1111/1001,Children and Young People,CYP,Transport Related,CCA,15/03/2018,12-12689,787.75,Nunns Taxis Ltd,,
Nottinghamshire County Council,1111/1001,Children and Young People,CYP,Transport Related,CCA,15/03/2018,12-12690,"1,024.65",Nunns Taxis Ltd,,
Nottinghamshire County Council,1111/1001,Children and Young People,CYP,Transport Related,CCA,21/03/2018,12-11851,1635,Forest Cars,,
Nottinghamshire County Council,1111/1001,Children and Young People,CYP,Transport Related,CCA,21/03/2018,12-11852,1320,Forest Cars,,
Nottinghamshire County Council,1111/1001,Children and Young People,CYP,Transport Related,CCA,21/03/2018,12-11853,2010,Forest Cars,,
Nottinghamshire County Council,1111/1001,Children and Young People,CYP,Transport Related,CCA,21/03/2018,12-11854,"1,110.00",Forest Cars,,
Nottinghamshire County Council,1111/1001,Children and Young People,CYP,Transport Related,CCA,21/03/2018,12-11855,660,Forest Cars,,
Nottinghamshire County Council,1111/1001,Children and Young People,CYP,Transport Related,CCA,21/03/2018,12-11857,"1,121.10",Forest Cars,,
Nottinghamshire County Council,1111/1001,Children and Young People,CYP,Transport Related,CCA,21/03/2018,12-11858,"1,350.00",Forest Cars,,
Nottinghamshire County Council,1111/1001,Children and Young People,CYP,Transport Related,CCA,21/03/2018,12-11859,1785,Forest Cars,,
Nottinghamshire County Council,1111/1001,Children and Young People,CYP,Transport Related,CCA,21/03/2018,12-11860,"1,410.00",Forest Cars,,
Nottinghamshire County Council,1111/1001,Children and Young People,CYP,Transport Related,CCA,21/03/2018,12-11861,"1,402.50",Forest Cars,,
Nottinghamshire County Council,1111/1001,Children and Young People,CYP,Transport Related,CCA,21/03/2018,12-11862,882,Forest Cars,,
Nottinghamshire County Council,1111/1001,Children and Young People,CYP,Transport Related,CCA,21/03/2018,12-11863,846,Forest Cars,,
Nottinghamshire County Council,1111/1001,Children and Young People,CYP,Transport Related,CCA,21/03/2018,12-11864,1320,Forest Cars,,
Nottinghamshire County Council,1111/1001,Children and Young People,CYP,Transport Related,CCA,21/03/2018,12-11865,958.5,Forest Cars,,
Nottinghamshire County Council,1111/1001,Children and Young People,CYP,Transport Related,CCA,21/03/2018,12-11866,774.00,Forest Cars,,
Nottinghamshire County Council,1111/1001,Children and Young People,CYP,Transport Related,CCA,21/03/2018,12-11867,1470,Forest Cars,,
Nottinghamshire County Council,1111/1001,Children and Young People,CYP,Transport Related,CCA,21/03/2018,12-11868,2010,Forest Cars,,
Nottinghamshire County Council,1111/1001,Children and Young People,CYP,Transport Related,CCA,21/03/2018,12-11869,555.00,Forest Cars,,
Nottinghamshire County Council,1111/1001,Children and Young People,CYP,Transport Related,CCA,21/03/2018,12-11871,2010,Forest Cars,,
Nottinghamshire County Council,1111/1001,Children and Young People,CYP,Transport Related,CCA,21/03/2018,12-11872,1206,Forest Cars,,
Nottinghamshire County Council,1111/1001,Children and Young People,CYP,Transport Related,CCA,21/03/2018,12-12220,"1,372.00",Forest Cars,,
Nottinghamshire County Council,1111/1001,Children and Young People,CYP,Transport Related,CCA,21/03/2018,12-12221,336,Forest Cars,,
Nottinghamshire County Council,1111/1001,Children and Young People,CYP,Transport Related,CCA,23/03/2018,12-15764,"1,020.00",6 Five 2s,,
Nottinghamshire County Council,1111/1001,Children and Young People,CYP,Transport Related,CCA,23/03/2018,12-15765,900.00,6 Five 2s,,
Nottinghamshire County Council,1111/1001,Children and Young People,CYP,Transport Related,CCA,23/03/2018,12-15766,675.00,6 Five 2s,,
Nottinghamshire County Council,1111/1001,Children and Young People,CYP,Transport Related,CCA,23/03/2018,12-15767,1330,6 Five 2s,,
Nottinghamshire County Council,1111/1001,Children and Young People,CYP,Transport Related,CCA,23/03/2018,12-15768,975,6 Five 2s,,
Nottinghamshire County Council,1111/1001,Children and Young People,CYP,Transport Related,CCA,23/03/2018,12-15769,1780.8,6 Five 2s,,
Nottinghamshire County Council,1111/1001,Children and Young People,CYP,Transport Related,CCA,23/03/2018,12-15770,1540,6 Five 2s,,
Nottinghamshire County Council,1111/1001,Children and Young People,CYP,Transport Related,CCA,23/03/2018,12-15771,1400,6 Five 2s,,
Nottinghamshire County Council,1111/1001,Children and Young People,CYP,Transport Related,CCA,23/03/2018,12-15772,1316,6 Five 2s,,
Nottinghamshire County Council,1111/1001,Children and Young People,CYP,Transport Related,CCA,23/03/2018,12-15776,"1,772.25",6 Five 2s,,
Nottinghamshire County Council,1111/1001,Children and Young People,CYP,Transport Related,CCA,23/03/2018,12-15777,1563.75,6 Five 2s,,
Nottinghamshire County Council,1111/1001,Children and Young People,CYP,Transport Related,CCA,23/03/2018,12-15778,540,6 Five 2s,,
Nottinghamshire County Council,1111/1001,Children and Young People,CYP,Transport Related,CCA,23/03/2018,12-15779,"1,505.34",F4Control Ltd (t/a First4care),,
Nottinghamshire County Council,1111/1001,Children and Young People,CYP,Transport Related,CCA,23/03/2018,12-15780,2228.32,Johnson Bros Tours Ltd,,
Nottinghamshire County Council,1111/1001,Children and Young People,CYP,Transport Related,CCA,23/03/2018,12-15786,"1,813.00",Arrow Specialised Transport Ltd,,
Nottinghamshire County Council,1111/1001,Children and Young People,CYP,Transport Related,CCA,23/03/2018,12-15787,"2,233.00",Arrow Specialised Transport Ltd,,
Nottinghamshire County Council,1111/1001,Children and Young People,CYP,Transport Related,CCA,23/03/2018,12-15790,670,D G Private Hire Ltd,,
Nottinghamshire County Council,1111/1001,Children and Young People,CYP,Transport Related,CCA,23/03/2018,12-15794,"1,400.00",Fozcabs Newark Taxis,,
Nottinghamshire County Council,1111/1001,Children and Young People,CYP,Transport Related,CCA,23/03/2018,12-15800,1795.8,Shelleys Taxis Ltd,,
Nottinghamshire County Council,1111/1001,Children and Young People,CYP,Transport Related,CCA,23/03/2018,12-15802,676.00,Shelleys Taxis Ltd,,
Nottinghamshire County Council,1111/1001,Children and Young People,CYP,Transport Related,CCA,23/03/2018,12-15804,1166.09,BN Gibson Ltd,,
Nottinghamshire County Council,1111/1001,Children and Young People,CYP,Transport Related,CCA,23/03/2018,12-15806,"1,145.50",Skills Motor Coaches Ltd,,
Nottinghamshire County Council,1111/1001,Children and Young People,CYP,Transport Related,CCA,23/03/2018,12-15807,2320,Skills Motor Coaches Ltd,,
Nottinghamshire County Council,1111/1001,Children and Young People,CYP,Transport Related,CCA,23/03/2018,12-15808,2180,Skills Motor Coaches Ltd,,
Nottinghamshire County Council,1111/1001,Children and Young People,CYP,Transport Related,CCA,23/03/2018,12-15809,640,Skills Motor Coaches Ltd,,
Nottinghamshire County Council,1111/1001,Children and Young People,CYP,Transport Related,CCA,23/03/2018,12-15810,1020,Skills Motor Coaches Ltd,,
Nottinghamshire County Council,1111/1001,Children and Young People,CYP,Transport Related,CCA,23/03/2018,12-15811,"1,090.00",Skills Motor Coaches Ltd,,
Nottinghamshire County Council,1111/1001,Children and Young People,CYP,Transport Related,CCA,23/03/2018,12-15812,720,Skills Motor Coaches Ltd,,
Nottinghamshire County Council,1111/1001,Children and Young People,CYP,Transport Related,CCA,23/03/2018,12-15816,559.80,Amvale Ltd,,
Nottinghamshire County Council,1111/1001,Children and Young People,CYP,Transport Related,CCA,23/03/2018,12-15818,5107.05,Gem Mini Travel Ltd,,
Nottinghamshire County Council,1111/1001,Children and Young People,CYP,Transport Related,CCA,23/03/2018,12-15819,2406.25,Silverdale Tours Nottm Ltd,,
Nottinghamshire County Council,1111/1001,Children and Young People,CYP,Transport Related,CCA,23/03/2018,12-15820,"1,216.05",Silverdale Tours Nottm Ltd,,
Nottinghamshire County Council,1111/1001,Children and Young People,CYP,Transport Related,CCA,23/03/2018,12-15821,555.89,Travel Wright Ltd,,
Nottinghamshire County Council,1111/1001,Children and Young People,CYP,Transport Related,CCA,23/03/2018,12-15823,"1,605.90",Freeway Coaches Ltd,,
Nottinghamshire County Council,1111/1001,Children and Young People,CYP,Transport Related,CCA,23/03/2018,12-15824,"1,979.60",Freeway Coaches Ltd,,
Nottinghamshire County Council,1111/1001,Children and Young People,CYP,Transport Related,CCA,23/03/2018,12-15832,2149.5,Ace Cars,,
Nottinghamshire County Council,1111/1001,Children and Young People,CYP,Transport Related,CCA,23/03/2018,12-15836,660,Eurocab 2000 Ltd,,
Nottinghamshire County Council,1111/1001,Children and Young People,CYP,Transport Related,CCA,23/03/2018,12-15840,1764.4,Target Taxis,,
Nottinghamshire County Council,1111/1001,Children and Young People,CYP,Transport Related,CCA,23/03/2018,12-15841,960,Shiny Sky Ltd T/A A2b Cars,,
Nottinghamshire County Council,1111/1001,Children and Young People,CYP,Transport Related,CCA,23/03/2018,12-15852,936,Forest Cars,,
Nottinghamshire County Council,1111/1001,Children and Young People,CYP,Transport Related,CDA,08/03/2018,12-11622,46.81,Arrow Specialised Transport Ltd,,
Nottinghamshire County Council,1111/1001,Children and Young People,CYP,Transport Related,CDA,08/03/2018,12-11681,450.00,Shelleys Taxis Ltd,,
Nottinghamshire County Council,1111/1001,Children and Young People,CYP,Transport Related,CDA,08/03/2018,12-11773,4368,Marshalls Of Sutton On Trent Ltd,,
Nottinghamshire County Council,1111/1001,Children and Young People,CYP,Transport Related,CDA,08/03/2018,12-11776,2100,Nottingham Minibuses & Coaches,,
Nottinghamshire County Council,1111/1001,Children and Young People,CYP,Transport Related,CDA,08/03/2018,12-11777,"2,139.00",Nottingham Minibuses & Coaches,,
Nottinghamshire County Council,1111/1001,Children and Young People,CYP,Transport Related,CDA,08/03/2018,12-11778,"1,425.00",Nottingham Minibuses & Coaches,,
Nottinghamshire County Council,1111/1001,Children and Young People,CYP,Transport Related,CDA,08/03/2018,12-11779,1875,Nottingham Minibuses & Coaches,,
Nottinghamshire County Council,1111/1001,Children and Young People,CYP,Transport Related,CDA,08/03/2018,12-11781,2121,Nottingham Minibuses & Coaches,,
Nottinghamshire County Council,1111/1001,Children and Young People,CYP,Transport Related,CDA,08/03/2018,12-11782,1950,Nottingham Minibuses & Coaches,,
Nottinghamshire County Council,1111/1001,Children and Young People,CYP,Transport Related,CDA,08/03/2018,12-11784,"7,383.00",Nottingham Minibuses & Coaches,,
Nottinghamshire County Council,1111/1001,Children and Young People,CYP,Transport Related,CDA,08/03/2018,12-11790,1593,Tiger European Uk Ltd,,
Nottinghamshire County Council,1111/1001,Children and Young People,CYP,Transport Related,CDA,08/03/2018,12-11791,1155,Tiger European Uk Ltd,,
Nottinghamshire County Council,1111/1001,Children and Young People,CYP,Transport Related,CDA,08/03/2018,12-11817,693,Rio Cabs,,
Nottinghamshire County Council,1111/1001,Children and Young People,CYP,Transport Related,CDA,08/03/2018,12-11824,487.5,Cable Cars Taxis Nottm Ltd,,
Nottinghamshire County Council,1111/1001,Children and Young People,CYP,Transport Related,CDA,08/03/2018,12-11836,"2,700.00",Eastwood Cars (UK) Ltd,,
Nottinghamshire County Council,1111/1001,Children and Young People,CYP,Transport Related,CDA,08/03/2018,12-11837,"1,087.50",Sean's Taxi Services,,
Nottinghamshire County Council,1111/1001,Children and Young People,CYP,Transport Related,CDA,12/03/2018,12-11991,"3,360.00",Johnson Bros Tours Ltd,,
Nottinghamshire County Council,1111/1001,Children and Young People,CYP,Transport Related,CDA,12/03/2018,12-11992,"1,722.00",Johnson Bros Tours Ltd,,
Nottinghamshire County Council,1111/1001,Children and Young People,CYP,Transport Related,CDA,12/03/2018,12-11993,1425,Johnson Bros Tours Ltd,,
Nottinghamshire County Council,1111/1001,Children and Young People,CYP,Transport Related,CDA,12/03/2018,12-12006,277.37,Arrow Specialised Transport Ltd,,
Nottinghamshire County Council,1111/1001,Children and Young People,CYP,Transport Related,CDA,12/03/2018,12-12037,633.27,Shelleys Taxis Ltd,,
Nottinghamshire County Council,1111/1001,Children and Young People,CYP,Transport Related,CDA,12/03/2018,12-12049,571.42,BN Gibson Ltd,,
Nottinghamshire County Council,1111/1001,Children and Young People,CYP,Transport Related,CDA,12/03/2018,12-12087,637,Abacus Cars,,
Nottinghamshire County Council,1111/1001,Children and Young People,CYP,Transport Related,CDA,12/03/2018,12-12154,"4,793.60",Paul S Winson Coaches,,
Nottinghamshire County Council,1111/1001,Children and Young People,CYP,Transport Related,CDA,12/03/2018,12-12156,8652,C W Moxon Ltd,,
Nottinghamshire County Council,1111/1001,Children and Young People,CYP,Transport Related,CDA,12/03/2018,12-12157,2520,C W Moxon Ltd,,
Nottinghamshire County Council,1111/1001,Children and Young People,CYP,Transport Related,CDA,12/03/2018,12-12158,"3,150.00",C W Moxon Ltd,,
Nottinghamshire County Council,1111/1001,Children and Young People,CYP,Transport Related,CDA,12/03/2018,12-12169,167.45,Ace Cars,,
Nottinghamshire County Council,1111/1001,Children and Young People,CYP,Transport Related,CDA,12/03/2018,12-12191,290.55,Ace Cars,,
Nottinghamshire County Council,1111/1001,Children and Young People,CYP,Transport Related,CDA,12/03/2018,12-12211,544.80,Ideal Cars (Private Hire) Ltd,,
Nottinghamshire County Council,1111/1001,Children and Young People,CYP,Transport Related,CDA,12/03/2018,12-12219,"1,887.00",Fastlane Cabs,,
Nottinghamshire County Council,1111/1001,Children and Young People,CYP,Transport Related,CDA,15/03/2018,12-12568,86.17,Arrow Specialised Transport Ltd,,
Nottinghamshire County Council,1111/1001,Children and Young People,CYP,Transport Related,CDA,15/03/2018,12-12582,"2,074.25",Sprays Transport Ltd,,
Nottinghamshire County Council,1111/1001,Children and Young People,CYP,Transport Related,CDA,15/03/2018,12-12604,1119,D G Private Hire Ltd,,
Nottinghamshire County Council,1111/1001,Children and Young People,CYP,Transport Related,CDA,15/03/2018,12-12606,252,D G Private Hire Ltd,,
Nottinghamshire County Council,1111/1001,Children and Young People,CYP,Transport Related,CDA,15/03/2018,12-12622,944.99,Abacus Cars,,
Nottinghamshire County Council,1111/1001,Children and Young People,CYP,Transport Related,CDA,15/03/2018,12-12626,546,Abacus Cars,,
Nottinghamshire County Council,1111/1001,Children and Young People,CYP,Transport Related,CDA,15/03/2018,12-12628,995,Abacus Cars,,
Nottinghamshire County Council,1111/1001,Children and Young People,CYP,Transport Related,CDA,15/03/2018,12-12629,285.00,Abacus Cars,,
Nottinghamshire County Council,1111/1001,Children and Young People,CYP,Transport Related,CDA,15/03/2018,12-12632,1102,Abacus Cars,,
Nottinghamshire County Council,1111/1001,Children and Young People,CYP,Transport Related,CDA,15/03/2018,12-12649,2706,AOT Coaches,,
Nottinghamshire County Council,1111/1001,Children and Young People,CYP,Transport Related,CDA,15/03/2018,12-12650,1650,AOT Coaches,,
Nottinghamshire County Council,1111/1001,Children and Young People,CYP,Transport Related,CDA,15/03/2018,12-12651,"1,950.00",Nottingham Minibuses & Coaches,,
Nottinghamshire County Council,1111/1001,Children and Young People,CYP,Transport Related,CDA,15/03/2018,12-12660,8540,Silverdale Tours Nottm Ltd,,
Nottinghamshire County Council,1111/1001,Children and Young People,CYP,Transport Related,CDA,15/03/2018,12-12662,1140,P & P Taxis,,
Nottinghamshire County Council,1111/1001,Children and Young People,CYP,Transport Related,CDA,15/03/2018,12-12664,1018.08,P & P Taxis,,
Nottinghamshire County Council,1111/1001,Children and Young People,CYP,Transport Related,CDA,15/03/2018,12-12671,1012.5,AAA Cabs,,
Nottinghamshire County Council,1111/1001,Children and Young People,CYP,Transport Related,CDA,15/03/2018,12-12681,427.5,Eurocab 2000 Ltd,,
Nottinghamshire County Council,1111/1001,Children and Young People,CYP,Transport Related,CDA,15/03/2018,12-12685,1770,Eurocab 2000 Ltd,,
Nottinghamshire County Council,1111/1001,Children and Young People,CYP,Transport Related,CDA,16/03/2018,12-17247,"1,464.32",Rotherham Metropolitan Borough Coun,,
Nottinghamshire County Council,1111/1001,Children and Young People,CYP,Transport Related,CDA,21/03/2018,12-11855,660,Forest Cars,,
Nottinghamshire County Council,1111/1001,Children and Young People,CYP,Transport Related,CDA,21/03/2018,12-11869,555,Forest Cars,,
Nottinghamshire County Council,1111/1001,Children and Young People,CYP,Transport Related,CDA,21/03/2018,12-12221,336,Forest Cars,,
Nottinghamshire County Council,1111/1001,Children and Young People,CYP,Transport Related,CDA,23/03/2018,12-15804,232.09,BN Gibson Ltd,,
Nottinghamshire County Council,1111/1001,Children and Young People,CYP,Transport Related,CDA,23/03/2018,12-15815,"1,880.00",Abacus Cars,,
Nottinghamshire County Council,1111/1001,Children and Young People,CYP,Transport Related,CDA,23/03/2018,12-15836,660,Eurocab 2000 Ltd,,
Nottinghamshire County Council,1111/1001,Children and Young People,CYP,Transport Related,CDA,23/03/2018,12-15847,871,Forest Cars,,
Nottinghamshire County Council,1111/1001,Children and Young People,CYP,Transport Related,CDA,23/03/2018,12-15853,"1,005.00",Forest Cars,,
Nottinghamshire County Council,1111/1001,Children and Young People,CYP,Transport Related,CEA,02/03/2018,12-10078,"1,879.66",Reed Employment Plc,,
Nottinghamshire County Council,1111/1001,Children and Young People,CYP,Transport Related,CEA,16/03/2018,12-11351,2008.12,Reed Employment Plc,,
Nottinghamshire County Council,1111/1001,Children and Young People,CYP,Transport Related,CEA,16/03/2018,12-13828,833.17,One Time Vendor,,
Nottinghamshire County Council,1111/1001,Children and Young People,CYP,Transport Related,CEA,23/03/2018,12-12529,"2,919.98",Reed Employment Plc,,
Nottinghamshire County Council,1111/1001,Children and Young People,CYP,Transport Related,CEA,29/03/2018,12-15565,"1,562.36",Reed Employment Plc,,
Nottinghamshire County Council,1111/1001,Children and Young People,CYP,Supplies & Services,DAA,02/03/2018,12-16743,4245,Digital Hearing Care Solutions Ltd,,
Nottinghamshire County Council,1111/1001,Children and Young People,CYP,Supplies & Services,DAA,02/03/2018,12-16744,1680,County Supplies (NCC),,
Nottinghamshire County Council,1111/1001,Children and Young People,CYP,Supplies & Services,DAA,16/03/2018,12-17280,1120.08,Alere Toxicology Plc,,
Nottinghamshire County Council,1111/1001,Children and Young People,CYP,Supplies & Services,DAA,16/03/2018,12-17281,956.40,Alere Toxicology Plc,,
Nottinghamshire County Council,1111/1001,Children and Young People,CYP,Supplies & Services,DAA,16/03/2018,12-17282,1120.08,Alere Toxicology Plc,,
Nottinghamshire County Council,1111/1001,Children and Young People,CYP,Supplies & Services,DAA,16/03/2018,12-17283,956.4,Alere Toxicology Plc,,
Nottinghamshire County Council,1111/1001,Children and Young People,CYP,Supplies & Services,DAA,16/03/2018,12-17284,"1,120.08",Alere Toxicology Plc,,
Nottinghamshire County Council,1111/1001,Children and Young People,CYP,Supplies & Services,DAA,16/03/2018,12-17285,1120.08,Alere Toxicology Plc,,
Nottinghamshire County Council,1111/1001,Children and Young People,CYP,Supplies & Services,DAA,16/03/2018,12-17286,1120.08,Alere Toxicology Plc,,
Nottinghamshire County Council,1111/1001,Children and Young People,CYP,Supplies & Services,DAA,16/03/2018,12-17287,956.40,Alere Toxicology Plc,,
Nottinghamshire County Council,1111/1001,Children and Young People,CYP,Supplies & Services,DAA,16/03/2018,12-17292,510.90,Itc First Aid Ltd,,
Nottinghamshire County Council,1111/1001,Children and Young People,CYP,Supplies & Services,DAA,19/03/2018,12-17351,"1,120.08",Alere Toxicology Plc,,
Nottinghamshire County Council,1111/1001,Children and Young People,CYP,Supplies & Services,DAA,21/03/2018,12-15418,29506.21,Thrumpton Primary Academy,,
Nottinghamshire County Council,1111/1001,Children and Young People,CYP,Supplies & Services,DAA,21/03/2018,12-17398,8505,Rainworth Fencing Manufacturers,,
Nottinghamshire County Council,1111/1001,Children and Young People,CYP,Supplies & Services,DAA,27/03/2018,12-16281,1207.2,Calzados Boreal S.L,,
Nottinghamshire County Council,1111/1001,Children and Young People,CYP,Supplies & Services,DBA,09/03/2018,12-10121,1195.17,South Normanton Comm Interest Compa,,
Nottinghamshire County Council,1111/1001,Children and Young People,CYP,Supplies & Services,DCA,07/03/2018,12-16937,649.61,Clean Sheet Laundry Ltd,,
Nottinghamshire County Council,1111/1001,Children and Young People,CYP,Supplies & Services,DEA,01/03/2018,12-16716,1000,Arnbrook Primary Academy,,
Nottinghamshire County Council,1111/1001,Children and Young People,CYP,Supplies & Services,DEA,01/03/2018,12-16800,"6,075.00",Schofield Education,,
Nottinghamshire County Council,1111/1001,Children and Young People,CYP,Supplies & Services,DEA,01/03/2018,12-16801,750,Burton Joyce Primary,,
Nottinghamshire County Council,1111/1001,Children and Young People,CYP,Supplies & Services,DEA,01/03/2018,12-16813,700,C Raven,,
Nottinghamshire County Council,1111/1001,Children and Young People,CYP,Supplies & Services,DEA,02/03/2018,12-16719,1031.25,Chris Few Consultancy Ltd,,
Nottinghamshire County Council,1111/1001,Children and Young People,CYP,Supplies & Services,DEA,02/03/2018,12-16776,650.00,Neptune Lifesaving Club,,
Nottinghamshire County Council,1111/1001,Children and Young People,CYP,Supplies & Services,DEA,02/03/2018,12-16802,840,Global Mediation Ltd,,
Nottinghamshire County Council,1111/1001,Children and Young People,CYP,Supplies & Services,DEA,02/03/2018,12-16819,900.00,D Stenson,,
Nottinghamshire County Council,1111/1001,Children and Young People,CYP,Supplies & Services,DEA,02/03/2018,12-16827,1594.5,Jeb Educational Consultancy Ltd,,
Nottinghamshire County Council,1111/1001,Children and Young People,CYP,Supplies & Services,DEA,02/03/2018,12-16859,1973,Making Waves Ltd,,
Nottinghamshire County Council,1111/1001,Children and Young People,CYP,Supplies & Services,DEA,06/03/2018,12-16860,876.15,K Hazard,,
Nottinghamshire County Council,1111/1001,Children and Young People,CYP,Supplies & Services,DEA,06/03/2018,12-16868,2025,ShortsCo Ltd,,
Nottinghamshire County Council,1111/1001,Children and Young People,CYP,Supplies & Services,DEA,07/03/2018,12-11378,"8,000.00",NHS Bassetlaw CCG,,
Nottinghamshire County Council,1111/1001,Children and Young People,CYP,Supplies & Services,DEA,07/03/2018,12-16912,645.30,Hendrickx Associates,,
Nottinghamshire County Council,1111/1001,Children and Young People,CYP,Supplies & Services,DEA,08/03/2018,12-16923,8380,Pintsize Theatre Ltd,,
Nottinghamshire County Council,1111/1001,Children and Young People,CYP,Supplies & Services,DEA,08/03/2018,12-16975,750,Tredu,,
Nottinghamshire County Council,1111/1001,Children and Young People,CYP,Supplies & Services,DEA,09/03/2018,12-17024,"1,117.60",APW Consultancy Service Ltd,,
Nottinghamshire County Council,1111/1001,Children and Young People,CYP,Supplies & Services,DEA,09/03/2018,12-17034,1635,E-Voice Speech Recognition Ltd,,
Nottinghamshire County Council,1111/1001,Children and Young People,CYP,Supplies & Services,DEA,09/03/2018,12-17054,1600,Sylnar Ltd,,
Nottinghamshire County Council,1111/1001,Children and Young People,CYP,Supplies & Services,DEA,13/03/2018,12-17140,1600,Sylnar Ltd,,
Nottinghamshire County Council,1111/1001,Children and Young People,CYP,Supplies & Services,DEA,14/03/2018,12-17183,"1,827.40",E Pearce,,
Nottinghamshire County Council,1111/1001,Children and Young People,CYP,Supplies & Services,DEA,14/03/2018,12-17207,"1,354.00",K Hazard,,
Nottinghamshire County Council,1111/1001,Children and Young People,CYP,Supplies & Services,DEA,14/03/2018,12-17208,"1,601.50",K Hazard,,
Nottinghamshire County Council,1111/1001,Children and Young People,CYP,Supplies & Services,DEA,14/03/2018,12-17209,522.00,Sarah Mann Shaw Ltd,,
Nottinghamshire County Council,1111/1001,Children and Young People,CYP,Supplies & Services,DEA,15/03/2018,12-17151,5850,G Parsons,,
Nottinghamshire County Council,1111/1001,Children and Young People,CYP,Supplies & Services,DEA,15/03/2018,12-17234,"2,937.50",Adoption Plus Ltd,,
Nottinghamshire County Council,1111/1001,Children and Young People,CYP,Supplies & Services,DEA,16/03/2018,12-17158,500.00,J Butler,,
Nottinghamshire County Council,1111/1001,Children and Young People,CYP,Supplies & Services,DEA,16/03/2018,12-17298,2422.5,K Hazard,,
Nottinghamshire County Council,1111/1001,Children and Young People,CYP,Supplies & Services,DEA,16/03/2018,12-17299,930,K Hazard,,
Nottinghamshire County Council,1111/1001,Children and Young People,CYP,Supplies & Services,DEA,16/03/2018,12-17300,"3,191.00",K Hazard,,
Nottinghamshire County Council,1111/1001,Children and Young People,CYP,Supplies & Services,DEA,16/03/2018,12-17301,"1,205.00",K Hazard,,
Nottinghamshire County Council,1111/1001,Children and Young People,CYP,Supplies & Services,DEA,16/03/2018,12-17302,900.00,K Hazard,,
Nottinghamshire County Council,1111/1001,Children and Young People,CYP,Supplies & Services,DEA,16/03/2018,12-17303,1296.5,K Hazard,,
Nottinghamshire County Council,1111/1001,Children and Young People,CYP,Supplies & Services,DEA,16/03/2018,12-17304,2115.5,K Hazard,,
Nottinghamshire County Council,1111/1001,Children and Young People,CYP,Supplies & Services,DEA,19/03/2018,12-17320,500.00,Purple House Ltd,,
Nottinghamshire County Council,1111/1001,Children and Young People,CYP,Supplies & Services,DEA,19/03/2018,12-17335,793.50,Sarah Mann Shaw Ltd,,
Nottinghamshire County Council,1111/1001,Children and Young People,CYP,Supplies & Services,DEA,19/03/2018,12-17346,562.65,The Maddocks Consultancy Ltd,,
Nottinghamshire County Council,1111/1001,Children and Young People,CYP,Supplies & Services,DEA,19/03/2018,12-17347,1612.6,M A Ross,,
Nottinghamshire County Council,1111/1001,Children and Young People,CYP,Supplies & Services,DEA,20/03/2018,12-17359,1600,Sylnar Ltd,,
Nottinghamshire County Council,1111/1001,Children and Young People,CYP,Supplies & Services,DEA,21/03/2018,12-17391,2000,After Adoption,,
Nottinghamshire County Council,1111/1001,Children and Young People,CYP,Supplies & Services,DEA,21/03/2018,12-17403,900,D Stenson,,
Nottinghamshire County Council,1111/1001,Children and Young People,CYP,Supplies & Services,DEA,21/03/2018,12-17417,960,The Family Place Ltd,,
Nottinghamshire County Council,1111/1001,Children and Young People,CYP,Supplies & Services,DEA,22/03/2018,12-16993,620,Lextox Drug & Alcohol Testing,,
Nottinghamshire County Council,1111/1001,Children and Young People,CYP,Supplies & Services,DEA,23/03/2018,12-17243,"2,943.00",Nottinghamshire Healthcare Nhs F Tr,,
Nottinghamshire County Council,1111/1001,Children and Young People,CYP,Supplies & Services,DEA,23/03/2018,12-17374,2250,D Litchfield,,
Nottinghamshire County Council,1111/1001,Children and Young People,CYP,Supplies & Services,DEA,23/03/2018,12-17379,"1,327.50",M Butters,,
Nottinghamshire County Council,1111/1001,Children and Young People,CYP,Supplies & Services,DEA,23/03/2018,12-17425,2289,Nottinghamshire Healthcare Nhs F Tr,,
Nottinghamshire County Council,1111/1001,Children and Young People,CYP,Supplies & Services,DEA,23/03/2018,12-17451,"1,350.00",T Webster,,
Nottinghamshire County Council,1111/1001,Children and Young People,CYP,Supplies & Services,DEA,28/03/2018,12-17427,1318,Early Excellence,,
Nottinghamshire County Council,1111/1001,Children and Young People,CYP,Supplies & Services,DEA,29/03/2018,12-16828,864.00,No More Marking Ltd,,
Nottinghamshire County Council,1111/1001,Children and Young People,CYP,Supplies & Services,DEA,29/03/2018,12-16904,1340.64,Chris Few Consultancy Ltd,,
Nottinghamshire County Council,1111/1001,Children and Young People,CYP,Supplies & Services,DFA,02/03/2018,12-16731,573.06,Specialist Computer Centres,,
Nottinghamshire County Council,1111/1001,Children and Young People,CYP,Supplies & Services,DFA,13/03/2018,12-12248,699.65,Adept Telecom,,
Nottinghamshire County Council,1111/1001,Children and Young People,CYP,Supplies & Services,DFA,19/03/2018,12-13835,553.92,Lantec Services Ltd,,
Nottinghamshire County Council,1111/1001,Children and Young People,CYP,Supplies & Services,DFA,28/03/2018,12-17184,1390.5,WCL (UK) Ltd T/A Think IT,,
Nottinghamshire County Council,1111/1001,Children and Young People,CYP,Supplies & Services,DFA,28/03/2018,12-17336,6033,Just Checking Ltd,,
Nottinghamshire County Council,1111/1001,Children and Young People,CYP,Supplies & Services,DFA,29/03/2018,12-17315,4800,Evolution Internet Ltd,,
Nottinghamshire County Council,1111/1001,Children and Young People,CYP,Supplies & Services,DHA,08/03/2018,12-16964,3910,University College London,,
Nottinghamshire County Council,1111/1001,Children and Young People,CYP,Supplies & Services,DHA,23/03/2018,12-10123,1105.41,Vaughandale Construction Ltd,,
Nottinghamshire County Council,1111/1001,Children and Young People,CYP,Supplies & Services,DHA,23/03/2018,12-17388,1890,Gemma Books Ltd,,
Nottinghamshire County Council,1111/1001,Children and Young People,CYP,Supplies & Services,DHA,29/03/2018,12-17337,720,Global Mediation Ltd,,
Nottinghamshire County Council,1111/1001,Children and Young People,CYP,Supplies & Services,DKA,01/03/2018,12-10104,"5,614.50",Priory Junior School,,
Nottinghamshire County Council,1111/1001,Children and Young People,CYP,Supplies & Services,DKA,02/03/2018,12-16720,770.84,Framework Housing Association,,
Nottinghamshire County Council,1111/1001,Children and Young People,CYP,Supplies & Services,DKA,09/03/2018,12-11939,7881.09,Cuckney Primary School,,
Nottinghamshire County Council,1111/1001,Children and Young People,CYP,Supplies & Services,DKA,09/03/2018,12-11940,"1,420.00",Priory Junior School,,
Nottinghamshire County Council,1111/1001,Children and Young People,CYP,Supplies & Services,DKA,19/03/2018,12-13827,4111.6,Richard Bonington Primary School,,
Nottinghamshire County Council,1111/1001,Children and Young People,CYP,Supplies & Services,DKA,22/03/2018,12-17488,"1,271.33",ARW Property Solutions,,
Nottinghamshire County Council,1111/1001,Children and Young People,CYP,Supplies & Services,DNA,02/03/2018,12-16749,880,Ann Lugering Education Services,,
Nottinghamshire County Council,1111/1001,Children and Young People,CYP,Third Party Payments,EBA,02/03/2018,12-16725,"8,721.48",Derbyshire County Council,,
Nottinghamshire County Council,1111/1001,Children and Young People,CYP,Third Party Payments,EBA,02/03/2018,12-16737,1982.93,John Flamsteed Community School,,
Nottinghamshire County Council,1111/1001,Children and Young People,CYP,Third Party Payments,EBA,02/03/2018,12-16760,1333,Derbyshire County Council,,
Nottinghamshire County Council,1111/1001,Children and Young People,CYP,Third Party Payments,EBA,05/03/2018,12-16864,59779.69,"Culture, Learning & Libraries (Midl",,
Nottinghamshire County Council,1111/1001,Children and Young People,CYP,Third Party Payments,EBA,13/03/2018,12-11898,"238,700.22",East Leake Schools Ltd,,
Nottinghamshire County Council,1111/1001,Children and Young People,CYP,Third Party Payments,EBA,23/03/2018,12-10269,35713.99,Transform Schools,,
Nottinghamshire County Council,1111/1001,Children and Young People,CYP,Third Party Payments,EBA,23/03/2018,12-10270,"17,642.19",Transform Schools,,
Nottinghamshire County Council,1111/1001,Children and Young People,CYP,Third Party Payments,EBA,23/03/2018,12-10271,1272.74,Transform Schools,,
Nottinghamshire County Council,1111/1001,Children and Young People,CYP,Third Party Payments,EBA,23/03/2018,12-10272,22427.8,Transform Schools,,
Nottinghamshire County Council,1111/1001,Children and Young People,CYP,Third Party Payments,EBA,23/03/2018,12-10273,"1,070.14",Transform Schools,,
Nottinghamshire County Council,1111/1001,Children and Young People,CYP,Third Party Payments,EBA,27/03/2018,12-16226,"1,495,609.41",Transform Schools,,
Nottinghamshire County Council,1111/1001,Children and Young People,CYP,Third Party Payments,EBA,28/03/2018,12-17101,"2,847.00",Community Inclusive Trust T/A Amber,,
Nottinghamshire County Council,1111/1001,Children and Young People,CYP,Third Party Payments,EBA,28/03/2018,12-17102,3775,Community Inclusive Trust T/A Amber,,
Nottinghamshire County Council,1111/1001,Children and Young People,CYP,Third Party Payments,EDA,01/03/2018,12-10059,"24,614.00",Robert Miles Junior School,,
Nottinghamshire County Council,1111/1001,Children and Young People,CYP,Third Party Payments,EDA,01/03/2018,12-10060,14300,Robert Miles Junior School,,
Nottinghamshire County Council,1111/1001,Children and Young People,CYP,Third Party Payments,EDA,01/03/2018,12-10061,5000,Robert Miles Junior School,,
Nottinghamshire County Council,1111/1001,Children and Young People,CYP,Third Party Payments,EDA,01/03/2018,12-10062,500,Robert Miles Junior School,,
Nottinghamshire County Council,1111/1001,Children and Young People,CYP,Third Party Payments,EDA,01/03/2018,12-10063,32994,Burton Joyce Primary,,
Nottinghamshire County Council,1111/1001,Children and Young People,CYP,Third Party Payments,EDA,01/03/2018,12-10100,"7,516.00",Carlton Junior Academy,,
Nottinghamshire County Council,1111/1001,Children and Young People,CYP,Third Party Payments,EDA,01/03/2018,12-10101,"19,951.00",Central Infant Academy,,
Nottinghamshire County Council,1111/1001,Children and Young People,CYP,Third Party Payments,EDA,01/03/2018,12-10102,"25,037.00",Central Infant Academy,,
Nottinghamshire County Council,1111/1001,Children and Young People,CYP,Third Party Payments,EDA,01/03/2018,12-10103,"7,104.00",Central Infant Academy,,
Nottinghamshire County Council,1111/1001,Children and Young People,CYP,Third Party Payments,EDA,01/03/2018,12-10105,"7,367.00",Robert Miles Infant School (Academy,,
Nottinghamshire County Council,1111/1001,Children and Young People,CYP,Third Party Payments,EDA,01/03/2018,12-10106,"14,476.00",St Peters C of E Academy Mansfield,,
Nottinghamshire County Council,1111/1001,Children and Young People,CYP,Third Party Payments,EDA,01/03/2018,12-10107,"19,951.00",St Peters C of E Academy Mansfield,,
Nottinghamshire County Council,1111/1001,Children and Young People,CYP,Third Party Payments,EDA,01/03/2018,12-10108,7546,St Peters C of E Academy Mansfield,,
Nottinghamshire County Council,1111/1001,Children and Young People,CYP,Third Party Payments,EDA,01/03/2018,12-10109,"7,620.00",Thrumpton Primary Academy,,
Nottinghamshire County Council,1111/1001,Children and Young People,CYP,Third Party Payments,EDA,02/03/2018,12-10064,"20,000.00",Burton Joyce Primary,,
Nottinghamshire County Council,1111/1001,Children and Young People,CYP,Third Party Payments,EDA,08/03/2018,12-11907,"10,902.00",West Park Academy,,
Nottinghamshire County Council,1111/1001,Children and Young People,CYP,Third Party Payments,EDA,08/03/2018,12-11908,10051,West Park Academy,,
Nottinghamshire County Council,1111/1001,Children and Young People,CYP,Third Party Payments,EDA,08/03/2018,12-11909,6007,West Park Academy,,
Nottinghamshire County Council,1111/1001,Children and Young People,CYP,Third Party Payments,EDA,08/03/2018,12-11910,79537,Foxwood Academy,,
Nottinghamshire County Council,1111/1001,Children and Young People,CYP,Third Party Payments,EDA,08/03/2018,12-11911,63064,Beech Academy,,
Nottinghamshire County Council,1111/1001,Children and Young People,CYP,Third Party Payments,EDA,08/03/2018,12-11912,4166,Beech Academy,,
Nottinghamshire County Council,1111/1001,Children and Young People,CYP,Third Party Payments,EDA,08/03/2018,12-11913,41957.99,Redgate Primary Academy,,
Nottinghamshire County Council,1111/1001,Children and Young People,CYP,Third Party Payments,EDA,08/03/2018,12-11914,105536.38,Yeoman Park Academy,,
Nottinghamshire County Council,1111/1001,Children and Young People,CYP,Third Party Payments,EDA,08/03/2018,12-11915,891.66,Yeoman Park Academy,,
Nottinghamshire County Council,1111/1001,Children and Young People,CYP,Third Party Payments,EDA,09/03/2018,12-11936,8241,Willow Farm Primary Academy,,
Nottinghamshire County Council,1111/1001,Children and Young People,CYP,Third Party Payments,EDA,09/03/2018,12-11937,"8,139.00",Willow Farm Primary Academy,,
Nottinghamshire County Council,1111/1001,Children and Young People,CYP,Third Party Payments,EDA,09/03/2018,12-11938,4455,Willow Farm Primary Academy,,
Nottinghamshire County Council,1111/1001,Children and Young People,CYP,Third Party Payments,EDA,19/03/2018,12-13821,572.40,St Peters C of E Academy Mansfield,,
Nottinghamshire County Council,1111/1001,Children and Young People,CYP,Third Party Payments,EDA,19/03/2018,12-13822,"3,150.18",West Park Academy,,
Nottinghamshire County Council,1111/1001,Children and Young People,CYP,Third Party Payments,EDA,19/03/2018,12-13823,3453,St Joseph's RC Primary Academy,,
Nottinghamshire County Council,1111/1001,Children and Young People,CYP,Third Party Payments,EDA,19/03/2018,12-13824,700.00,Gunthorpe C OF E Primary Academy,,
Nottinghamshire County Council,1111/1001,Children and Young People,CYP,Third Party Payments,EDA,22/03/2018,12-15686,"2,000.00",Harworth C Of E Primary School,,
Nottinghamshire County Council,1111/1001,Children and Young People,CYP,Third Party Payments,EDA,23/03/2018,12-15701,"1,136.85",The Bramble Academy,,
Nottinghamshire County Council,1111/1001,Children and Young People,CYP,Third Party Payments,EDA,23/03/2018,12-15702,615.00,Serlby Park Academy,,
Nottinghamshire County Council,1111/1001,Children and Young People,CYP,Third Party Payments,EDA,23/03/2018,12-15703,"1,661.55",Sir Donald Bailey Academy,,
Nottinghamshire County Council,1111/1001,Children and Young People,CYP,Third Party Payments,EDA,23/03/2018,12-15704,699.60,West Park Academy,,
Nottinghamshire County Council,1111/1001,Children and Young People,CYP,Third Party Payments,EDA,23/03/2018,12-15705,699.6,William Gladstone C of E Primary Ac,,
Nottinghamshire County Council,1111/1001,Children and Young People,CYP,Third Party Payments,EDA,23/03/2018,12-15706,1136.85,Wainwright Primary Academy,,
Nottinghamshire County Council,1111/1001,Children and Young People,CYP,Third Party Payments,EDA,23/03/2018,12-15707,"1,311.75",Barnby Road Academy Prim & Nursery,,
Nottinghamshire County Council,1111/1001,Children and Young People,CYP,Third Party Payments,EDA,23/03/2018,12-15708,"9,580.78",Candleby Lane School,,
Nottinghamshire County Council,1111/1001,Children and Young People,CYP,Third Party Payments,EDA,23/03/2018,12-15709,961.95,Mansfield Primary Academy,,
Nottinghamshire County Council,1111/1001,Children and Young People,CYP,Third Party Payments,EDA,23/03/2018,12-15710,612.15,Serlby Park Academy,,
Nottinghamshire County Council,1111/1001,Children and Young People,CYP,Third Party Payments,EDA,23/03/2018,12-15711,"22,832.70",Norbridge Academy Trust,,
Nottinghamshire County Council,1111/1001,Children and Young People,CYP,Third Party Payments,EDA,23/03/2018,12-15712,"10,073.25",Peafield Lane Academy,,
Nottinghamshire County Council,1111/1001,Children and Young People,CYP,Third Party Payments,EDA,23/03/2018,12-15713,7387.05,Worksop Priory CE Primary Academy,,
Nottinghamshire County Council,1111/1001,Children and Young People,CYP,Third Party Payments,EDA,23/03/2018,12-15714,9401.7,Sacred Heart Catholic Voluntary Aca,,
Nottinghamshire County Council,1111/1001,Children and Young People,CYP,Third Party Payments,EDA,23/03/2018,12-15715,"4,029.30",Samuel Barlow Primary Academy,,
Nottinghamshire County Council,1111/1001,Children and Young People,CYP,Third Party Payments,EDA,23/03/2018,12-15716,10744.8,Serlby Park Academy,,
Nottinghamshire County Council,1111/1001,Children and Young People,CYP,Third Party Payments,EDA,23/03/2018,12-15717,"8,730.15",St Patricks Catholic Voluntary Acad,,
Nottinghamshire County Council,1111/1001,Children and Young People,CYP,Third Party Payments,EDA,23/03/2018,12-15718,671.55,St Peters Cross Keys Academy,,
Nottinghamshire County Council,1111/1001,Children and Young People,CYP,Third Party Payments,EDA,23/03/2018,12-15719,1880.34,Sunnyside Spencer Academy,,
Nottinghamshire County Council,1111/1001,Children and Young People,CYP,Third Party Payments,EDA,23/03/2018,12-15720,4700.85,Sir Donald Bailey Academy,,
Nottinghamshire County Council,1111/1001,Children and Young People,CYP,Third Party Payments,EDA,23/03/2018,12-15721,"5,049.00",Flying High Trust Bilsthorpe High A,,
Nottinghamshire County Council,1111/1001,Children and Young People,CYP,Third Party Payments,EDA,23/03/2018,12-15722,"4,712.40",Keyworth Primary & Nursery School,,
Nottinghamshire County Council,1111/1001,Children and Young People,CYP,Third Party Payments,EDA,23/03/2018,12-15723,841.5,Tuxford Primary Academy,,
Nottinghamshire County Council,1111/1001,Children and Young People,CYP,Third Party Payments,EDA,23/03/2018,12-15724,"2,014.65",Arnbrook Primary Academy,,
Nottinghamshire County Council,1111/1001,Children and Young People,CYP,Third Party Payments,EDA,23/03/2018,12-15725,"4,700.85",Flying High Trust Bilsthorpe High A,,
Nottinghamshire County Council,1111/1001,Children and Young People,CYP,Third Party Payments,EDA,23/03/2018,12-15726,8058.6,Birklands Primary (Academy),,
Nottinghamshire County Council,1111/1001,Children and Young People,CYP,Third Party Payments,EDA,23/03/2018,12-15727,"4,700.85",Bracken Lane Primary Academy,,
Nottinghamshire County Council,1111/1001,Children and Young People,CYP,Third Party Payments,EDA,23/03/2018,12-15728,2954.82,St Peters C of E Academy,,
Nottinghamshire County Council,1111/1001,Children and Young People,CYP,Third Party Payments,EDA,23/03/2018,12-15729,"8,730.15",Greenwood Primary & Nursery School,,
Nottinghamshire County Council,1111/1001,Children and Young People,CYP,Third Party Payments,EDA,23/03/2018,12-15730,13296.69,Heymann Primary School,,
Nottinghamshire County Council,1111/1001,Children and Young People,CYP,Third Party Payments,EDA,23/03/2018,12-15731,16788.75,Hillside Academy,,
Nottinghamshire County Council,1111/1001,Children and Young People,CYP,Third Party Payments,EDA,23/03/2018,12-15732,2697.39,Keyworth Primary & Nursery School,,
Nottinghamshire County Council,1111/1001,Children and Young People,CYP,Third Party Payments,EDA,23/03/2018,12-15733,6043.95,The Parkgate Academy,,
Nottinghamshire County Council,1111/1001,Children and Young People,CYP,Third Party Payments,EDA,23/03/2018,12-15734,"5,596.25",West Park Academy,,
Nottinghamshire County Council,1111/1001,Children and Young People,CYP,Third Party Payments,EDA,23/03/2018,12-15735,6715.5,Thrumpton Primary Academy,,
Nottinghamshire County Council,1111/1001,Children and Young People,CYP,Third Party Payments,EDA,23/03/2018,12-15736,4768.01,Tuxford Primary Academy,,
Nottinghamshire County Council,1111/1001,Children and Young People,CYP,Third Party Payments,EDA,23/03/2018,12-15737,671.55,Wainwright Primary Academy,,
Nottinghamshire County Council,1111/1001,Children and Young People,CYP,Third Party Payments,EDA,23/03/2018,12-15738,588.3,Arnbrook Primary Academy,,
Nottinghamshire County Council,1111/1001,Children and Young People,CYP,Third Party Payments,EDA,23/03/2018,12-15739,787.05,Flying High Trust Beeston Fields Pr,,
Nottinghamshire County Council,1111/1001,Children and Young People,CYP,Third Party Payments,EDA,23/03/2018,12-15740,612.15,Birklands Primary (Academy),,
Nottinghamshire County Council,1111/1001,Children and Young People,CYP,Third Party Payments,EDA,23/03/2018,12-15741,874.50,Central Infant Academy,,
Nottinghamshire County Council,1111/1001,Children and Young People,CYP,Third Party Payments,EDA,23/03/2018,12-15742,874.50,The Flying High Academy,,
Nottinghamshire County Council,1111/1001,Children and Young People,CYP,Third Party Payments,EDA,23/03/2018,12-15743,1136.85,Greenwood Primary & Nursery School,,
Nottinghamshire County Council,1111/1001,Children and Young People,CYP,Third Party Payments,EDA,23/03/2018,12-15744,"1,049.40",The Parkgate Academy,,
Nottinghamshire County Council,1111/1001,Children and Young People,CYP,Third Party Payments,EDA,23/03/2018,12-15745,612.15,Kirkby Woodhouse Academy School,,
Nottinghamshire County Council,1111/1001,Children and Young People,CYP,Third Party Payments,EDA,23/03/2018,12-15746,"1,049.40",Leamington Primary & Nursery Academ,,
Nottinghamshire County Council,1111/1001,Children and Young People,CYP,Third Party Payments,EDA,23/03/2018,12-15747,524.7,Worksop Priory CE Primary Academy,,
Nottinghamshire County Council,1111/1001,Children and Young People,CYP,Third Party Payments,EDA,23/03/2018,12-15748,787.05,Samuel Barlow Primary Academy,,
Nottinghamshire County Council,1111/1001,Children and Young People,CYP,Third Party Payments,EDA,23/03/2018,12-15749,1049.4,Sparken Hill Academy,,
Nottinghamshire County Council,1111/1001,Children and Young People,CYP,Third Party Payments,EDA,23/03/2018,12-15750,612.15,St Josephs Catholic Primary Sch Aca,,
Nottinghamshire County Council,1111/1001,Children and Young People,CYP,Third Party Payments,EDA,23/03/2018,12-15751,930.00,[Redacted],,
Nottinghamshire County Council,1111/1001,Children and Young People,CYP,Third Party Payments,EDA,23/03/2018,12-15752,930.00,[Redacted],,
Nottinghamshire County Council,1111/1001,Children and Young People,CYP,Third Party Payments,EDA,23/03/2018,12-15753,930,[Redacted],,
Nottinghamshire County Council,1111/1001,Children and Young People,CYP,Third Party Payments,EDA,28/03/2018,12-16496,"4,426.00",Woodland View Primary School,,
Nottinghamshire County Council,1111/1001,Children and Young People,CYP,Third Party Payments,EDA,28/03/2018,12-16502,10189.91,Birklands Primary (Academy),,
Nottinghamshire County Council,1111/1001,Children and Young People,CYP,Third Party Payments,EDA,28/03/2018,12-16503,"5,442.03",Haddon Primary School (Academy),,
Nottinghamshire County Council,1111/1001,Children and Young People,CYP,Third Party Payments,EDA,28/03/2018,12-16504,25543.65,Central Infant Academy,,
Nottinghamshire County Council,1111/1001,Children and Young People,CYP,Third Party Payments,EDA,28/03/2018,12-16505,"4,089.86",Sunnyside Spencer Academy,,
Nottinghamshire County Council,1111/1001,Children and Young People,CYP,Third Party Payments,EDA,28/03/2018,12-16506,6715.5,Thrumpton Primary Academy,,
Nottinghamshire County Council,1111/1001,Children and Young People,CYP,Third Party Payments,EDA,28/03/2018,12-16507,796.79,Bracken Lane Primary Academy,,
Nottinghamshire County Council,1111/1001,Children and Young People,CYP,Third Party Payments,EDA,28/03/2018,12-16508,"8,055.30",Heymann Primary School,,
Nottinghamshire County Council,1111/1001,Children and Young People,CYP,Third Party Payments,EDA,28/03/2018,12-16509,"12,349.10",Samuel Barlow Primary Academy,,
Nottinghamshire County Council,1111/1001,Children and Young People,CYP,Third Party Payments,EDA,28/03/2018,12-16510,"5,399.13",The Parkgate Academy,,
Nottinghamshire County Council,1111/1001,Children and Young People,CYP,Third Party Payments,EDA,28/03/2018,12-16511,10133.48,Greenwood Primary & Nursery School,,
Nottinghamshire County Council,1111/1001,Children and Young People,CYP,Third Party Payments,EDA,28/03/2018,12-16512,21539.1,West Park Academy,,
Nottinghamshire County Council,1111/1001,Children and Young People,CYP,Third Party Payments,EDA,28/03/2018,12-16513,"2,812.73",Keyworth Primary & Nursery School,,
Nottinghamshire County Council,1111/1001,Children and Young People,CYP,Third Party Payments,EDA,28/03/2018,12-16514,8605.74,Sparken Hill Academy,,
Nottinghamshire County Council,1111/1001,Children and Young People,CYP,Third Party Payments,EDA,28/03/2018,12-16515,1264.4,Flying High Trust Bilsthorpe High A,,
Nottinghamshire County Council,1111/1001,Children and Young People,CYP,Third Party Payments,EDA,28/03/2018,12-16516,"2,682.90",Flying High Trust Beeston Fields Pr,,
Nottinghamshire County Council,1111/1001,Children and Young People,CYP,Third Party Payments,EDA,28/03/2018,12-16517,"3,182.69",The Bramble Academy,,
Nottinghamshire County Council,1111/1001,Children and Young People,CYP,Third Party Payments,EDA,28/03/2018,12-16518,"3,970.40",St Peters Cross Keys Academy,,
Nottinghamshire County Council,1111/1001,Children and Young People,CYP,Third Party Payments,EDA,28/03/2018,12-16519,"9,238.19",Sir Donald Bailey Academy,,
Nottinghamshire County Council,1111/1001,Children and Young People,CYP,Third Party Payments,EDA,28/03/2018,12-16520,19231.08,St Peters C of E Academy Mansfield,,
Nottinghamshire County Council,1111/1001,Children and Young People,CYP,Third Party Payments,EDA,28/03/2018,12-16521,1443.83,Gunthorpe C OF E Primary Academy,,
Nottinghamshire County Council,1111/1001,Children and Young People,CYP,Third Party Payments,EDA,28/03/2018,12-16522,5305.25,Sacred Heart Catholic Voluntary Aca,,
Nottinghamshire County Council,1111/1001,Children and Young People,CYP,Third Party Payments,EDA,28/03/2018,12-16523,9224.99,St Joseph's RC Primary Academy,,
Nottinghamshire County Council,1111/1001,Children and Young People,CYP,Third Party Payments,EDA,28/03/2018,12-16524,"7,193.84",St Patricks Catholic Voluntary Acad,,
Nottinghamshire County Council,1111/1001,Children and Young People,CYP,Third Party Payments,EDA,28/03/2018,12-16525,11172.48,St Philip Neri with St Bede Vol Aca,,
Nottinghamshire County Council,1111/1001,Children and Young People,CYP,Third Party Payments,EDA,28/03/2018,12-16526,"2,671.94",St Josephs Catholic Primary Sch Aca,,
Nottinghamshire County Council,1111/1001,Children and Young People,CYP,Third Party Payments,EDA,28/03/2018,12-16527,13111.73,Worksop Priory CE Primary Academy,,
Nottinghamshire County Council,1111/1001,Children and Young People,CYP,Third Party Payments,EDA,28/03/2018,12-16528,3328.88,Arnbrook Primary Academy,,
Nottinghamshire County Council,1111/1001,Children and Young People,CYP,Third Party Payments,EDA,28/03/2018,12-16529,11753.78,Hillside Academy,,
Nottinghamshire County Council,1111/1001,Children and Young People,CYP,Third Party Payments,EDA,28/03/2018,12-16530,17602.86,The Flying High Academy,,
Nottinghamshire County Council,1111/1001,Children and Young People,CYP,Third Party Payments,EDA,28/03/2018,12-16531,"8,276.14",Wainwright Primary Academy,,
Nottinghamshire County Council,1111/1001,Children and Young People,CYP,Third Party Payments,EDA,28/03/2018,12-16532,11834.13,Serlby Park Academy,,
Nottinghamshire County Council,1111/1001,Children and Young People,CYP,Third Party Payments,EDA,28/03/2018,12-16533,9464.61,Tuxford Primary Academy,,
Nottinghamshire County Council,1111/1001,Children and Young People,CYP,Third Party Payments,EDA,28/03/2018,12-16534,"3,705.08",Mansfield Primary Academy,,
Nottinghamshire County Council,1111/1001,Children and Young People,CYP,Third Party Payments,EDA,28/03/2018,12-16535,21852.6,Barnby Road Academy Prim & Nursery,,
Nottinghamshire County Council,1111/1001,Children and Young People,CYP,Third Party Payments,EDA,28/03/2018,12-16536,19566.86,Candleby Lane School,,
Nottinghamshire County Council,1111/1001,Children and Young People,CYP,Third Party Payments,EDA,29/03/2018,12-16687,3048.38,William Gladstone C of E Primary Ac,,
Nottinghamshire County Council,1111/1001,Children and Young People,CYP,Third Party Payments,EDA,29/03/2018,12-16688,"1,275.95",Kingston Park Academy,,
Nottinghamshire County Council,1111/1001,Children and Young People,CYP,Third Party Payments,EDA,29/03/2018,12-16689,10549.11,Kirkby Woodhouse Academy School,,
Nottinghamshire County Council,1111/1001,Children and Young People,CYP,Third Party Payments,EDA,29/03/2018,12-16690,1071.18,Mapplewells Primary & Nursery Acada,,
Nottinghamshire County Council,1111/1001,Children and Young People,CYP,Third Party Payments,EDA,29/03/2018,12-16691,"11,444.40",Leamington Primary & Nursery Academ,,
Nottinghamshire County Council,1111/1001,Children and Young People,CYP,Third Party Payments,EFA,01/03/2018,12-16717,14906,Derby College,,
Nottinghamshire County Council,1111/1001,Children and Young People,CYP,Third Party Payments,EFA,01/03/2018,12-16803,"2,533.33",Nisai Virtual Academy Ltd,,
Nottinghamshire County Council,1111/1001,Children and Young People,CYP,Third Party Payments,EFA,01/03/2018,12-16805,2533.33,Nisai Virtual Academy Ltd,,
Nottinghamshire County Council,1111/1001,Children and Young People,CYP,Third Party Payments,EFA,02/03/2018,12-16747,"6,540.00",First Universal Enterprises Ltd,,
Nottinghamshire County Council,1111/1001,Children and Young People,CYP,Third Party Payments,EFA,02/03/2018,12-16759,136119,North Notts College,,
Nottinghamshire County Council,1111/1001,Children and Young People,CYP,Third Party Payments,EFA,02/03/2018,12-16761,518.00,Crisp Vocational Provision Ltd,,
Nottinghamshire County Council,1111/1001,Children and Young People,CYP,Third Party Payments,EFA,02/03/2018,12-16765,16233,Pollyteach Ltd,,
Nottinghamshire County Council,1111/1001,Children and Young People,CYP,Third Party Payments,EFA,02/03/2018,12-16767,"1,350.00",Stone Soup Academy,,
Nottinghamshire County Council,1111/1001,Children and Young People,CYP,Third Party Payments,EFA,02/03/2018,12-16768,7540,Stone Soup Academy,,
Nottinghamshire County Council,1111/1001,Children and Young People,CYP,Third Party Payments,EFA,02/03/2018,12-16771,6465,Pollyteach Ltd,,
Nottinghamshire County Council,1111/1001,Children and Young People,CYP,Third Party Payments,EFA,02/03/2018,12-16772,28215.83,Real Education Ltd,,
Nottinghamshire County Council,1111/1001,Children and Young People,CYP,Third Party Payments,EFA,02/03/2018,12-16793,740,Cygnet NW Ltd,,
Nottinghamshire County Council,1111/1001,Children and Young People,CYP,Third Party Payments,EFA,02/03/2018,12-16794,6465.97,Real Education Ltd,,
Nottinghamshire County Council,1111/1001,Children and Young People,CYP,Third Party Payments,EFA,02/03/2018,12-16798,18174.2,Real Education Ltd,,
Nottinghamshire County Council,1111/1001,Children and Young People,CYP,Third Party Payments,EFA,06/03/2018,12-16822,4875,National Teaching & Advisory Servic,,
Nottinghamshire County Council,1111/1001,Children and Young People,CYP,Third Party Payments,EFA,06/03/2018,12-16823,1000,National Teaching & Advisory Servic,,
Nottinghamshire County Council,1111/1001,Children and Young People,CYP,Third Party Payments,EFA,06/03/2018,12-16824,562.50,National Teaching & Advisory Servic,,
Nottinghamshire County Council,1111/1001,Children and Young People,CYP,Third Party Payments,EFA,06/03/2018,12-16825,"1,500.00",National Teaching & Advisory Servic,,
Nottinghamshire County Council,1111/1001,Children and Young People,CYP,Third Party Payments,EFA,06/03/2018,12-16851,4723.36,Sutherland House Trading Ltd,,
Nottinghamshire County Council,1111/1001,Children and Young People,CYP,Third Party Payments,EFA,07/03/2018,12-16830,650,Good Apple Education,,
Nottinghamshire County Council,1111/1001,Children and Young People,CYP,Third Party Payments,EFA,07/03/2018,12-16834,1575,Wings Education Ltd,,
Nottinghamshire County Council,1111/1001,Children and Young People,CYP,Third Party Payments,EFA,07/03/2018,12-16902,"2,582.80","Futures Advice, Skills & Employment",,
Nottinghamshire County Council,1111/1001,Children and Young People,CYP,Third Party Payments,EFA,07/03/2018,12-16906,808.5,A Place To Call Our Own Ltd,,
Nottinghamshire County Council,1111/1001,Children and Young People,CYP,Third Party Payments,EFA,07/03/2018,12-16907,1270.5,A Place To Call Our Own Ltd,,
Nottinghamshire County Council,1111/1001,Children and Young People,CYP,Third Party Payments,EFA,07/03/2018,12-16916,9045.65,REAL Independent School Ltd,,
Nottinghamshire County Council,1111/1001,Children and Young People,CYP,Third Party Payments,EFA,08/03/2018,12-16936,"1,210.00",R Hardy,,
Nottinghamshire County Council,1111/1001,Children and Young People,CYP,Third Party Payments,EFA,09/03/2018,12-17026,9212.67,Homefield College Ltd,,
Nottinghamshire County Council,1111/1001,Children and Young People,CYP,Third Party Payments,EFA,09/03/2018,12-17050,"9,212.67",Homefield College Ltd,,
Nottinghamshire County Council,1111/1001,Children and Young People,CYP,Third Party Payments,EFA,12/03/2018,12-16870,3380,Good Apple Education,,
Nottinghamshire County Council,1111/1001,Children and Young People,CYP,Third Party Payments,EFA,12/03/2018,12-16877,"2,026.50",New Roots Care & Education Ltd,,
Nottinghamshire County Council,1111/1001,Children and Young People,CYP,Third Party Payments,EFA,12/03/2018,12-16939,"1,427.35",Excel for Training @ Chesterfield C,,
Nottinghamshire County Council,1111/1001,Children and Young People,CYP,Third Party Payments,EFA,12/03/2018,12-17008,56223.2,First Class Tailored Solutions Ltd,,
Nottinghamshire County Council,1111/1001,Children and Young People,CYP,Third Party Payments,EFA,12/03/2018,12-17060,"6,395.40",TLG The Education Charity,,
Nottinghamshire County Council,1111/1001,Children and Young People,CYP,Third Party Payments,EFA,13/03/2018,12-16976,6845,Teaching Personnel Ltd,,
Nottinghamshire County Council,1111/1001,Children and Young People,CYP,Third Party Payments,EFA,13/03/2018,12-16991,6845,Teaching Personnel Ltd,,
Nottinghamshire County Council,1111/1001,Children and Young People,CYP,Third Party Payments,EFA,13/03/2018,12-17097,655.19,Buxton Training Enterprises Ltd,,
Nottinghamshire County Council,1111/1001,Children and Young People,CYP,Third Party Payments,EFA,13/03/2018,12-17099,630,Buxton Training Enterprises Ltd,,
Nottinghamshire County Council,1111/1001,Children and Young People,CYP,Third Party Payments,EFA,13/03/2018,12-17100,700.00,Buxton Training Enterprises Ltd,,
Nottinghamshire County Council,1111/1001,Children and Young People,CYP,Third Party Payments,EFA,13/03/2018,12-17162,855.00,Phoenix Aspirational Learning Suppo,,
Nottinghamshire County Council,1111/1001,Children and Young People,CYP,Third Party Payments,EFA,14/03/2018,12-16951,"3,500.00",Thorneywood Education Base,,
Nottinghamshire County Council,1111/1001,Children and Young People,CYP,Third Party Payments,EFA,14/03/2018,12-17195,634.9,V M Smith T/A COTAS,,
Nottinghamshire County Council,1111/1001,Children and Young People,CYP,Third Party Payments,EFA,14/03/2018,12-17205,"1,341.67",Nisai Virtual Academy Ltd,,
Nottinghamshire County Council,1111/1001,Children and Young People,CYP,Third Party Payments,EFA,15/03/2018,12-17258,720.00,Nottingham Tutorial College,,
Nottinghamshire County Council,1111/1001,Children and Young People,CYP,Third Party Payments,EFA,16/03/2018,12-12706,680,One Time Vendor,,
Nottinghamshire County Council,1111/1001,Children and Young People,CYP,Third Party Payments,EFA,16/03/2018,12-16915,4126.19,R.E.A.L Alternative Provision Schoo,,
Nottinghamshire County Council,1111/1001,Children and Young People,CYP,Third Party Payments,EFA,16/03/2018,12-17251,"15,907.00",Sutherland House Trading Ltd,,
Nottinghamshire County Council,1111/1001,Children and Young People,CYP,Third Party Payments,EFA,16/03/2018,12-17254,"2,106.00",Fresh Start in Education Ltd,,
Nottinghamshire County Council,1111/1001,Children and Young People,CYP,Third Party Payments,EFA,16/03/2018,12-17265,1036,Cygnet NW Ltd,,
Nottinghamshire County Council,1111/1001,Children and Young People,CYP,Third Party Payments,EFA,19/03/2018,12-17329,"2,364.50",New Roots Care & Education Ltd,,
Nottinghamshire County Council,1111/1001,Children and Young People,CYP,Third Party Payments,EFA,20/03/2018,12-17188,"1,650.00",S Mosley,,
Nottinghamshire County Council,1111/1001,Children and Young People,CYP,Third Party Payments,EFA,20/03/2018,12-17332,"11,360.00",Teaching Personnel Ltd,,
Nottinghamshire County Council,1111/1001,Children and Young People,CYP,Third Party Payments,EFA,20/03/2018,12-17350,43123.92,First Class Tailored Solutions Ltd,,
Nottinghamshire County Council,1111/1001,Children and Young People,CYP,Third Party Payments,EFA,20/03/2018,12-17354,6845,Teaching Personnel Ltd,,
Nottinghamshire County Council,1111/1001,Children and Young People,CYP,Third Party Payments,EFA,20/03/2018,12-17386,2470,Alternative Programme Education Ltd,,
Nottinghamshire County Council,1111/1001,Children and Young People,CYP,Third Party Payments,EFA,21/03/2018,12-17168,9210.42,Priory Group,,
Nottinghamshire County Council,1111/1001,Children and Young People,CYP,Third Party Payments,EFA,21/03/2018,12-17289,"4,652.00",First Class Tailored Solutions Ltd,,
Nottinghamshire County Council,1111/1001,Children and Young People,CYP,Third Party Payments,EFA,21/03/2018,12-17290,39856,First Class Tailored Solutions Ltd,,
Nottinghamshire County Council,1111/1001,Children and Young People,CYP,Third Party Payments,EFA,21/03/2018,12-17291,1500,First Class Tailored Solutions Ltd,,
Nottinghamshire County Council,1111/1001,Children and Young People,CYP,Third Party Payments,EFA,21/03/2018,12-17352,"19,806.67",Senad Ltd,,
Nottinghamshire County Council,1111/1001,Children and Young People,CYP,Third Party Payments,EFA,21/03/2018,12-17353,"5,942.00",Senad Ltd,,
Nottinghamshire County Council,1111/1001,Children and Young People,CYP,Third Party Payments,EFA,21/03/2018,12-17364,17139,Ackworth School,,
Nottinghamshire County Council,1111/1001,Children and Young People,CYP,Third Party Payments,EFA,21/03/2018,12-17389,660.00,T Dykes,,
Nottinghamshire County Council,1111/1001,Children and Young People,CYP,Third Party Payments,EFA,22/03/2018,12-17453,17152.48,Ackworth School,,
Nottinghamshire County Council,1111/1001,Children and Young People,CYP,Third Party Payments,EFA,23/03/2018,12-16831,701.25,Hope House School Ltd,,
Nottinghamshire County Council,1111/1001,Children and Young People,CYP,Third Party Payments,EFA,23/03/2018,12-16832,701.25,Hope House School Ltd,,
Nottinghamshire County Council,1111/1001,Children and Young People,CYP,Third Party Payments,EFA,29/03/2018,12-17017,5580,First Universal Enterprises Ltd,,
Nottinghamshire County Council,1111/1001,Children and Young People,CYP,Third Party Payments,EFA,29/03/2018,12-17255,6240,Stone Soup Academy,,
Nottinghamshire County Council,1111/1001,Children and Young People,CYP,Third Party Payments,EFA,29/03/2018,12-17456,"12,930.00",Pollyteach Ltd,,
Nottinghamshire County Council,1111/1001,Children and Young People,CYP,Third Party Payments,EGA,01/03/2018,12-10082,"1,139.16",Rainbow Day Nursery,,
Nottinghamshire County Council,1111/1001,Children and Young People,CYP,Third Party Payments,EGA,01/03/2018,12-10083,"6,603.93",Crossdale Busy Bees Pre-School,,
Nottinghamshire County Council,1111/1001,Children and Young People,CYP,Third Party Payments,EGA,01/03/2018,12-10092,"16,113.91",Treetops Nursery (Clipstone),,
Nottinghamshire County Council,1111/1001,Children and Young People,CYP,Third Party Payments,EGA,01/03/2018,12-10114,15349.29,Radcliffe On Trent Day Nursery,,
Nottinghamshire County Council,1111/1001,Children and Young People,CYP,Third Party Payments,EGA,01/03/2018,12-10115,14586.66,Ruddington Nursery & Pre-School,,
Nottinghamshire County Council,1111/1001,Children and Young People,CYP,Third Party Payments,EGA,01/03/2018,12-16766,"17,692.01",Absolute Children�s Services Ltd,,
Nottinghamshire County Council,1111/1001,Children and Young People,CYP,Third Party Payments,EGA,01/03/2018,12-16814,617.45,Learning Ladder Childcare Ltd,,
Nottinghamshire County Council,1111/1001,Children and Young People,CYP,Third Party Payments,EGA,02/03/2018,12-16738,"18,400.00",One To One Crisis Intervention Ltd,,
Nottinghamshire County Council,1111/1001,Children and Young People,CYP,Third Party Payments,EGA,02/03/2018,12-16755,904.68,Framework Housing Association,,
Nottinghamshire County Council,1111/1001,Children and Young People,CYP,Third Party Payments,EGA,02/03/2018,12-16756,"3,179.40",Framework Housing Association,,
Nottinghamshire County Council,1111/1001,Children and Young People,CYP,Third Party Payments,EGA,02/03/2018,12-16774,"13,064.02",Total Care Matters Ltd,,
Nottinghamshire County Council,1111/1001,Children and Young People,CYP,Third Party Payments,EGA,02/03/2018,12-16777,1114.31,Nottingham Mencap,,
Nottinghamshire County Council,1111/1001,Children and Young People,CYP,Third Party Payments,EGA,02/03/2018,12-16778,"1,050.00",Nottingham Mencap,,
Nottinghamshire County Council,1111/1001,Children and Young People,CYP,Third Party Payments,EGA,02/03/2018,12-16779,"1,638.00",Nottingham Mencap,,
Nottinghamshire County Council,1111/1001,Children and Young People,CYP,Third Party Payments,EGA,02/03/2018,12-16780,762.50,Nottingham Mencap,,
Nottinghamshire County Council,1111/1001,Children and Young People,CYP,Third Party Payments,EGA,02/03/2018,12-16790,3236,Five Rivers Child Care Ltd,,
Nottinghamshire County Council,1111/1001,Children and Young People,CYP,Third Party Payments,EGA,02/03/2018,12-16791,"25,305.33",Treehouse Care Fostering Solutions,,
Nottinghamshire County Council,1111/1001,Children and Young People,CYP,Third Party Payments,EGA,02/03/2018,12-16818,"8,292.00",Hope Fostering Services Ltd,,
Nottinghamshire County Council,1111/1001,Children and Young People,CYP,Third Party Payments,EGA,02/03/2018,12-16829,"9,200.00",Unique Care Homes Support Ltd,,
Nottinghamshire County Council,1111/1001,Children and Young People,CYP,Third Party Payments,EGA,02/03/2018,12-16833,20370.72,Teen Support Services Ltd,,
Nottinghamshire County Council,1111/1001,Children and Young People,CYP,Third Party Payments,EGA,02/03/2018,12-16838,"3,195.92",Fosterplus Ltd,,
Nottinghamshire County Council,1111/1001,Children and Young People,CYP,Third Party Payments,EGA,02/03/2018,12-16849,12649.45,Capstone Foster Care Ltd,,
Nottinghamshire County Council,1111/1001,Children and Young People,CYP,Third Party Payments,EGA,05/03/2018,12-10250,2220.11,Costock Pre School,,
Nottinghamshire County Council,1111/1001,Children and Young People,CYP,Third Party Payments,EGA,05/03/2018,12-10251,"5,230.07",Trowell Pre School,,
Nottinghamshire County Council,1111/1001,Children and Young People,CYP,Third Party Payments,EGA,05/03/2018,12-16865,69327.16,The National Fostering Agency,,
Nottinghamshire County Council,1111/1001,Children and Young People,CYP,Third Party Payments,EGA,06/03/2018,12-16842,"26,282.00",Nottinghamshire YMCA (HO),,
Nottinghamshire County Council,1111/1001,Children and Young People,CYP,Third Party Payments,EGA,06/03/2018,12-16852,785.20,Scope,,
Nottinghamshire County Council,1111/1001,Children and Young People,CYP,Third Party Payments,EGA,06/03/2018,12-16895,"903,407.67",Nottinghamshire Healthcare Nhs F Tr,,
Nottinghamshire County Council,1111/1001,Children and Young People,CYP,Third Party Payments,EGA,06/03/2018,12-16909,"76,086.71",Fusion Fostering Ltd,,
Nottinghamshire County Council,1111/1001,Children and Young People,CYP,Third Party Payments,EGA,07/03/2018,12-11354,1625.07,PSLA Newstead Childcare (HO),,
Nottinghamshire County Council,1111/1001,Children and Young People,CYP,Third Party Payments,EGA,07/03/2018,12-11355,727.92,PSLA Newstead Childcare (HO),,
Nottinghamshire County Council,1111/1001,Children and Young People,CYP,Third Party Payments,EGA,07/03/2018,12-11356,"2,685.90",Woodthorpe Day Nursery Ltd,,
Nottinghamshire County Council,1111/1001,Children and Young People,CYP,Third Party Payments,EGA,07/03/2018,12-11357,832.83,PSLA Newstead Childcare (HO),,
Nottinghamshire County Council,1111/1001,Children and Young People,CYP,Third Party Payments,EGA,07/03/2018,12-11358,783.39,Fledglings Playgroup,,
Nottinghamshire County Council,1111/1001,Children and Young People,CYP,Third Party Payments,EGA,07/03/2018,12-11359,731.19,Fernwood Day Nursery Ltd,,
Nottinghamshire County Council,1111/1001,Children and Young People,CYP,Third Party Payments,EGA,07/03/2018,12-11360,"1,147.07",Village Day Nursery,,
Nottinghamshire County Council,1111/1001,Children and Young People,CYP,Third Party Payments,EGA,07/03/2018,12-11361,"1,745.85",Granby House Nursery,,
Nottinghamshire County Council,1111/1001,Children and Young People,CYP,Third Party Payments,EGA,07/03/2018,12-11362,938.25,Happy Days Childcare Services Ltd,,
Nottinghamshire County Council,1111/1001,Children and Young People,CYP,Third Party Payments,EGA,07/03/2018,12-11363,688.05,Ladybird Childminding,,
Nottinghamshire County Council,1111/1001,Children and Young People,CYP,Third Party Payments,EGA,07/03/2018,12-11364,2201.76,Hermitage Pre-School,,
Nottinghamshire County Council,1111/1001,Children and Young People,CYP,Third Party Payments,EGA,07/03/2018,12-11365,793.29,Hollies Day Nurseries Limited,,
Nottinghamshire County Council,1111/1001,Children and Young People,CYP,Third Party Payments,EGA,07/03/2018,12-11366,826.65,Hollies Day Nursery (Loughborough R,,
Nottinghamshire County Council,1111/1001,Children and Young People,CYP,Third Party Payments,EGA,07/03/2018,12-11367,941.4,Townrow Tiny Tots Day Nursery Ltd,,
Nottinghamshire County Council,1111/1001,Children and Young People,CYP,Third Party Payments,EGA,07/03/2018,12-11368,688.05,Jesters Childcare Ltd,,
Nottinghamshire County Council,1111/1001,Children and Young People,CYP,Third Party Payments,EGA,07/03/2018,12-11369,1488.45,Tiny Teddies Day Nursery,,
Nottinghamshire County Council,1111/1001,Children and Young People,CYP,Third Party Payments,EGA,07/03/2018,12-11370,784.5,Kingfisher Day Nursery,,
Nottinghamshire County Council,1111/1001,Children and Young People,CYP,Third Party Payments,EGA,07/03/2018,12-11371,1444.91,Leahurst Road Pre-School,,
Nottinghamshire County Council,1111/1001,Children and Young People,CYP,Third Party Payments,EGA,07/03/2018,12-11372,532.35,Wolds Childcare Ltd,,
Nottinghamshire County Council,1111/1001,Children and Young People,CYP,Third Party Payments,EGA,07/03/2018,12-11373,"1,822.83",Country Kids Day Nursery,,
Nottinghamshire County Council,1111/1001,Children and Young People,CYP,Third Party Payments,EGA,07/03/2018,12-11374,1313.55,Childrens House Childcare Ltd,,
Nottinghamshire County Council,1111/1001,Children and Young People,CYP,Third Party Payments,EGA,07/03/2018,12-11375,688.05,Claremont Early Years Ltd,,
Nottinghamshire County Council,1111/1001,Children and Young People,CYP,Third Party Payments,EGA,07/03/2018,12-11376,742.26,Daisies Day Nursery,,
Nottinghamshire County Council,1111/1001,Children and Young People,CYP,Third Party Payments,EGA,07/03/2018,12-11377,562.95,A Davis,,
Nottinghamshire County Council,1111/1001,Children and Young People,CYP,Third Party Payments,EGA,07/03/2018,12-11379,903.9,Grosvenor House Day Nursery,,
Nottinghamshire County Council,1111/1001,Children and Young People,CYP,Third Party Payments,EGA,07/03/2018,12-11380,706.05,J Redgate,,
Nottinghamshire County Council,1111/1001,Children and Young People,CYP,Third Party Payments,EGA,07/03/2018,12-11381,1596.6,Little Beans Childcare Ltd,,
Nottinghamshire County Council,1111/1001,Children and Young People,CYP,Third Party Payments,EGA,07/03/2018,12-11382,4683.48,Little Bears Day Nursery,,
Nottinghamshire County Council,1111/1001,Children and Young People,CYP,Third Party Payments,EGA,07/03/2018,12-11383,688.05,Little House Childcare of Brinsley,,
Nottinghamshire County Council,1111/1001,Children and Young People,CYP,Third Party Payments,EGA,07/03/2018,12-11384,3060.09,Little Kites Playgroup,,
Nottinghamshire County Council,1111/1001,Children and Young People,CYP,Third Party Payments,EGA,07/03/2018,12-11385,1876.5,Little Millers Day Nursery,,
Nottinghamshire County Council,1111/1001,Children and Young People,CYP,Third Party Payments,EGA,07/03/2018,12-11386,917.40,Little Oaks Nursery,,
Nottinghamshire County Council,1111/1001,Children and Young People,CYP,Third Party Payments,EGA,07/03/2018,12-11387,1305.22,Lowater Street Play  & Pre School,,
Nottinghamshire County Council,1111/1001,Children and Young People,CYP,Third Party Payments,EGA,07/03/2018,12-11388,861.90,Luan's Little People,,
Nottinghamshire County Council,1111/1001,Children and Young People,CYP,Third Party Payments,EGA,07/03/2018,12-11389,3579.56,Oceans Day Nursery,,
Nottinghamshire County Council,1111/1001,Children and Young People,CYP,Third Party Payments,EGA,07/03/2018,12-11390,1603.5,Papermoon Day Nursery,,
Nottinghamshire County Council,1111/1001,Children and Young People,CYP,Third Party Payments,EGA,07/03/2018,12-11391,"1,376.10",Pea Pod Day Nursery Ltd,,
Nottinghamshire County Council,1111/1001,Children and Young People,CYP,Third Party Payments,EGA,07/03/2018,12-11392,585.75,PSLA Newstead Childcare (HO),,
Nottinghamshire County Council,1111/1001,Children and Young People,CYP,Third Party Payments,EGA,07/03/2018,12-11393,917.4,Sconce Hills Pre-School Playgroup,,
Nottinghamshire County Council,1111/1001,Children and Young People,CYP,Third Party Payments,EGA,07/03/2018,12-11394,562.95,Scottswood Pdn Ltd,,
Nottinghamshire County Council,1111/1001,Children and Young People,CYP,Third Party Payments,EGA,07/03/2018,12-11395,1549.95,Sunnydale Nursery Ltd,,
Nottinghamshire County Council,1111/1001,Children and Young People,CYP,Third Party Payments,EGA,07/03/2018,12-11396,1472.01,The Lime Trees,,
Nottinghamshire County Council,1111/1001,Children and Young People,CYP,Third Party Payments,EGA,07/03/2018,12-11397,3898.2,The Rocking Horse Child Care Centre,,
Nottinghamshire County Council,1111/1001,Children and Young People,CYP,Third Party Payments,EGA,07/03/2018,12-11398,627.6,Tinas Childminding,,
Nottinghamshire County Council,1111/1001,Children and Young People,CYP,Third Party Payments,EGA,07/03/2018,12-11399,1326.96,Willow Childcare & Training Ltd,,
Nottinghamshire County Council,1111/1001,Children and Young People,CYP,Third Party Payments,EGA,07/03/2018,12-11400,705,Little Lillies Childminding,,
Nottinghamshire County Council,1111/1001,Children and Young People,CYP,Third Party Payments,EGA,07/03/2018,12-11401,1376.1,Mapperley Day Nursery,,
Nottinghamshire County Council,1111/1001,Children and Young People,CYP,Third Party Payments,EGA,07/03/2018,12-11402,762.87,Noahs Ark Playgroup,,
Nottinghamshire County Council,1111/1001,Children and Young People,CYP,Third Party Payments,EGA,07/03/2018,12-11403,"1,827.15",Papermoon Day Nursery,,
Nottinghamshire County Council,1111/1001,Children and Young People,CYP,Third Party Payments,EGA,07/03/2018,12-11404,1535.96,Portland Place Pre-School,,
Nottinghamshire County Council,1111/1001,Children and Young People,CYP,Third Party Payments,EGA,07/03/2018,12-11406,627.6,Rocking Horse Nursery Butlers Hill,,
Nottinghamshire County Council,1111/1001,Children and Young People,CYP,Third Party Payments,EGA,07/03/2018,12-11407,549.15,Stapleford Day Nursery,,
Nottinghamshire County Council,1111/1001,Children and Young People,CYP,Third Party Payments,EGA,07/03/2018,12-11408,780.78,Staunton Montessori Nursery School,,
Nottinghamshire County Council,1111/1001,Children and Young People,CYP,Third Party Payments,EGA,07/03/2018,12-11409,1014.42,St Johns Playgroup,,
Nottinghamshire County Council,1111/1001,Children and Young People,CYP,Third Party Payments,EGA,07/03/2018,12-11410,1055.01,The Lime Trees (Forest Town),,
Nottinghamshire County Council,1111/1001,Children and Young People,CYP,Third Party Payments,EGA,07/03/2018,12-11411,1158.75,The Lime Trees,,
Nottinghamshire County Council,1111/1001,Children and Young People,CYP,Third Party Payments,EGA,07/03/2018,12-11412,859.05,The Lime Trees,,
Nottinghamshire County Council,1111/1001,Children and Young People,CYP,Third Party Payments,EGA,07/03/2018,12-11413,"1,381.51",The Orchard Day Nursery,,
Nottinghamshire County Council,1111/1001,Children and Young People,CYP,Third Party Payments,EGA,07/03/2018,12-11414,625.50,The West Bridgford Day Nursery,,
Nottinghamshire County Council,1111/1001,Children and Young People,CYP,Third Party Payments,EGA,07/03/2018,12-11415,730.5,Toddlers University (Bee),,
Nottinghamshire County Council,1111/1001,Children and Young People,CYP,Third Party Payments,EGA,07/03/2018,12-11416,1850.25,Treetops Nurseries Ltd,,
Nottinghamshire County Council,1111/1001,Children and Young People,CYP,Third Party Payments,EGA,07/03/2018,12-11417,"1,013.27",Treetops Nursery,,
Nottinghamshire County Council,1111/1001,Children and Young People,CYP,Third Party Payments,EGA,07/03/2018,12-11418,617.00,Walesby School Playgroup,,
Nottinghamshire County Council,1111/1001,Children and Young People,CYP,Third Party Payments,EGA,07/03/2018,12-11419,730.02,Willow Pre-School Playgroup,,
Nottinghamshire County Council,1111/1001,Children and Young People,CYP,Third Party Payments,EGA,07/03/2018,12-11420,"1,961.55",Wollaton Village Day Nurseries Ltd.,,
Nottinghamshire County Council,1111/1001,Children and Young People,CYP,Third Party Payments,EGA,07/03/2018,12-11498,1501.2,Balderton Village Day Nursery,,
Nottinghamshire County Council,1111/1001,Children and Young People,CYP,Third Party Payments,EGA,07/03/2018,12-11499,1238.25,S Roche (Childminder),,
Nottinghamshire County Council,1111/1001,Children and Young People,CYP,Third Party Payments,EGA,07/03/2018,12-11500,627.60,Rainbows Childminding,,
Nottinghamshire County Council,1111/1001,Children and Young People,CYP,Third Party Payments,EGA,07/03/2018,12-11503,10035.27,Lime Trees Day Nursery (Carlton),,
Nottinghamshire County Council,1111/1001,Children and Young People,CYP,Third Party Payments,EGA,07/03/2018,12-11505,549.15,Gemmas Little Gems,,
Nottinghamshire County Council,1111/1001,Children and Young People,CYP,Third Party Payments,EGA,07/03/2018,12-11506,862.95,Building Block Childcare,,
Nottinghamshire County Council,1111/1001,Children and Young People,CYP,Third Party Payments,EGA,07/03/2018,12-11507,688.05,J Christmas (Childminder),,
Nottinghamshire County Council,1111/1001,Children and Young People,CYP,Third Party Payments,EGA,07/03/2018,12-11508,549.15,R Amonoo-Neizer (Childminder),,
Nottinghamshire County Council,1111/1001,Children and Young People,CYP,Third Party Payments,EGA,07/03/2018,12-11515,2816.64,Nurseryworld & Friends Nursery & Pr,,
Nottinghamshire County Council,1111/1001,Children and Young People,CYP,Third Party Payments,EGA,07/03/2018,12-16893,"3,244.94",Framework Housing Association,,
Nottinghamshire County Council,1111/1001,Children and Young People,CYP,Third Party Payments,EGA,07/03/2018,12-16903,19485.36,Jani Homes Ltd,,
Nottinghamshire County Council,1111/1001,Children and Young People,CYP,Third Party Payments,EGA,07/03/2018,12-16931,"15,362.48",Anglia Fostering Agency Ltd,,
Nottinghamshire County Council,1111/1001,Children and Young People,CYP,Third Party Payments,EGA,07/03/2018,12-16933,"7,131.15",Sunbeam Fostering Agency Ltd,,
Nottinghamshire County Council,1111/1001,Children and Young People,CYP,Third Party Payments,EGA,07/03/2018,12-16938,"15,000.00",Remedi,,
Nottinghamshire County Council,1111/1001,Children and Young People,CYP,Third Party Payments,EGA,07/03/2018,12-16940,3260.04,Child Care Bureau Ltd,,
Nottinghamshire County Council,1111/1001,Children and Young People,CYP,Third Party Payments,EGA,07/03/2018,12-16941,3222.8,Child Care Bureau Ltd,,
Nottinghamshire County Council,1111/1001,Children and Young People,CYP,Third Party Payments,EGA,07/03/2018,12-16956,14600,Esland North Ltd,,
Nottinghamshire County Council,1111/1001,Children and Young People,CYP,Third Party Payments,EGA,08/03/2018,12-11405,"2,531.19",Railway Children Playgroup,,
Nottinghamshire County Council,1111/1001,Children and Young People,CYP,Third Party Payments,EGA,08/03/2018,12-11516,"1,880.25",All Saints C Of E Primary School,,
Nottinghamshire County Council,1111/1001,Children and Young People,CYP,Third Party Payments,EGA,08/03/2018,12-11517,"3,148.35",Alphabet House Day Nursery (Chilwel,,
Nottinghamshire County Council,1111/1001,Children and Young People,CYP,Third Party Payments,EGA,08/03/2018,12-11518,520.95,Alphabet House Nursery,,
Nottinghamshire County Council,1111/1001,Children and Young People,CYP,Third Party Payments,EGA,08/03/2018,12-11519,"1,554.30",Applegarth Day Nurseries Ltd,,
Nottinghamshire County Council,1111/1001,Children and Young People,CYP,Third Party Payments,EGA,08/03/2018,12-11520,820.73,Appleton Childcare Ltd,,
Nottinghamshire County Council,1111/1001,Children and Young People,CYP,Third Party Payments,EGA,08/03/2018,12-11521,1759.95,Arnold House Day Nursery,,
Nottinghamshire County Council,1111/1001,Children and Young People,CYP,Third Party Payments,EGA,08/03/2018,12-11522,791.00,Attenborough Day Nursery & Pre-Sch,,
Nottinghamshire County Council,1111/1001,Children and Young People,CYP,Third Party Payments,EGA,08/03/2018,12-11523,1033.65,Balderton Village Day Nursery,,
Nottinghamshire County Council,1111/1001,Children and Young People,CYP,Third Party Payments,EGA,08/03/2018,12-11524,907.50,Beeston Nursery,,
Nottinghamshire County Council,1111/1001,Children and Young People,CYP,Third Party Payments,EGA,08/03/2018,12-11525,1819.95,Bizzy Kidz,,
Nottinghamshire County Council,1111/1001,Children and Young People,CYP,Third Party Payments,EGA,08/03/2018,12-11526,1688.85,Bright Sparks Day Nursery,,
Nottinghamshire County Council,1111/1001,Children and Young People,CYP,Third Party Payments,EGA,08/03/2018,12-11527,"1,065.66",Bullpit Road Nursery,,
Nottinghamshire County Council,1111/1001,Children and Young People,CYP,Third Party Payments,EGA,08/03/2018,12-11528,1593.6,Busy Bees (Daybrook),,
Nottinghamshire County Council,1111/1001,Children and Young People,CYP,Third Party Payments,EGA,08/03/2018,12-11529,688.05,Busy Bees Nursery,,
Nottinghamshire County Council,1111/1001,Children and Young People,CYP,Third Party Payments,EGA,08/03/2018,12-11530,"1,115.25",Butterflies Nursery (West Notts Col,,
Nottinghamshire County Council,1111/1001,Children and Young People,CYP,Third Party Payments,EGA,08/03/2018,12-11531,750.60,Cared 4 Ltd T/A Brookhill House Day,,
Nottinghamshire County Council,1111/1001,Children and Young People,CYP,Third Party Payments,EGA,08/03/2018,12-11532,1197.33,Carlton Preschool Playgroup,,
Nottinghamshire County Council,1111/1001,Children and Young People,CYP,Third Party Payments,EGA,08/03/2018,12-11533,"1,837.20",Cherubs Childcare Centre (Mansfield,,
Nottinghamshire County Council,1111/1001,Children and Young People,CYP,Third Party Payments,EGA,08/03/2018,12-11534,828.90,Cherubs Childrens Centre Pleasley,,
Nottinghamshire County Council,1111/1001,Children and Young People,CYP,Third Party Payments,EGA,08/03/2018,12-11535,2436.43,Cherubs Childrens Centre Wynndale,,
Nottinghamshire County Council,1111/1001,Children and Young People,CYP,Third Party Payments,EGA,08/03/2018,12-11536,"1,181.78",Cherubs Ryton Park,,
Nottinghamshire County Council,1111/1001,Children and Young People,CYP,Third Party Payments,EGA,08/03/2018,12-11537,"5,154.11",Child First (Welbeck) (Childminding,,
Nottinghamshire County Council,1111/1001,Children and Young People,CYP,Third Party Payments,EGA,08/03/2018,12-11538,"2,366.25",Children 1st @ Newark Centre,,
Nottinghamshire County Council,1111/1001,Children and Young People,CYP,Third Party Payments,EGA,08/03/2018,12-11539,2107.23,Crossdale Busy Bees Pre-School,,
Nottinghamshire County Council,1111/1001,Children and Young People,CYP,Third Party Payments,EGA,08/03/2018,12-11540,1263.26,Little House Of Horrors,,
Nottinghamshire County Council,1111/1001,Children and Young People,CYP,Third Party Payments,EGA,08/03/2018,12-11541,1725.9,R Saucedo,,
Nottinghamshire County Council,1111/1001,Children and Young People,CYP,Third Party Payments,EGA,08/03/2018,12-11542,688.05,S Cave (Childminding Service),,
Nottinghamshire County Council,1111/1001,Children and Young People,CYP,Third Party Payments,EGA,08/03/2018,12-11917,"1,981.58",Chetwynd Little Troopers Nursery &,,
Nottinghamshire County Council,1111/1001,Children and Young People,CYP,Third Party Payments,EGA,08/03/2018,12-16900,900,Piers (UK) Ltd,,
Nottinghamshire County Council,1111/1001,Children and Young People,CYP,Third Party Payments,EGA,08/03/2018,12-16963,7131.15,Sunbeam Fostering Agency Ltd,,
Nottinghamshire County Council,1111/1001,Children and Young People,CYP,Third Party Payments,EGA,08/03/2018,12-16969,"13,064.29",The Place Young Peoples Company Ltd,,
Nottinghamshire County Council,1111/1001,Children and Young People,CYP,Third Party Payments,EGA,08/03/2018,12-16972,"9,459.29",Hope Fostering Services Ltd,,
Nottinghamshire County Council,1111/1001,Children and Young People,CYP,Third Party Payments,EGA,09/03/2018,12-11920,615.00,Cherubs Childrens Centre Wynndale,,
Nottinghamshire County Council,1111/1001,Children and Young People,CYP,Third Party Payments,EGA,09/03/2018,12-11921,"1,231.20",Lambley Day Nursery Ltd,,
Nottinghamshire County Council,1111/1001,Children and Young People,CYP,Third Party Payments,EGA,09/03/2018,12-11922,850.42,Westdale Pre-School,,
Nottinghamshire County Council,1111/1001,Children and Young People,CYP,Third Party Payments,EGA,09/03/2018,12-11923,910.98,Leen Mills Pre School Playgroup,,
Nottinghamshire County Council,1111/1001,Children and Young People,CYP,Third Party Payments,EGA,09/03/2018,12-11924,"1,237.20",PSLA Newstead Childcare (HO),,
Nottinghamshire County Council,1111/1001,Children and Young People,CYP,Third Party Payments,EGA,09/03/2018,12-11942,858.96,Carnarvon Pre-School,,
Nottinghamshire County Council,1111/1001,Children and Young People,CYP,Third Party Payments,EGA,09/03/2018,12-17009,"18,031.16",Barnardos Family Placement Unit,,
Nottinghamshire County Council,1111/1001,Children and Young People,CYP,Third Party Payments,EGA,12/03/2018,12-17035,"7,971.42",Naid Project Ltd,,
Nottinghamshire County Council,1111/1001,Children and Young People,CYP,Third Party Payments,EGA,13/03/2018,12-17172,23368.42,"Culture, Learning & Libraries (Midl",,
Nottinghamshire County Council,1111/1001,Children and Young People,CYP,Third Party Payments,EGA,14/03/2018,12-12534,550.44,PSLA Newstead Childcare (HO),,
Nottinghamshire County Council,1111/1001,Children and Young People,CYP,Third Party Payments,EGA,14/03/2018,12-17185,"1,128.35",Newark Emmaus Trust,,
Nottinghamshire County Council,1111/1001,Children and Young People,CYP,Third Party Payments,EGA,14/03/2018,12-17210,"2,833.35",Acorn Fostering Services Ltd,,
Nottinghamshire County Council,1111/1001,Children and Young People,CYP,Third Party Payments,EGA,14/03/2018,12-17211,800,Foster Care Associates Limited,,
Nottinghamshire County Council,1111/1001,Children and Young People,CYP,Third Party Payments,EGA,15/03/2018,12-17127,12888.34,Sunbeam Fostering Agency Ltd,,
Nottinghamshire County Council,1111/1001,Children and Young People,CYP,Third Party Payments,EGA,15/03/2018,12-17128,"12,888.34",Sunbeam Fostering Agency Ltd,,
Nottinghamshire County Council,1111/1001,Children and Young People,CYP,Third Party Payments,EGA,15/03/2018,12-17222,"99,324.00",Castle Homes Care Ltd,,
Nottinghamshire County Council,1111/1001,Children and Young People,CYP,Third Party Payments,EGA,15/03/2018,12-17223,"99,324.00",Castle Homes Care Ltd,,
Nottinghamshire County Council,1111/1001,Children and Young People,CYP,Third Party Payments,EGA,15/03/2018,12-17230,"119,722.26",Fostering People Ltd,,
Nottinghamshire County Council,1111/1001,Children and Young People,CYP,Third Party Payments,EGA,15/03/2018,12-17240,525.00,JPAC Ltd,,
Nottinghamshire County Council,1111/1001,Children and Young People,CYP,Third Party Payments,EGA,15/03/2018,12-17250,902.68,Newark Emmaus Trust,,
Nottinghamshire County Council,1111/1001,Children and Young People,CYP,Third Party Payments,EGA,15/03/2018,12-17259,"11,051.19",Fosterplus Ltd,,
Nottinghamshire County Council,1111/1001,Children and Young People,CYP,Third Party Payments,EGA,15/03/2018,12-17260,"99,324.00",Castle Homes Care Ltd,,
Nottinghamshire County Council,1111/1001,Children and Young People,CYP,Third Party Payments,EGA,15/03/2018,12-17262,13064.29,The Place Young Peoples Company Ltd,,
Nottinghamshire County Council,1111/1001,Children and Young People,CYP,Third Party Payments,EGA,15/03/2018,12-17264,"19,100.65",Orange Grove Fostercare Ltd,,
Nottinghamshire County Council,1111/1001,Children and Young People,CYP,Third Party Payments,EGA,15/03/2018,12-17267,"195,223.25",Homes 2 Inspire Ltd,,
Nottinghamshire County Council,1111/1001,Children and Young People,CYP,Third Party Payments,EGA,16/03/2018,12-12696,549.15,Fernwood Day Nursery Ltd,,
Nottinghamshire County Council,1111/1001,Children and Young People,CYP,Third Party Payments,EGA,16/03/2018,12-12697,539.1,Killisick Pre-School,,
Nottinghamshire County Council,1111/1001,Children and Young People,CYP,Third Party Payments,EGA,16/03/2018,12-12698,"2,059.50",Lime Trees Day Nursery (Carlton),,
Nottinghamshire County Council,1111/1001,Children and Young People,CYP,Third Party Payments,EGA,16/03/2018,12-12699,688.05,Little Lambs Day Nursery,,
Nottinghamshire County Council,1111/1001,Children and Young People,CYP,Third Party Payments,EGA,16/03/2018,12-12700,"17,610.13",Secret Garden Childcare Ltd,,
Nottinghamshire County Council,1111/1001,Children and Young People,CYP,Third Party Payments,EGA,16/03/2018,12-12701,"2,992.80",Zoe's Childcare Ltd,,
Nottinghamshire County Council,1111/1001,Children and Young People,CYP,Third Party Payments,EGA,16/03/2018,12-12702,"2,413.95",Zoes Childcare Ltd,,
Nottinghamshire County Council,1111/1001,Children and Young People,CYP,Third Party Payments,EGA,16/03/2018,12-17244,14240,New Roots Housing Project,,
Nottinghamshire County Council,1111/1001,Children and Young People,CYP,Third Party Payments,EGA,16/03/2018,12-17245,"2,029.76",New Roots Housing Project,,
Nottinghamshire County Council,1111/1001,Children and Young People,CYP,Third Party Payments,EGA,16/03/2018,12-17253,751,A Place To Call Our Own Ltd,,
Nottinghamshire County Council,1111/1001,Children and Young People,CYP,Third Party Payments,EGA,16/03/2018,12-17256,1343,Carers Trust East Midlands,,
Nottinghamshire County Council,1111/1001,Children and Young People,CYP,Third Party Payments,EGA,16/03/2018,12-17268,827.75,A Place To Call Our Own Ltd,,
Nottinghamshire County Council,1111/1001,Children and Young People,CYP,Third Party Payments,EGA,16/03/2018,12-17274,41088.73,Fostering Solutions Ltd,,
Nottinghamshire County Council,1111/1001,Children and Young People,CYP,Third Party Payments,EGA,16/03/2018,12-17276,"1,340.13",The Appropriate Adult Service Ltd,,
Nottinghamshire County Council,1111/1001,Children and Young People,CYP,Third Party Payments,EGA,16/03/2018,12-17309,2009.24,Newport City Council,,
Nottinghamshire County Council,1111/1001,Children and Young People,CYP,Third Party Payments,EGA,16/03/2018,12-17310,"1,577.46",Newport City Council,,
Nottinghamshire County Council,1111/1001,Children and Young People,CYP,Third Party Payments,EGA,19/03/2018,12-17330,12649.45,Capstone Foster Care Ltd,,
Nottinghamshire County Council,1111/1001,Children and Young People,CYP,Third Party Payments,EGA,19/03/2018,12-17331,60538.15,By The Bridge Ltd,,
Nottinghamshire County Council,1111/1001,Children and Young People,CYP,Third Party Payments,EGA,19/03/2018,12-17340,8799.84,Jani Homes Ltd,,
Nottinghamshire County Council,1111/1001,Children and Young People,CYP,Third Party Payments,EGA,19/03/2018,12-17356,12454.56,Safe Haven Accommodation Ltd,,
Nottinghamshire County Council,1111/1001,Children and Young People,CYP,Third Party Payments,EGA,19/03/2018,12-17357,9888.81,Safe Haven Accommodation Ltd,,
Nottinghamshire County Council,1111/1001,Children and Young People,CYP,Third Party Payments,EGA,19/03/2018,12-17358,"2,949.43",Safe Haven Accommodation Ltd,,
Nottinghamshire County Council,1111/1001,Children and Young People,CYP,Third Party Payments,EGA,19/03/2018,12-17360,2949.43,Safe Haven Accommodation Ltd,,
Nottinghamshire County Council,1111/1001,Children and Young People,CYP,Third Party Payments,EGA,20/03/2018,12-15419,600.9,The Orchard Day Nursery,,
Nottinghamshire County Council,1111/1001,Children and Young People,CYP,Third Party Payments,EGA,20/03/2018,12-15420,688.05,Country Kids Day Nursery,,
Nottinghamshire County Council,1111/1001,Children and Young People,CYP,Third Party Payments,EGA,20/03/2018,12-15421,615,Bright Sparks Day Nursery,,
Nottinghamshire County Council,1111/1001,Children and Young People,CYP,Third Party Payments,EGA,20/03/2018,12-15559,750.6,Applegarth Day Nurseries Ltd,,
Nottinghamshire County Council,1111/1001,Children and Young People,CYP,Third Party Payments,EGA,20/03/2018,12-15560,500.4,Emma's Enchanted Garden Childcare,,
Nottinghamshire County Council,1111/1001,Children and Young People,CYP,Third Party Payments,EGA,20/03/2018,12-15561,672.00,Secret Garden Childcare Ltd,,
Nottinghamshire County Council,1111/1001,Children and Young People,CYP,Third Party Payments,EGA,20/03/2018,12-15562,776.58,Woodpeckers After School Club Ltd,,
Nottinghamshire County Council,1111/1001,Children and Young People,CYP,Third Party Payments,EGA,20/03/2018,12-17270,881.00,Spectrum Wasp,,
Nottinghamshire County Council,1111/1001,Children and Young People,CYP,Third Party Payments,EGA,20/03/2018,12-17275,"1,520.00",Spectrum Wasp,,
Nottinghamshire County Council,1111/1001,Children and Young People,CYP,Third Party Payments,EGA,20/03/2018,12-17343,10462.5,Safe Haven Accommodation Ltd,,
Nottinghamshire County Council,1111/1001,Children and Young People,CYP,Third Party Payments,EGA,20/03/2018,12-17344,"2,785.57",Safe Haven Accommodation Ltd,,
Nottinghamshire County Council,1111/1001,Children and Young People,CYP,Third Party Payments,EGA,20/03/2018,12-17345,"25,234.00",Safe Haven Accommodation Ltd,,
Nottinghamshire County Council,1111/1001,Children and Young People,CYP,Third Party Payments,EGA,20/03/2018,12-17377,20002.16,Teen Support Services Ltd,,
Nottinghamshire County Council,1111/1001,Children and Young People,CYP,Third Party Payments,EGA,21/03/2018,12-15571,615,PSLA Newstead Childcare (HO),,
Nottinghamshire County Council,1111/1001,Children and Young People,CYP,Third Party Payments,EGA,21/03/2018,12-17404,1196.73,Fusion Fostering Ltd,,
Nottinghamshire County Council,1111/1001,Children and Young People,CYP,Third Party Payments,EGA,21/03/2018,12-17405,76086.71,Fusion Fostering Ltd,,
Nottinghamshire County Council,1111/1001,Children and Young People,CYP,Third Party Payments,EGA,21/03/2018,12-17410,"20,080.47",Safe Haven Accommodation Ltd,,
Nottinghamshire County Council,1111/1001,Children and Young People,CYP,Third Party Payments,EGA,21/03/2018,12-17411,"3,940.59",Safe Haven Accommodation Ltd,,
Nottinghamshire County Council,1111/1001,Children and Young People,CYP,Third Party Payments,EGA,21/03/2018,12-17412,"4,104.00",Safe Haven Accommodation Ltd,,
Nottinghamshire County Council,1111/1001,Children and Young People,CYP,Third Party Payments,EGA,22/03/2018,12-17445,"76,086.71",Fusion Fostering Ltd,,
Nottinghamshire County Council,1111/1001,Children and Young People,CYP,Third Party Payments,EGA,22/03/2018,12-17447,"10,602.00",Integrated Services Programme,,
Nottinghamshire County Council,1111/1001,Children and Young People,CYP,Third Party Payments,EGA,22/03/2018,12-17495,"17,697.35",Compass Fostering Central Ltd,,
Nottinghamshire County Council,1111/1001,Children and Young People,CYP,Third Party Payments,EGA,23/03/2018,12-17500,617.50,Sensory Learning & Play CIC,,
Nottinghamshire County Council,1111/1001,Children and Young People,CYP,Third Party Payments,EGA,26/03/2018,12-16199,862.95,Amanda Birth to 11yrs Childcare,,
Nottinghamshire County Council,1111/1001,Children and Young People,CYP,Third Party Payments,EGA,26/03/2018,12-16200,1551,Costock Pre School,,
Nottinghamshire County Council,1111/1001,Children and Young People,CYP,Third Party Payments,EGA,26/03/2018,12-16201,504.15,Leen Mills Pre School Playgroup,,
Nottinghamshire County Council,1111/1001,Children and Young People,CYP,Third Party Payments,EGA,26/03/2018,12-16202,580.53,Railway Children Playgroup,,
Nottinghamshire County Council,1111/1001,Children and Young People,CYP,Third Party Payments,EGA,26/03/2018,12-16203,635.93,Ravenshead Out Of School Club,,
Nottinghamshire County Council,1111/1001,Children and Young People,CYP,Third Party Payments,EGA,26/03/2018,12-16225,615.00,PSLA Newstead Childcare (HO),,
Nottinghamshire County Council,1111/1001,Children and Young People,CYP,Third Party Payments,EGA,29/03/2018,12-16701,"13,867.44",Cherubs (Sutton In Ashfield) Childm,,
Nottinghamshire County Council,1111/1001,Children and Young People,CYP,Third Party Payments,EGA,29/03/2018,12-16702,688.05,Cared 4 Ltd T/A Brookhill House Day,,
Nottinghamshire County Council,1111/1001,Children and Young People,CYP,Third Party Payments,EGA,29/03/2018,12-16703,500.40,Balderton Village Day Nursery,,
Nottinghamshire County Council,1111/1001,Children and Young People,CYP,Third Party Payments,EGA,29/03/2018,12-16704,2307.45,Stapleford Day Nursery,,
Nottinghamshire County Council,1111/1001,Children and Young People,CYP,Third Party Payments,EGA,29/03/2018,12-16705,750.60,Childrens House Childcare Ltd,,
Nottinghamshire County Council,1111/1001,Children and Young People,CYP,Third Party Payments,EGA,29/03/2018,12-16707,500.4,PSLA Newstead Childcare (HO),,
Nottinghamshire County Council,1111/1001,Children and Young People,CYP,Third Party Payments,EGA,29/03/2018,12-16867,"15,057.14",DMR Services Ltd,,
Nottinghamshire County Council,1111/1001,Children and Young People,CYP,Third Party Payments,EGA,29/03/2018,12-17006,9600,Resolute Care Ltd,,
Nottinghamshire County Council,1111/1001,Children and Young People,CYP,Third Party Payments,EGA,29/03/2018,12-17056,32100,Nottinghamshire YMCA (HO),,
Nottinghamshire County Council,1111/1001,Children and Young People,CYP,Third Party Payments,EGA,29/03/2018,12-17190,"1,404.30",Scope,,
Nottinghamshire County Council,1111/1001,Children and Young People,CYP,Third Party Payments,EGA,29/03/2018,12-17293,1319.06,Nottingham Mencap,,
Nottinghamshire County Council,1111/1001,Children and Young People,CYP,Third Party Payments,EGA,29/03/2018,12-17294,825.00,Nottingham Mencap,,
Nottinghamshire County Council,1111/1001,Children and Young People,CYP,Third Party Payments,EGA,29/03/2018,12-17295,2130.19,Nottingham Mencap,,
Nottinghamshire County Council,1111/1001,Children and Young People,CYP,Third Party Payments,EGA,29/03/2018,12-17296,662.5,Nottingham Mencap,,
Nottinghamshire County Council,1111/1001,Children and Young People,CYP,Third Party Payments,EGA,29/03/2018,12-17317,"92,665.52",Foster Care Associates Limited,,
Nottinghamshire County Council,1111/1001,Children and Young People,CYP,Third Party Payments,EHA,07/03/2018,12-16922,619.16,Newark Emmaus Trust,,
Nottinghamshire County Council,1111/1001,Children and Young People,CYP,Third Party Payments,EHA,15/03/2018,12-17231,"1,194.00",Faith In Families,,
Nottinghamshire County Council,1111/1001,Children and Young People,CYP,Third Party Payments,EHA,27/03/2018,12-17098,2250,TACT,,
Nottinghamshire County Council,1111/1001,Children and Young People,CYP,Third Party Payments,EHA,29/03/2018,12-17232,1194,Faith In Families,,
Nottinghamshire County Council,1111/1001,Children and Young People,CYP,Transfer Payments,GAA,02/03/2018,12-16724,2520,Sparken Hill Academy,,
Nottinghamshire County Council,1111/1001,Children and Young People,CYP,Transfer Payments,GAA,12/03/2018,12-16952,"5,580.00",Rainbow Horses Learning Centre,,
Nottinghamshire County Council,1111/1001,Children and Young People,CYP,Transfer Payments,GAA,12/03/2018,12-17005,585.00,Good Apple Education,,
Nottinghamshire County Council,1111/1001,Children and Young People,CYP,Transfer Payments,GAA,12/03/2018,12-17010,"1,167.60",A Place To Call Our Own Ltd,,
Nottinghamshire County Council,1111/1001,Children and Young People,CYP,Transfer Payments,GAA,21/03/2018,12-17385,"1,100.00",Alternative Programme Education Ltd,,
Nottinghamshire County Council,1111/1001,Children and Young People,CYP,Transfer Payments,GAA,29/03/2018,12-16876,"1,900.00",New Direction Inclusive Education,,
Nottinghamshire County Council,1111/1001,Children and Young People,CYP,Transfer Payments,GAA,29/03/2018,12-17002,1125,Stone Soup Academy,,
Nottinghamshire County Council,1111/1001,Children and Young People,CYP,Support Services,HAA,08/03/2018,12-11553,1350,All Wayz Travel,,
Nottinghamshire County Council,1111/1001,Children and Young People,CYP,Support Services,HAA,08/03/2018,12-11566,"3,969.00",Johnson Bros Tours Ltd,,
Nottinghamshire County Council,1111/1001,Children and Young People,CYP,Support Services,HAA,08/03/2018,12-11567,3464.5,Johnson Bros Tours Ltd,,
Nottinghamshire County Council,1111/1001,Children and Young People,CYP,Support Services,HAA,08/03/2018,12-11568,"16,222.00",Johnson Bros Tours Ltd,,
Nottinghamshire County Council,1111/1001,Children and Young People,CYP,Support Services,HAA,08/03/2018,12-11569,14625,Johnson Bros Tours Ltd,,
Nottinghamshire County Council,1111/1001,Children and Young People,CYP,Support Services,HAA,08/03/2018,12-11571,"1,272.60",Wrights Coaches,,
Nottinghamshire County Council,1111/1001,Children and Young People,CYP,Support Services,HAA,08/03/2018,12-11573,"2,100.00",Arnold Acorn Travel,,
Nottinghamshire County Council,1111/1001,Children and Young People,CYP,Support Services,HAA,08/03/2018,12-11574,1200,Acorn Contracts,,
Nottinghamshire County Council,1111/1001,Children and Young People,CYP,Support Services,HAA,08/03/2018,12-11660,1540,Fozcabs Newark Taxis,,
Nottinghamshire County Council,1111/1001,Children and Young People,CYP,Support Services,HAA,08/03/2018,12-11674,2142.5,Lowes Coaches Ltd,,
Nottinghamshire County Council,1111/1001,Children and Young People,CYP,Support Services,HAA,08/03/2018,12-11675,"1,903.00",Lowes Coaches Ltd,,
Nottinghamshire County Council,1111/1001,Children and Young People,CYP,Support Services,HAA,08/03/2018,12-11725,549.34,F4Control Ltd (t/a First4care),,
Nottinghamshire County Council,1111/1001,Children and Young People,CYP,Support Services,HAA,08/03/2018,12-11751,"2,055.00",Garys Coaches Ltd,,
Nottinghamshire County Council,1111/1001,Children and Young People,CYP,Support Services,HAA,08/03/2018,12-11754,2255.75,Gem Mini Travel Ltd,,
Nottinghamshire County Council,1111/1001,Children and Young People,CYP,Support Services,HAA,08/03/2018,12-11755,2305.5,Gem Mini Travel Ltd,,
Nottinghamshire County Council,1111/1001,Children and Young People,CYP,Support Services,HAA,08/03/2018,12-11756,2240,Gem Mini Travel Ltd,,
Nottinghamshire County Council,1111/1001,Children and Young People,CYP,Support Services,HAA,08/03/2018,12-11758,"1,554.00",K & R Cars,,
Nottinghamshire County Council,1111/1001,Children and Young People,CYP,Support Services,HAA,08/03/2018,12-11759,1485.68,Marshalls Of Sutton On Trent Ltd,,
Nottinghamshire County Council,1111/1001,Children and Young People,CYP,Support Services,HAA,08/03/2018,12-11765,"2,437.26",Marshalls Of Sutton On Trent Ltd,,
Nottinghamshire County Council,1111/1001,Children and Young People,CYP,Support Services,HAA,08/03/2018,12-11767,"2,380.00",Marshalls Of Sutton On Trent Ltd,,
Nottinghamshire County Council,1111/1001,Children and Young People,CYP,Support Services,HAA,08/03/2018,12-11769,"1,833.98",Marshalls Of Sutton On Trent Ltd,,
Nottinghamshire County Council,1111/1001,Children and Young People,CYP,Support Services,HAA,08/03/2018,12-11772,2745,Marshalls Of Sutton On Trent Ltd,,
Nottinghamshire County Council,1111/1001,Children and Young People,CYP,Support Services,HAA,08/03/2018,12-11774,990,Meden Travel,,
Nottinghamshire County Council,1111/1001,Children and Young People,CYP,Support Services,HAA,08/03/2018,12-11780,2185.12,Nottingham Minibuses & Coaches,,
Nottinghamshire County Council,1111/1001,Children and Young People,CYP,Support Services,HAA,08/03/2018,12-11783,1481.25,Nottingham Minibuses & Coaches,,
Nottinghamshire County Council,1111/1001,Children and Young People,CYP,Support Services,HAA,08/03/2018,12-11785,9978.4,Tiger European Uk Ltd,,
Nottinghamshire County Council,1111/1001,Children and Young People,CYP,Support Services,HAA,08/03/2018,12-11786,"8,797.40",Tiger European Uk Ltd,,
Nottinghamshire County Council,1111/1001,Children and Young People,CYP,Support Services,HAA,08/03/2018,12-11787,2925,Tiger European Uk Ltd,,
Nottinghamshire County Council,1111/1001,Children and Young People,CYP,Support Services,HAA,08/03/2018,12-11788,"2,293.50",Tiger European Uk Ltd,,
Nottinghamshire County Council,1111/1001,Children and Young People,CYP,Support Services,HAA,08/03/2018,12-11789,"2,600.85",Tiger European Uk Ltd,,
Nottinghamshire County Council,1111/1001,Children and Young People,CYP,Support Services,HAA,08/03/2018,12-11792,2858,Tiger European Uk Ltd,,
Nottinghamshire County Council,1111/1001,Children and Young People,CYP,Support Services,HAA,08/03/2018,12-11793,"10,062.00",Travel Wright Ltd,,
Nottinghamshire County Council,1111/1001,Children and Young People,CYP,Support Services,HAA,08/03/2018,12-11794,2229.25,Travel Wright Ltd,,
Nottinghamshire County Council,1111/1001,Children and Young People,CYP,Support Services,HAA,08/03/2018,12-11795,"1,890.38",Travel Wright Ltd,,
Nottinghamshire County Council,1111/1001,Children and Young People,CYP,Support Services,HAA,08/03/2018,12-11797,1800,Travel Wright Ltd,,
Nottinghamshire County Council,1111/1001,Children and Young People,CYP,Support Services,HAA,08/03/2018,12-11802,2533.5,Travel Wright Ltd,,
Nottinghamshire County Council,1111/1001,Children and Young People,CYP,Support Services,HAA,08/03/2018,12-11803,1664.6,Travel Wright Ltd,,
Nottinghamshire County Council,1111/1001,Children and Young People,CYP,Support Services,HAA,08/03/2018,12-11805,"5,770.50",Freeway Coaches Ltd,,
Nottinghamshire County Council,1111/1001,Children and Young People,CYP,Support Services,HAA,08/03/2018,12-11806,2232,Freeway Coaches Ltd,,
Nottinghamshire County Council,1111/1001,Children and Young People,CYP,Support Services,HAA,08/03/2018,12-11807,"2,920.50",Freeway Coaches Ltd,,
Nottinghamshire County Council,1111/1001,Children and Young People,CYP,Support Services,HAA,08/03/2018,12-11809,"2,700.00",Kettlewell Retford Ltd,,
Nottinghamshire County Council,1111/1001,Children and Young People,CYP,Support Services,HAA,08/03/2018,12-11810,"5,454.00",Kettlewell Retford Ltd,,
Nottinghamshire County Council,1111/1001,Children and Young People,CYP,Support Services,HAA,08/03/2018,12-11811,2475,Kettlewell Retford Ltd,,
Nottinghamshire County Council,1111/1001,Children and Young People,CYP,Support Services,HAA,08/03/2018,12-11812,2475,Kettlewell Retford Ltd,,
Nottinghamshire County Council,1111/1001,Children and Young People,CYP,Support Services,HAA,08/03/2018,12-11813,1845,Kettlewell Retford Ltd,,
Nottinghamshire County Council,1111/1001,Children and Young People,CYP,Support Services,HAA,08/03/2018,12-11814,1332,Rio Cabs,,
Nottinghamshire County Council,1111/1001,Children and Young People,CYP,Support Services,HAA,08/03/2018,12-11815,960,Rio Cabs,,
Nottinghamshire County Council,1111/1001,Children and Young People,CYP,Support Services,HAA,08/03/2018,12-11823,660,Town Cars (UK) Ltd,,
Nottinghamshire County Council,1111/1001,Children and Young People,CYP,Support Services,HAA,08/03/2018,12-11824,262.50,Cable Cars Taxis Nottm Ltd,,
Nottinghamshire County Council,1111/1001,Children and Young People,CYP,Support Services,HAA,08/03/2018,12-11827,"1,575.00",Travel Liner,,
Nottinghamshire County Council,1111/1001,Children and Young People,CYP,Support Services,HAA,08/03/2018,12-11828,"5,575.50",Nottingham Coaches,,
Nottinghamshire County Council,1111/1001,Children and Young People,CYP,Support Services,HAA,08/03/2018,12-11829,2045,Nottingham Coaches,,
Nottinghamshire County Council,1111/1001,Children and Young People,CYP,Support Services,HAA,08/03/2018,12-11830,2277.5,Nottingham Coaches,,
Nottinghamshire County Council,1111/1001,Children and Young People,CYP,Support Services,HAA,08/03/2018,12-11831,1735,Nottingham Coaches,,
Nottinghamshire County Council,1111/1001,Children and Young People,CYP,Support Services,HAA,08/03/2018,12-11832,1952.5,Nottingham Coaches,,
Nottinghamshire County Council,1111/1001,Children and Young People,CYP,Support Services,HAA,08/03/2018,12-11840,1595.4,Hammonds Coaches Ltd,,
Nottinghamshire County Council,1111/1001,Children and Young People,CYP,Support Services,HAA,08/03/2018,12-11841,1107.6,Hammonds Coaches Ltd,,
Nottinghamshire County Council,1111/1001,Children and Young People,CYP,Support Services,HAA,08/03/2018,12-11846,706.87,Shiny Sky Ltd T/A A2b Cars,,
Nottinghamshire County Council,1111/1001,Children and Young People,CYP,Support Services,HAA,12/03/2018,12-11975,2277.96,Sharpes Of Nottingham,,
Nottinghamshire County Council,1111/1001,Children and Young People,CYP,Support Services,HAA,12/03/2018,12-11976,2211.71,Sharpes Of Nottingham,,
Nottinghamshire County Council,1111/1001,Children and Young People,CYP,Support Services,HAA,12/03/2018,12-11977,2285.25,Sharpes Of Nottingham,,
Nottinghamshire County Council,1111/1001,Children and Young People,CYP,Support Services,HAA,12/03/2018,12-11978,2195.73,Sharpes Of Nottingham,,
Nottinghamshire County Council,1111/1001,Children and Young People,CYP,Support Services,HAA,12/03/2018,12-11979,2257.74,Sharpes Of Nottingham,,
Nottinghamshire County Council,1111/1001,Children and Young People,CYP,Support Services,HAA,12/03/2018,12-11980,2285.25,Sharpes Of Nottingham,,
Nottinghamshire County Council,1111/1001,Children and Young People,CYP,Support Services,HAA,12/03/2018,12-11981,"4,230.68",Sharpes Of Nottingham,,
Nottinghamshire County Council,1111/1001,Children and Young People,CYP,Support Services,HAA,12/03/2018,12-11982,2285.25,Sharpes Of Nottingham,,
Nottinghamshire County Council,1111/1001,Children and Young People,CYP,Support Services,HAA,12/03/2018,12-11983,2276.75,Sharpes Of Nottingham,,
Nottinghamshire County Council,1111/1001,Children and Young People,CYP,Support Services,HAA,12/03/2018,12-11984,"2,285.10",Sharpes Of Nottingham,,
Nottinghamshire County Council,1111/1001,Children and Young People,CYP,Support Services,HAA,12/03/2018,12-11985,"2,186.25",Sharpes Of Nottingham,,
Nottinghamshire County Council,1111/1001,Children and Young People,CYP,Support Services,HAA,12/03/2018,12-11990,"3,705.95",Glenn Ryder Coaches,,
Nottinghamshire County Council,1111/1001,Children and Young People,CYP,Support Services,HAA,12/03/2018,12-12028,4921.2,Butler Brothers Ltd,,
Nottinghamshire County Council,1111/1001,Children and Young People,CYP,Support Services,HAA,12/03/2018,12-12031,"1,960.00",Lowes Coaches Ltd,,
Nottinghamshire County Council,1111/1001,Children and Young People,CYP,Support Services,HAA,12/03/2018,12-12033,550.80,Ng11 Cars,,
Nottinghamshire County Council,1111/1001,Children and Young People,CYP,Support Services,HAA,12/03/2018,12-12034,725.00,Ng11 Cars,,
Nottinghamshire County Council,1111/1001,Children and Young People,CYP,Support Services,HAA,12/03/2018,12-12078,450.00,D G Private Hire Ltd,,
Nottinghamshire County Council,1111/1001,Children and Young People,CYP,Support Services,HAA,12/03/2018,12-12087,343.00,Abacus Cars,,
Nottinghamshire County Council,1111/1001,Children and Young People,CYP,Support Services,HAA,12/03/2018,12-12089,2385,AOT Coaches,,
Nottinghamshire County Council,1111/1001,Children and Young People,CYP,Support Services,HAA,12/03/2018,12-12090,1997,AOT Coaches,,
Nottinghamshire County Council,1111/1001,Children and Young People,CYP,Support Services,HAA,12/03/2018,12-12091,"1,851.75",AOT Coaches,,
Nottinghamshire County Council,1111/1001,Children and Young People,CYP,Support Services,HAA,12/03/2018,12-12092,"2,072.00",AOT Coaches,,
Nottinghamshire County Council,1111/1001,Children and Young People,CYP,Support Services,HAA,12/03/2018,12-12093,2513,Gem Mini Travel Ltd,,
Nottinghamshire County Council,1111/1001,Children and Young People,CYP,Support Services,HAA,12/03/2018,12-12094,"2,220.00",Jb Tours Watnall Ltd,,
Nottinghamshire County Council,1111/1001,Children and Young People,CYP,Support Services,HAA,12/03/2018,12-12095,"1,686.00",Jb Tours Watnall Ltd,,
Nottinghamshire County Council,1111/1001,Children and Young People,CYP,Support Services,HAA,12/03/2018,12-12096,1717.6,Jb Tours Watnall Ltd,,
Nottinghamshire County Council,1111/1001,Children and Young People,CYP,Support Services,HAA,12/03/2018,12-12097,"2,086.50",Jb Tours Watnall Ltd,,
Nottinghamshire County Council,1111/1001,Children and Young People,CYP,Support Services,HAA,12/03/2018,12-12100,"2,685.00",Stagecoach Services Ltd,,
Nottinghamshire County Council,1111/1001,Children and Young People,CYP,Support Services,HAA,12/03/2018,12-12101,"1,192.50",Stagecoach Services Ltd,,
Nottinghamshire County Council,1111/1001,Children and Young People,CYP,Support Services,HAA,12/03/2018,12-12102,"1,192.50",Stagecoach Services Ltd,,
Nottinghamshire County Council,1111/1001,Children and Young People,CYP,Support Services,HAA,12/03/2018,12-12103,"3,464.40",Stagecoach Services Ltd,,
Nottinghamshire County Council,1111/1001,Children and Young People,CYP,Support Services,HAA,12/03/2018,12-12104,2516.65,Stagecoach Services Ltd,,
Nottinghamshire County Council,1111/1001,Children and Young People,CYP,Support Services,HAA,12/03/2018,12-12107,"3,862.49",Stagecoach Services Ltd,,
Nottinghamshire County Council,1111/1001,Children and Young People,CYP,Support Services,HAA,12/03/2018,12-12115,2685,Stagecoach Services Ltd,,
Nottinghamshire County Council,1111/1001,Children and Young People,CYP,Support Services,HAA,12/03/2018,12-12121,2835,Stagecoach Services Ltd,,
Nottinghamshire County Council,1111/1001,Children and Young People,CYP,Support Services,HAA,12/03/2018,12-12122,4035,Stagecoach Services Ltd,,
Nottinghamshire County Council,1111/1001,Children and Young People,CYP,Support Services,HAA,12/03/2018,12-12123,4076,Stagecoach Services Ltd,,
Nottinghamshire County Council,1111/1001,Children and Young People,CYP,Support Services,HAA,12/03/2018,12-12131,2128.95,Stagecoach Services Ltd,,
Nottinghamshire County Council,1111/1001,Children and Young People,CYP,Support Services,HAA,12/03/2018,12-12137,5343.12,Stagecoach Services Ltd,,
Nottinghamshire County Council,1111/1001,Children and Young People,CYP,Support Services,HAA,12/03/2018,12-12139,4286.67,Stagecoach Services Ltd,,
Nottinghamshire County Council,1111/1001,Children and Young People,CYP,Support Services,HAA,12/03/2018,12-12141,3160.9,Stagecoach Services Ltd,,
Nottinghamshire County Council,1111/1001,Children and Young People,CYP,Support Services,HAA,12/03/2018,12-12142,4268.45,Stagecoach Services Ltd,,
Nottinghamshire County Council,1111/1001,Children and Young People,CYP,Support Services,HAA,12/03/2018,12-12144,6703.54,Travel Wright Ltd,,
Nottinghamshire County Council,1111/1001,Children and Young People,CYP,Support Services,HAA,12/03/2018,12-12146,431.23,Travel Wright Ltd,,
Nottinghamshire County Council,1111/1001,Children and Young People,CYP,Support Services,HAA,12/03/2018,12-12150,1470,P & P Taxis,,
Nottinghamshire County Council,1111/1001,Children and Young People,CYP,Support Services,HAA,12/03/2018,12-12152,7050,Wilfreda Beehive,,
Nottinghamshire County Council,1111/1001,Children and Young People,CYP,Support Services,HAA,12/03/2018,12-12153,3362.4,Kettlewell Retford Ltd,,
Nottinghamshire County Council,1111/1001,Children and Young People,CYP,Support Services,HAA,12/03/2018,12-12155,686,Paul S Winson Coaches,,
Nottinghamshire County Council,1111/1001,Children and Young People,CYP,Support Services,HAA,12/03/2018,12-12159,3000,C W Moxon Ltd,,
Nottinghamshire County Council,1111/1001,Children and Young People,CYP,Support Services,HAA,12/03/2018,12-12160,5437.5,C W Moxon Ltd,,
Nottinghamshire County Council,1111/1001,Children and Young People,CYP,Support Services,HAA,12/03/2018,12-12161,6996,C W Moxon Ltd,,
Nottinghamshire County Council,1111/1001,Children and Young People,CYP,Support Services,HAA,12/03/2018,12-12164,780,Bassetlaw Action Centre,,
Nottinghamshire County Council,1111/1001,Children and Young People,CYP,Support Services,HAA,12/03/2018,12-12201,1800,Broadsword Cars,,
Nottinghamshire County Council,1111/1001,Children and Young People,CYP,Support Services,HAA,12/03/2018,12-12202,1067.5,A2B Licensed Taxis,,
Nottinghamshire County Council,1111/1001,Children and Young People,CYP,Support Services,HAA,12/03/2018,12-12203,700,A2B Licensed Taxis,,
Nottinghamshire County Council,1111/1001,Children and Young People,CYP,Support Services,HAA,12/03/2018,12-12205,1267.24,Community Transport for Town & Coun,,
Nottinghamshire County Council,1111/1001,Children and Young People,CYP,Support Services,HAA,12/03/2018,12-12208,1596,Cocktail Travel T/A Unity Coaches L,,
Nottinghamshire County Council,1111/1001,Children and Young People,CYP,Support Services,HAA,12/03/2018,12-12209,1500,Cocktail Travel T/A Unity Coaches L,,
Nottinghamshire County Council,1111/1001,Children and Young People,CYP,Support Services,HAA,12/03/2018,12-12210,1155,Cocktail Travel T/A Unity Coaches L,,
Nottinghamshire County Council,1111/1001,Children and Young People,CYP,Support Services,HAA,12/03/2018,12-12211,363.2,Ideal Cars (Private Hire) Ltd,,
Nottinghamshire County Council,1111/1001,Children and Young People,CYP,Support Services,HAA,15/03/2018,12-12577,599.76,Shelleys Taxis Ltd,,
Nottinghamshire County Council,1111/1001,Children and Young People,CYP,Support Services,HAA,15/03/2018,12-12606,252,D G Private Hire Ltd,,
Nottinghamshire County Council,1111/1001,Children and Young People,CYP,Support Services,HAA,15/03/2018,12-12609,565.6,D G Private Hire Ltd,,
Nottinghamshire County Council,1111/1001,Children and Young People,CYP,Support Services,HAA,15/03/2018,12-12612,757.5,D G Private Hire Ltd,,
Nottinghamshire County Council,1111/1001,Children and Young People,CYP,Support Services,HAA,15/03/2018,12-12622,945.01,Abacus Cars,,
Nottinghamshire County Council,1111/1001,Children and Young People,CYP,Support Services,HAA,15/03/2018,12-12626,546,Abacus Cars,,
Nottinghamshire County Council,1111/1001,Children and Young People,CYP,Support Services,HAA,15/03/2018,12-12629,285,Abacus Cars,,
Nottinghamshire County Council,1111/1001,Children and Young People,CYP,Support Services,HAA,15/03/2018,12-12652,544.6,Nunns Taxis Ltd,,
Nottinghamshire County Council,1111/1001,Children and Young People,CYP,Support Services,HAA,15/03/2018,12-12653,2256.63,Silverdale Tours Nottm Ltd,,
Nottinghamshire County Council,1111/1001,Children and Young People,CYP,Support Services,HAA,15/03/2018,12-12654,2235.2,Silverdale Tours Nottm Ltd,,
Nottinghamshire County Council,1111/1001,Children and Young People,CYP,Support Services,HAA,15/03/2018,12-12655,1948.6,Silverdale Tours Nottm Ltd,,
Nottinghamshire County Council,1111/1001,Children and Young People,CYP,Support Services,HAA,15/03/2018,12-12656,2048.4,Silverdale Tours Nottm Ltd,,
Nottinghamshire County Council,1111/1001,Children and Young People,CYP,Support Services,HAA,15/03/2018,12-12657,2385,Silverdale Tours Nottm Ltd,,
Nottinghamshire County Council,1111/1001,Children and Young People,CYP,Support Services,HAA,15/03/2018,12-12658,2132.5,Silverdale Tours Nottm Ltd,,
Nottinghamshire County Council,1111/1001,Children and Young People,CYP,Support Services,HAA,15/03/2018,12-12659,2198.1,Silverdale Tours Nottm Ltd,,
Nottinghamshire County Council,1111/1001,Children and Young People,CYP,Support Services,HAA,15/03/2018,12-12661,2100,Silverdale Tours Nottm Ltd,,
Nottinghamshire County Council,1111/1001,Children and Young People,CYP,Support Services,HAA,15/03/2018,12-12665,2027.5,Freeway Coaches Ltd,,
Nottinghamshire County Council,1111/1001,Children and Young People,CYP,Support Services,HAA,15/03/2018,12-12666,1917.5,Freeway Coaches Ltd,,
Nottinghamshire County Council,1111/1001,Children and Young People,CYP,Support Services,HAA,15/03/2018,12-12667,1321,Freeway Coaches Ltd,,
Nottinghamshire County Council,1111/1001,Children and Young People,CYP,Support Services,HAA,15/03/2018,12-12670,3546.45,Isle Coaches,,
Nottinghamshire County Council,1111/1001,Children and Young People,CYP,Support Services,HAA,15/03/2018,12-12671,1012.5,AAA Cabs,,
Nottinghamshire County Council,1111/1001,Children and Young People,CYP,Support Services,HAA,15/03/2018,12-12691,1207.85,Nunns Taxis Ltd,,
Nottinghamshire County Council,1111/1001,Children and Young People,CYP,Support Services,HAA,15/03/2018,12-12692,660,D G Private Hire Ltd,,
Nottinghamshire County Council,1111/1001,Children and Young People,CYP,Support Services,HAA,23/03/2018,12-15847,871,Forest Cars,,
Nottinghamshire County Council,1111/1001,Children and Young People,CYP,Support Services,HAA,23/03/2018,12-15853,1005,Forest Cars,,
Nottinghamshire County Council,1111/1001,Children and Young People,CYP,Income,JHA,28/03/2018,12-10052,4648,Not assigned,,
Nottinghamshire County Council,1111/1001,Children and Young People,CYP,Income,JHA,28/03/2018,12-10053,4648,Not assigned,,
Nottinghamshire County Council,1111/1001,Children and Young People,CYP,Income,JHA,28/03/2018,12-10054,4648,Not assigned,,
Nottinghamshire County Council,1111/1001,Children and Young People,CYP,Income,JHA,28/03/2018,12-10055,2747,Not assigned,,
Nottinghamshire County Council,1111/1001,Adult Social Care and Health,ASCH,Employee Related,ABA,01/03/2018,12-16721,1160,Autism Oxford,,
Nottinghamshire County Council,1111/1001,Adult Social Care and Health,ASCH,Premises Related,BAA,02/03/2018,12-10126,774,Ball & Sons Ltd,,
Nottinghamshire County Council,1111/1001,Adult Social Care and Health,ASCH,Premises Related,BAA,05/03/2018,12-10127,574.5,Sues Maintenance Services Ltd,,
Nottinghamshire County Council,1111/1001,Adult Social Care and Health,ASCH,Premises Related,BAA,07/03/2018,12-11436,680,Beardsall Builders Ltd,,
Nottinghamshire County Council,1111/1001,Adult Social Care and Health,ASCH,Premises Related,BAA,08/03/2018,12-11874,673,ELF  Property Care,,
Nottinghamshire County Council,1111/1001,Adult Social Care and Health,ASCH,Premises Related,BAA,08/03/2018,12-11877,6852.09,ARC Property Services Partnership L,,
Nottinghamshire County Council,1111/1001,Adult Social Care and Health,ASCH,Premises Related,BAA,08/03/2018,12-11883,79.65,ARC Property Services Partnership L,,
Nottinghamshire County Council,1111/1001,Adult Social Care and Health,ASCH,Premises Related,BAA,08/03/2018,12-11886,9029.66,ARC Property Services Partnership L,,
Nottinghamshire County Council,1111/1001,Adult Social Care and Health,ASCH,Premises Related,BAA,08/03/2018,12-11892,25460.26,ARC Property Services Partnership L,,
Nottinghamshire County Council,1111/1001,Adult Social Care and Health,ASCH,Premises Related,BAA,08/03/2018,12-11893,953.87,ARC Property Services Partnership L,,
Nottinghamshire County Council,1111/1001,Adult Social Care and Health,ASCH,Premises Related,BAA,12/03/2018,12-12227,528.5,[Redacted],,
Nottinghamshire County Council,1111/1001,Adult Social Care and Health,ASCH,Premises Related,BAA,14/03/2018,12-12542,948.5,Helping Hands (Notts) Ltd,,
Nottinghamshire County Council,1111/1001,Adult Social Care and Health,ASCH,Premises Related,BAA,16/03/2018,12-12707,1901.42,ARC Property Services Partnership L,,
Nottinghamshire County Council,1111/1001,Adult Social Care and Health,ASCH,Premises Related,BAA,16/03/2018,12-12711,10004.37,ARC Property Services Partnership L,,
Nottinghamshire County Council,1111/1001,Adult Social Care and Health,ASCH,Premises Related,BAA,19/03/2018,12-13826,744.5,Cw Plumbing Heating & Gas Services,,
Nottinghamshire County Council,1111/1001,Adult Social Care and Health,ASCH,Premises Related,BAA,26/03/2018,12-16206,1953.9,ARC Property Services Partnership L,,
Nottinghamshire County Council,1111/1001,Adult Social Care and Health,ASCH,Premises Related,BAA,26/03/2018,12-16212,3483.43,ARC Property Services Partnership L,,
Nottinghamshire County Council,1111/1001,Adult Social Care and Health,ASCH,Premises Related,BAA,26/03/2018,12-16253,563,Helping Hands (Notts) Ltd,,
Nottinghamshire County Council,1111/1001,Adult Social Care and Health,ASCH,Premises Related,BCA,01/03/2018,12-16846,1303.28,Hargreaves (UK) Services Ltd - Mine,,
Nottinghamshire County Council,1111/1001,Adult Social Care and Health,ASCH,Premises Related,BCA,02/03/2018,12-16848,1303.28,Hargreaves (UK) Services Ltd - Mine,,
Nottinghamshire County Council,1111/1001,Adult Social Care and Health,ASCH,Premises Related,BCA,14/03/2018,12-17201,926.6,High Park Industries Ltd,,
Nottinghamshire County Council,1111/1001,Adult Social Care and Health,ASCH,Premises Related,BDA,01/03/2018,12-16788,775,IGEM,,
Nottinghamshire County Council,1111/1001,Adult Social Care and Health,ASCH,Premises Related,BDA,02/03/2018,12-16753,660,Our Ladys Eastwood Rc Parish,,
